 Batch Number,Vendor Name,Invoice Number, Line,Line Amount,Account Description,Issue Date ,Total Amount Paid,Department,Proclass
902708,MR N NEWMAN,50276344,1,340.80,INSURANCE EXCESS,01/02/17,340.80,Procurement,Legal Services
141759,THOMPSONS SOLICITORS==========,9722,1,330.00,CLAIMANT COSTS AGREED,01/02/17,330.00,Compensation Budgets,Legal Services
300117F,COUNTY DURHAM & DARLINGTON FRS,10010329,1,"14,334.84",FIRE AUTHS-MUTUAL ASSISTANCE,02/02/17,"14,334.84",National Operational Guidance Project,Statutory Bodies
260117F,RESPIREX,158345,1,"19,035.36",OPERATIONAL EQUIP-PURCHASE,02/02/17,"19,035.36",Gas Tight Suits,Clothing
260117F,RESPIREX,158373,1,"19,035.36",OPERATIONAL EQUIP-PURCHASE,02/02/17,"19,035.36",Gas Tight Suits,Clothing
300117F,RESPIREX,158439,1,"19,035.36",OPERATIONAL EQUIP-PURCHASE,02/02/17,"19,035.36",Gas Tight Suits,Clothing
260117F,RESPIREX,158484,1,"19,035.36",OPERATIONAL EQUIP-PURCHASE,02/02/17,"19,035.36",Gas Tight Suits,Clothing
141757,BENJAMIN TANKEL,190097D,1,"1,000.00",COUNSELS FEES,02/02/17,"1,000.00",Compensation Budgets,Legal Services
260117F,INFIGO LTD====================,24586,1,660.00,STATIONERY CONSUMABLES,02/02/17,660.00,Communications,Stationery
141757,STERLING ESTATES MANAGEMENT,28/449,1,"8,245.06",RENTS,02/02/17,"8,245.06",Technical and Service Support,Financial Services
300117F,DRAEGER SAFETY UK LIMITED,2910071259,1,380.20,PROTECTIVE EQUIPT - PARTS,02/02/17,380.20,Technical and Service Support,Fire & Rescue
300117F,DRAEGER SAFETY UK LIMITED,2910071774,1,325.65,PROTECTIVE EQUIPT - PARTS,02/02/17,325.65,Technical and Service Support,Fire & Rescue
300117F,DRAEGER SAFETY UK LIMITED,2910072275,1,"1,018.20",PROTECTIVE EQUIPT - PARTS,02/02/17,"1,018.20",Technical and Service Support,Fire & Rescue
300117F,DRAEGER SAFETY UK LIMITED,2910072277,1,"1,087.40",PROTECTIVE EQUIPT - PARTS,02/02/17,"1,306.71",Technical and Service Support,Fire & Rescue
300117F,DRAEGER SAFETY UK LIMITED,2910072277,2,219.31,PROTECTIVE EQUIPT - PARTS,02/02/17,,Technical and Service Support,Fire & Rescue
800094173,ARKAS LIMITED,29864,1,815.46,REACTIVE APPLIANCE BAY DOORS,02/02/17,815.46,Technical and Service Support,"Works - Construction, R&M"
260117F,BRISTOL UNIFORMS LTD==========,3138769,1,834.76,CLOTHING,02/02/17,834.76,Operational Resilience,Clothing
260117F,BT GLOBAL SERVICES,433136,1,"15,050.12",MAINTENANCE & SUPPORT,02/02/17,"15,050.12",Information and Communication Technology,ICT
141757,ARQUIVA LIMITED===============,50001543,1,"3,772.00",RENTS,02/02/17,"3,772.00",Technical and Service Support,Building Constr Materials
260117F,COSTELLO & SONS LIMITED=======,50212,1,159.99,UNIFORMS - POMS,02/02/17,"2,309.14",Procurement,Clothing
260117F,COSTELLO & SONS LIMITED=======,50212,2,159.99,UNIFORMS - POMS,02/02/17,,Procurement,Clothing
260117F,COSTELLO & SONS LIMITED=======,50212,3,319.80,UNIFORMS - POMS,02/02/17,,Procurement,Clothing
260117F,COSTELLO & SONS LIMITED=======,50212,4,479.79,UNIFORMS - POMS,02/02/17,,Procurement,Clothing
260117F,COSTELLO & SONS LIMITED=======,50212,5,479.79,UNIFORMS - POMS,02/02/17,,Procurement,Clothing
260117F,COSTELLO & SONS LIMITED=======,50212,6,159.99,UNIFORMS - POMS,02/02/17,,Procurement,Clothing
260117F,COSTELLO & SONS LIMITED=======,50212,7,159.99,UNIFORMS - POMS,02/02/17,,Procurement,Clothing
260117F,COSTELLO & SONS LIMITED=======,50212,8,389.80,UNIFORMS - POMS,02/02/17,,Procurement,Clothing
180117F,THE HEIGHTEC GROUP LTD========,54899,1,"1,169.60",REPAIR & MAINTENANCE,02/02/17,"2,142.35",Technical and Service Support,Fire & Rescue
180117F,THE HEIGHTEC GROUP LTD========,54899,2,972.75,PROTECTIVE EQUIPMENT,02/02/17,,Technical and Service Support,Fire & Rescue
190117K,HP INC UK LIMITED,5650409,1,"13,405.50",ACQUISITIONS,02/02/17,"13,405.50",Information and Communication Technology,ICT
800093803,G BURLEY & SONS LTD,58236,1,14.46,GROUNDS MAINTENANCE,02/02/17,"4,569.70",Technical and Service Support,Works - Construction
800093803,G BURLEY & SONS LTD,58236,2,22.25,GROUNDS MAINTENANCE,02/02/17,,Technical and Service Support,Works - Construction
800093803,G BURLEY & SONS LTD,58236,3,20.56,GROUNDS MAINTENANCE,02/02/17,,Technical and Service Support,Works - Construction
800093803,G BURLEY & SONS LTD,58236,4,18.25,GROUNDS MAINTENANCE,02/02/17,,Technical and Service Support,Works - Construction
800093803,G BURLEY & SONS LTD,58236,5,26.60,GROUNDS MAINTENANCE,02/02/17,,Technical and Service Support,Works - Construction
800093803,G BURLEY & SONS LTD,58236,6,47.13,GROUNDS MAINTENANCE,02/02/17,,Technical and Service Support,Works - Construction
800093803,G BURLEY & SONS LTD,58236,7,18.55,GROUNDS MAINTENANCE,02/02/17,,Technical and Service Support,Works - Construction
800093803,G BURLEY & SONS LTD,58236,8,28.27,GROUNDS MAINTENANCE,02/02/17,,Technical and Service Support,Works - Construction
800093803,G BURLEY & SONS LTD,58236,9,40.50,GROUNDS MAINTENANCE,02/02/17,,Technical and Service Support,Works - Construction
800093803,G BURLEY & SONS LTD,58236,10,19.16,GROUNDS MAINTENANCE,02/02/17,,Technical and Service Support,Works - Construction
800093803,G BURLEY & SONS LTD,58236,11,50.64,GROUNDS MAINTENANCE,02/02/17,,Technical and Service Support,Works - Construction
800093803,G BURLEY & SONS LTD,58236,12,23.18,GROUNDS MAINTENANCE,02/02/17,,Technical and Service Support,Works - Construction
800093803,G BURLEY & SONS LTD,58236,13,57.15,GROUNDS MAINTENANCE,02/02/17,,Technical and Service Support,Works - Construction
800093803,G BURLEY & SONS LTD,58236,14,26.53,GROUNDS MAINTENANCE,02/02/17,,Technical and Service Support,Works - Construction
800093803,G BURLEY & SONS LTD,58236,15,21.55,GROUNDS MAINTENANCE,02/02/17,,Technical and Service Support,Works - Construction
800093803,G BURLEY & SONS LTD,58236,16,51.82,GROUNDS MAINTENANCE,02/02/17,,Technical and Service Support,Works - Construction
800093803,G BURLEY & SONS LTD,58236,17,405.71,GROUNDS MAINTENANCE,02/02/17,,Technical and Service Support,Works - Construction
800093803,G BURLEY & SONS LTD,58236,18,126.77,GROUNDS MAINTENANCE,02/02/17,,Technical and Service Support,Works - Construction
800093803,G BURLEY & SONS LTD,58236,19,19.54,GROUNDS MAINTENANCE,02/02/17,,Technical and Service Support,Works - Construction
800093803,G BURLEY & SONS LTD,58236,20,34.00,GROUNDS MAINTENANCE,02/02/17,,Technical and Service Support,Works - Construction
800093803,G BURLEY & SONS LTD,58236,21,33.29,GROUNDS MAINTENANCE,02/02/17,,Technical and Service Support,Works - Construction
800093803,G BURLEY & SONS LTD,58236,22,305.43,GROUNDS MAINTENANCE,02/02/17,,Technical and Service Support,Works - Construction
800093803,G BURLEY & SONS LTD,58236,23,13.71,GROUNDS MAINTENANCE,02/02/17,,Technical and Service Support,Works - Construction
800093803,G BURLEY & SONS LTD,58236,24,24.31,GROUNDS MAINTENANCE,02/02/17,,Technical and Service Support,Works - Construction
800093803,G BURLEY & SONS LTD,58236,25,95.63,GROUNDS MAINTENANCE,02/02/17,,Technical and Service Support,Works - Construction
800093803,G BURLEY & SONS LTD,58236,26,3.36,GROUNDS MAINTENANCE,02/02/17,,Technical and Service Support,Works - Construction
800093803,G BURLEY & SONS LTD,58236,27,15.74,GROUNDS MAINTENANCE,02/02/17,,Technical and Service Support,Works - Construction
800093803,G BURLEY & SONS LTD,58236,28,40.80,GROUNDS MAINTENANCE,02/02/17,,Technical and Service Support,Works - Construction
800093803,G BURLEY & SONS LTD,58236,29,16.10,GROUNDS MAINTENANCE,02/02/17,,Technical and Service Support,Works - Construction
800093803,G BURLEY & SONS LTD,58236,30,76.75,GROUNDS MAINTENANCE,02/02/17,,Technical and Service Support,Works - Construction
800093803,G BURLEY & SONS LTD,58236,31,31.55,GROUNDS MAINTENANCE,02/02/17,,Technical and Service Support,Works - Construction
800093803,G BURLEY & SONS LTD,58236,32,109.65,PLANNED GROUNDS MAINTENANCE,02/02/17,,Technical and Service Support,Works - Construction
800093803,G BURLEY & SONS LTD,58236,33,28.42,GROUNDS MAINTENANCE,02/02/17,,Technical and Service Support,Works - Construction
800093803,G BURLEY & SONS LTD,58236,34,21.08,GROUNDS MAINTENANCE,02/02/17,,Technical and Service Support,Works - Construction
800093803,G BURLEY & SONS LTD,58236,35,72.53,GROUNDS MAINTENANCE,02/02/17,,Technical and Service Support,Works - Construction
800093803,G BURLEY & SONS LTD,58236,36,59.62,GROUNDS MAINTENANCE,02/02/17,,Technical and Service Support,Works - Construction
800093803,G BURLEY & SONS LTD,58236,37,46.49,GROUNDS MAINTENANCE,02/02/17,,Technical and Service Support,Works - Construction
800093803,G BURLEY & SONS LTD,58236,38,13.43,GROUNDS MAINTENANCE,02/02/17,,Technical and Service Support,Works - Construction
800093803,G BURLEY & SONS LTD,58236,39,26.24,GROUNDS MAINTENANCE,02/02/17,,Technical and Service Support,Works - Construction
800093803,G BURLEY & SONS LTD,58236,40,51.36,GROUNDS MAINTENANCE,02/02/17,,Technical and Service Support,Works - Construction
800093803,G BURLEY & SONS LTD,58236,41,20.15,GROUNDS MAINTENANCE,02/02/17,,Technical and Service Support,Works - Construction
800093803,G BURLEY & SONS LTD,58236,42,55.14,GROUNDS MAINTENANCE,02/02/17,,Technical and Service Support,Works - Construction
800093803,G BURLEY & SONS LTD,58236,43,95.13,GROUNDS MAINTENANCE,02/02/17,,Technical and Service Support,Works - Construction
800093803,G BURLEY & SONS LTD,58236,44,39.77,GROUNDS MAINTENANCE,02/02/17,,Technical and Service Support,Works - Construction
800093803,G BURLEY & SONS LTD,58236,45,23.77,GROUNDS MAINTENANCE,02/02/17,,Technical and Service Support,Works - Construction
800093803,G BURLEY & SONS LTD,58236,46,121.71,GROUNDS MAINTENANCE,02/02/17,,Technical and Service Support,Works - Construction
800093803,G BURLEY & SONS LTD,58236,47,42.63,GROUNDS MAINTENANCE,02/02/17,,Technical and Service Support,Works - Construction
800093803,G BURLEY & SONS LTD,58236,48,2.19,PLANNED GROUNDS MAINTENANCE,02/02/17,,Technical and Service Support,Works - Construction
800093803,G BURLEY & SONS LTD,58236,49,46.23,GROUNDS MAINTENANCE,02/02/17,,Technical and Service Support,Works - Construction
800093803,G BURLEY & SONS LTD,58236,50,82.72,GROUNDS MAINTENANCE,02/02/17,,Technical and Service Support,Works - Construction
800093803,G BURLEY & SONS LTD,58236,51,34.37,GROUNDS MAINTENANCE,02/02/17,,Technical and Service Support,Works - Construction
800093803,G BURLEY & SONS LTD,58236,52,65.49,GROUNDS MAINTENANCE,02/02/17,,Technical and Service Support,Works - Construction
800093803,G BURLEY & SONS LTD,58236,53,12.37,GROUNDS MAINTENANCE,02/02/17,,Technical and Service Support,Works - Construction
800093803,G BURLEY & SONS LTD,58236,54,26.31,GROUNDS MAINTENANCE,02/02/17,,Technical and Service Support,Works - Construction
800093803,G BURLEY & SONS LTD,58236,55,69.13,GROUNDS MAINTENANCE,02/02/17,,Technical and Service Support,Works - Construction
800093803,G BURLEY & SONS LTD,58236,56,24.29,GROUNDS MAINTENANCE,02/02/17,,Technical and Service Support,Works - Construction
800093803,G BURLEY & SONS LTD,58236,57,26.77,GROUNDS MAINTENANCE,02/02/17,,Technical and Service Support,Works - Construction
800093803,G BURLEY & SONS LTD,58236,58,54.12,GROUNDS MAINTENANCE,02/02/17,,Technical and Service Support,Works - Construction
800093803,G BURLEY & SONS LTD,58236,59,10.39,GROUNDS MAINTENANCE,02/02/17,,Technical and Service Support,Works - Construction
800093803,G BURLEY & SONS LTD,58236,60,30.66,PLANNED GROUNDS MAINTENANCE,02/02/17,,Technical and Service Support,Works - Construction
800093803,G BURLEY & SONS LTD,58236,61,30.92,GROUNDS MAINTENANCE,02/02/17,,Technical and Service Support,Works - Construction
800093803,G BURLEY & SONS LTD,58236,62,46.35,GROUNDS MAINTENANCE,02/02/17,,Technical and Service Support,Works - Construction
800093803,G BURLEY & SONS LTD,58236,63,24.48,GROUNDS MAINTENANCE,02/02/17,,Technical and Service Support,Works - Construction
800093803,G BURLEY & SONS LTD,58236,64,34.78,GROUNDS MAINTENANCE,02/02/17,,Technical and Service Support,Works - Construction
800093803,G BURLEY & SONS LTD,58236,65,41.09,GROUNDS MAINTENANCE,02/02/17,,Technical and Service Support,Works - Construction
800093803,G BURLEY & SONS LTD,58236,66,21.77,GROUNDS MAINTENANCE,02/02/17,,Technical and Service Support,Works - Construction
800093803,G BURLEY & SONS LTD,58236,67,16.24,GROUNDS MAINTENANCE,02/02/17,,Technical and Service Support,Works - Construction
800093803,G BURLEY & SONS LTD,58236,68,22.71,GROUNDS MAINTENANCE,02/02/17,,Technical and Service Support,Works - Construction
800093803,G BURLEY & SONS LTD,58236,69,29.41,GROUNDS MAINTENANCE,02/02/17,,Technical and Service Support,Works - Construction
800093803,G BURLEY & SONS LTD,58236,70,11.84,GROUNDS MAINTENANCE,02/02/17,,Technical and Service Support,Works - Construction
800093803,G BURLEY & SONS LTD,58236,71,56.33,GROUNDS MAINTENANCE,02/02/17,,Technical and Service Support,Works - Construction
800093803,G BURLEY & SONS LTD,58236,72,6.51,GROUNDS MAINTENANCE,02/02/17,,Technical and Service Support,Works - Construction
800093803,G BURLEY & SONS LTD,58236,73,60.55,GROUNDS MAINTENANCE,02/02/17,,Technical and Service Support,Works - Construction
800093803,G BURLEY & SONS LTD,58236,74,3.76,PLANNED GROUNDS MAINTENANCE,02/02/17,,Technical and Service Support,Works - Construction
800093803,G BURLEY & SONS LTD,58236,75,16.92,GROUNDS MAINTENANCE,02/02/17,,Technical and Service Support,Works - Construction
800093803,G BURLEY & SONS LTD,58236,76,7.40,GROUNDS MAINTENANCE,02/02/17,,Technical and Service Support,Works - Construction
800093803,G BURLEY & SONS LTD,58236,77,16.41,GROUNDS MAINTENANCE,02/02/17,,Technical and Service Support,Works - Construction
800093803,G BURLEY & SONS LTD,58236,78,19.57,GROUNDS MAINTENANCE,02/02/17,,Technical and Service Support,Works - Construction
800093803,G BURLEY & SONS LTD,58236,79,22.28,GROUNDS MAINTENANCE,02/02/17,,Technical and Service Support,Works - Construction
800093803,G BURLEY & SONS LTD,58236,80,62.95,GROUNDS MAINTENANCE,02/02/17,,Technical and Service Support,Works - Construction
800093803,G BURLEY & SONS LTD,58236,81,3.24,PLANNED GROUNDS MAINTENANCE,02/02/17,,Technical and Service Support,Works - Construction
800093803,G BURLEY & SONS LTD,58236,82,99.29,GROUNDS MAINTENANCE,02/02/17,,Technical and Service Support,Works - Construction
800093803,G BURLEY & SONS LTD,58236,83,131.56,PLANNED GROUNDS MAINTENANCE,02/02/17,,Technical and Service Support,Works - Construction
800093803,G BURLEY & SONS LTD,58236,84,6.70,GROUNDS MAINTENANCE,02/02/17,,Technical and Service Support,Works - Construction
800093803,G BURLEY & SONS LTD,58236,85,30.14,GROUNDS MAINTENANCE,02/02/17,,Technical and Service Support,Works - Construction
800093803,G BURLEY & SONS LTD,58236,86,44.68,GROUNDS MAINTENANCE,02/02/17,,Technical and Service Support,Works - Construction
800093803,G BURLEY & SONS LTD,58236,87,27.57,GROUNDS MAINTENANCE,02/02/17,,Technical and Service Support,Works - Construction
800093803,G BURLEY & SONS LTD,58236,88,26.77,GROUNDS MAINTENANCE,02/02/17,,Technical and Service Support,Works - Construction
800093803,G BURLEY & SONS LTD,58236,89,51.99,GROUNDS MAINTENANCE,02/02/17,,Technical and Service Support,Works - Construction
800093803,G BURLEY & SONS LTD,58236,90,25.89,GROUNDS MAINTENANCE,02/02/17,,Technical and Service Support,Works - Construction
800093803,G BURLEY & SONS LTD,58236,91,52.09,GROUNDS MAINTENANCE,02/02/17,,Technical and Service Support,Works - Construction
800093803,G BURLEY & SONS LTD,58236,92,18.06,GROUNDS MAINTENANCE,02/02/17,,Technical and Service Support,Works - Construction
800093803,G BURLEY & SONS LTD,58236,93,25.09,GROUNDS MAINTENANCE,02/02/17,,Technical and Service Support,Works - Construction
800093803,G BURLEY & SONS LTD,58236,94,21.60,GROUNDS MAINTENANCE,02/02/17,,Technical and Service Support,Works - Construction
800093803,G BURLEY & SONS LTD,58236,95,55.46,GROUNDS MAINTENANCE,02/02/17,,Technical and Service Support,Works - Construction
800093803,G BURLEY & SONS LTD,58236,96,82.92,GROUNDS MAINTENANCE,02/02/17,,Technical and Service Support,Works - Construction
800093803,G BURLEY & SONS LTD,58236,97,34.06,GROUNDS MAINTENANCE,02/02/17,,Technical and Service Support,Works - Construction
800093803,G BURLEY & SONS LTD,58236,98,50.79,GROUNDS MAINTENANCE,02/02/17,,Technical and Service Support,Works - Construction
800093803,G BURLEY & SONS LTD,58236,99,122.43,GROUNDS MAINTENANCE,02/02/17,,Technical and Service Support,Works - Construction
800093803,G BURLEY & SONS LTD,58236,100,65.65,GROUNDS MAINTENANCE,02/02/17,,Technical and Service Support,Works - Construction
800093693,HAYS SPECIALIST RECRUITMENT,663210,1,524.30,FRS STAFF AGENCY,02/02/17,524.30,HR Management,Human Resources
800093725,HAYS SPECIALIST RECRUITMENT,663211,1,419.44,FRS STAFF AGENCY,02/02/17,419.44,HR Management,Human Resources
800093682,HAYS SPECIALIST RECRUITMENT,663212,1,895.40,FRS STAFF AGENCY,02/02/17,895.40,Procurement,Human Resources
800093684,HAYS SPECIALIST RECRUITMENT,663213,1,455.22,FRS STAFF AGENCY,02/02/17,455.22,Information Management,Human Resources
800093675,HAYS SPECIALIST RECRUITMENT,663214,1,419.44,FRS STAFF AGENCY,02/02/17,419.44,Fire Stations (South East),Human Resources
800093737,HAYS SPECIALIST RECRUITMENT,663215,1,419.44,FRS STAFF AGENCY,02/02/17,419.44,Fire Safety Regulation,Human Resources
800093668,HAYS SPECIALIST RECRUITMENT,663216,1,524.30,FRS STAFF AGENCY,02/02/17,524.30,Procurement,Human Resources
800093742,HAYS SPECIALIST RECRUITMENT,663217,1,508.90,FRS STAFF AGENCY,02/02/17,508.90,Fire Stations (South West),Human Resources
800093705,HAYS SPECIALIST RECRUITMENT,663218,1,"1,901.00",FRS STAFF AGENCY,02/02/17,"1,901.00",Procurement,Human Resources
800093702,HAYS SPECIALIST RECRUITMENT,663219,1,"1,182.61",FRS STAFF AGENCY,02/02/17,"1,182.61",Legal & Democratic Services,Human Resources
800093672,HAYS SPECIALIST RECRUITMENT,663220,1,533.05,FRS STAFF AGENCY,02/02/17,533.05,Fire Safety Regulation,Human Resources
800093729,HAYS SPECIALIST RECRUITMENT,663221,1,594.90,FRS STAFF AGENCY,02/02/17,594.90,Operational Resilience,Human Resources
800093741,HAYS SPECIALIST RECRUITMENT,663222,1,"1,121.05",FRS STAFF AGENCY,02/02/17,"1,121.05",Technical and Service Support,Human Resources
800093712,HAYS SPECIALIST RECRUITMENT,663223,1,403.95,FRS STAFF AGENCY,02/02/17,403.95,National Operational Guidance Project,Human Resources
800093700,HAYS SPECIALIST RECRUITMENT,663224,1,508.90,FRS STAFF AGENCY,02/02/17,508.90,Fire Safety Regulation,Human Resources
800093674,HAYS SPECIALIST RECRUITMENT,663225,1,"1,374.10",FRS STAFF AGENCY,02/02/17,"1,374.10",Legal & Democratic Services,Human Resources
800093687,HAYS SPECIALIST RECRUITMENT,663226,1,419.44,FRS STAFF AGENCY,02/02/17,419.44,Fire Safety Regulation,Human Resources
800093688,HAYS SPECIALIST RECRUITMENT,663227,1,524.30,FRS STAFF AGENCY,02/02/17,524.30,Fire Safety Regulation,Human Resources
800093719,HAYS SPECIALIST RECRUITMENT,663228,1,864.85,FRS STAFF AGENCY,02/02/17,864.85,Finance Services,Human Resources
800093736,HAYS SPECIALIST RECRUITMENT,663229,1,610.75,FRS STAFF AGENCY,02/02/17,610.75,Procurement,Human Resources
800093718,HAYS SPECIALIST RECRUITMENT,663230,1,632.84,FRS STAFF AGENCY,02/02/17,632.84,Operational Response,Human Resources
800093743,HAYS SPECIALIST RECRUITMENT,663231,1,811.56,FRS STAFF AGENCY,02/02/17,811.56,Technical and Service Support,Human Resources
800093673,HAYS SPECIALIST RECRUITMENT,663232,1,"1,545.12",FRS STAFF AGENCY,02/02/17,"1,545.12",Legal & Democratic Services,Human Resources
800093739,HAYS SPECIALIST RECRUITMENT,663233,1,524.30,FRS STAFF AGENCY,02/02/17,524.30,Fire Safety Regulation,Human Resources
800093708,HAYS SPECIALIST RECRUITMENT,663234,1,607.95,FRS STAFF AGENCY,02/02/17,607.95,Fire Safety Regulation,Human Resources
800093678,HAYS SPECIALIST RECRUITMENT,663236,1,524.30,FRS STAFF AGENCY,02/02/17,524.30,Fire Safety Regulation,Human Resources
800093669,HAYS SPECIALIST RECRUITMENT,663238,1,880.80,FRS STAFF AGENCY,02/02/17,880.80,Review of Property Services,Human Resources
800093710,HAYS SPECIALIST RECRUITMENT,663239,1,524.30,FRS STAFF AGENCY,02/02/17,524.30,Fire Safety Regulation,Human Resources
800093709,HAYS SPECIALIST RECRUITMENT,663240,1,649.76,FRS STAFF AGENCY,02/02/17,649.76,Information and Communication Technology,Human Resources
800093706,HAYS SPECIALIST RECRUITMENT,663241,1,723.10,FRS STAFF AGENCY,02/02/17,723.10,Information and Communication Technology,Human Resources
800093724,HAYS SPECIALIST RECRUITMENT,663242,1,524.30,FRS STAFF AGENCY,02/02/17,524.30,Fire Safety Regulation,Human Resources
800093676,HAYS SPECIALIST RECRUITMENT,663243,1,733.60,FRS STAFF AGENCY,02/02/17,733.60,Information and Communication Technology,Human Resources
800093727,HAYS SPECIALIST RECRUITMENT,663244,1,419.44,FRS STAFF AGENCY,02/02/17,419.44,HR Management,Human Resources
800093701,HAYS SPECIALIST RECRUITMENT,663245,1,895.40,FRS STAFF AGENCY,02/02/17,895.40,National Operational Guidance Project,Human Resources
800093704,HAYS SPECIALIST RECRUITMENT,663246,1,572.58,FRS STAFF AGENCY,02/02/17,572.58,Central Operations,Human Resources
800093703,HAYS SPECIALIST RECRUITMENT,663247,1,707.70,FRS STAFF AGENCY,02/02/17,707.70,Exercise Unified Response,Human Resources
800093738,HAYS SPECIALIST RECRUITMENT,663249,1,400.58,FRS STAFF AGENCY,02/02/17,400.58,National Operational Guidance Project,Human Resources
800093683,HAYS SPECIALIST RECRUITMENT,663250,1,"1,068.55",FRS STAFF AGENCY,02/02/17,"1,068.55",Technical and Service Support,Human Resources
800093740,HAYS SPECIALIST RECRUITMENT,663251,1,610.75,FRS STAFF AGENCY,02/02/17,610.75,Fire Safety Regulation,Human Resources
800093717,HAYS SPECIALIST RECRUITMENT,663252,1,305.34,FRS STAFF AGENCY,02/02/17,305.34,Fire Stations (North East),Human Resources
800093699,HAYS SPECIALIST RECRUITMENT,663253,1,614.60,FRS STAFF AGENCY,02/02/17,614.60,HR Management,Human Resources
800093723,HAYS SPECIALIST RECRUITMENT,663254,1,392.56,FRS STAFF AGENCY,02/02/17,392.56,Operational Resilience,Human Resources
800093721,HAYS SPECIALIST RECRUITMENT,663255,1,419.71,FRS STAFF AGENCY,02/02/17,419.71,National Operational Guidance Project,Human Resources
800093734,HAYS SPECIALIST RECRUITMENT,663256,1,419.44,FRS STAFF AGENCY,02/02/17,419.44,Fire Safety Regulation,Human Resources
800093695,HAYS SPECIALIST RECRUITMENT,663257,1,"1,322.76",FRS STAFF AGENCY,02/02/17,"1,322.76",Procurement,Human Resources
800093714,HAYS SPECIALIST RECRUITMENT,663258,1,733.60,FRS STAFF AGENCY,02/02/17,733.60,Information and Communication Technology,Human Resources
800093697,HAYS SPECIALIST RECRUITMENT,663259,1,491.68,FRS STAFF AGENCY,02/02/17,491.68,Fire Safety Regulation,Human Resources
800093733,HAYS SPECIALIST RECRUITMENT,663260,1,526.05,FRS STAFF AGENCY,02/02/17,526.05,Technical and Service Support,Human Resources
800093679,HAYS SPECIALIST RECRUITMENT,663261,1,723.10,FRS STAFF AGENCY,02/02/17,723.10,Information and Communication Technology,Human Resources
800093691,HAYS SPECIALIST RECRUITMENT,663262,1,"2,288.86",FRS STAFF AGENCY,02/02/17,"2,288.86",Technical and Service Support,Human Resources
800093713,HAYS SPECIALIST RECRUITMENT,663265,1,524.30,FRS STAFF AGENCY,02/02/17,524.30,Fire Safety Regulation,Human Resources
800093685,HAYS SPECIALIST RECRUITMENT,663266,1,419.44,FRS STAFF AGENCY,02/02/17,419.44,HR Management,Human Resources
800093730,HAYS SPECIALIST RECRUITMENT,663267,1,616.00,FRS STAFF AGENCY,02/02/17,616.00,Information and Communication Technology,Human Resources
800093690,HAYS SPECIALIST RECRUITMENT,663268,1,467.48,FRS STAFF AGENCY,02/02/17,467.48,Fire Stations (South West),Human Resources
800093671,HAYS SPECIALIST RECRUITMENT,663269,1,524.30,FRS STAFF AGENCY,02/02/17,524.30,Fire Safety Regulation,Human Resources
800093731,HAYS SPECIALIST RECRUITMENT,663270,1,493.44,FRS STAFF AGENCY,02/02/17,493.44,Cadets,Human Resources
800093728,HAYS SPECIALIST RECRUITMENT,663271,1,"1,173.45",FRS STAFF AGENCY,02/02/17,"1,173.45",Legal & Democratic Services,Human Resources
800093716,HAYS SPECIALIST RECRUITMENT,663272,1,293.94,FRS STAFF AGENCY,02/02/17,293.94,Fire Safety Regulation,Human Resources
800093689,HAYS SPECIALIST RECRUITMENT,663273,1,"1,042.44",FRS STAFF AGENCY,02/02/17,"1,042.44",Information and Communication Technology,Human Resources
800093696,HAYS SPECIALIST RECRUITMENT,663275,1,476.84,FRS STAFF AGENCY,02/02/17,476.84,Information Management,Human Resources
800093722,HAYS SPECIALIST RECRUITMENT,663276,1,"2,575.20",FRS STAFF AGENCY,02/02/17,"2,575.20",Legal & Democratic Services,Human Resources
800093707,HAYS SPECIALIST RECRUITMENT,663277,1,635.10,FRS STAFF AGENCY,02/02/17,635.10,Operational Policy,Human Resources
800093680,HAYS SPECIALIST RECRUITMENT,663278,1,524.30,FRS STAFF AGENCY,02/02/17,524.30,Fire Safety Regulation,Human Resources
800093726,HAYS SPECIALIST RECRUITMENT,663279,1,524.30,FRS STAFF AGENCY,02/02/17,524.30,Fire Safety Regulation,Human Resources
800093681,HAYS SPECIALIST RECRUITMENT,663280,1,775.00,FRS STAFF AGENCY,02/02/17,775.00,National Operational Guidance Project,Human Resources
800093715,HAYS SPECIALIST RECRUITMENT,663282,1,508.90,FRS STAFF AGENCY,02/02/17,508.90,Legal & Democratic Services,Human Resources
800093677,HAYS SPECIALIST RECRUITMENT,663283,1,"1,076.60",FRS STAFF AGENCY,02/02/17,"1,076.60",Development and Training,Human Resources
800093692,HAYS SPECIALIST RECRUITMENT,663284,1,480.48,FRS STAFF AGENCY,02/02/17,480.48,Central Operations,Human Resources
800093694,HAYS SPECIALIST RECRUITMENT,663285,1,607.95,FRS STAFF AGENCY,02/02/17,607.95,Fire Stations (South West),Human Resources
800093698,HAYS SPECIALIST RECRUITMENT,663286,1,751.90,FRS STAFF AGENCY,02/02/17,751.90,Information Management,Human Resources
800093764,HAYS SPECIALIST RECRUITMENT,663287,1,419.44,FRS STAFF AGENCY,02/02/17,419.44,Fire Stations (South East),Human Resources
800093786,HAYS SPECIALIST RECRUITMENT,663288,1,419.44,FRS STAFF AGENCY,02/02/17,419.44,Fire Safety Regulation,Human Resources
800093773,HAYS SPECIALIST RECRUITMENT,663289,1,419.44,FRS STAFF AGENCY,02/02/17,419.44,Procurement,Human Resources
800093777,HAYS SPECIALIST RECRUITMENT,663290,1,261.72,FRS STAFF AGENCY,02/02/17,261.72,Fire Stations (South West),Human Resources
800093787,HAYS SPECIALIST RECRUITMENT,663291,1,426.44,FRS STAFF AGENCY,02/02/17,426.44,Fire Safety Regulation,Human Resources
800093789,HAYS SPECIALIST RECRUITMENT,663292,1,793.20,FRS STAFF AGENCY,02/02/17,793.20,Operational Resilience,Human Resources
800093751,HAYS SPECIALIST RECRUITMENT,663293,1,896.84,FRS STAFF AGENCY,02/02/17,896.84,Technical and Service Support,Human Resources
800093772,HAYS SPECIALIST RECRUITMENT,663294,1,407.12,FRS STAFF AGENCY,02/02/17,407.12,Fire Safety Regulation,Human Resources
800093755,HAYS SPECIALIST RECRUITMENT,663295,1,"1,374.10",FRS STAFF AGENCY,02/02/17,"1,374.10",Legal & Democratic Services,Human Resources
800093758,HAYS SPECIALIST RECRUITMENT,663296,1,389.48,FRS STAFF AGENCY,02/02/17,389.48,Fire Safety Regulation,Human Resources
800093744,HAYS SPECIALIST RECRUITMENT,663297,1,419.44,FRS STAFF AGENCY,02/02/17,419.44,Fire Safety Regulation,Human Resources
800093782,HAYS SPECIALIST RECRUITMENT,663298,1,691.88,FRS STAFF AGENCY,02/02/17,691.88,Finance Services,Human Resources
800093779,HAYS SPECIALIST RECRUITMENT,663299,1,647.91,FRS STAFF AGENCY,02/02/17,647.91,Operational Response,Human Resources
800093771,HAYS SPECIALIST RECRUITMENT,663300,1,716.08,FRS STAFF AGENCY,02/02/17,716.08,Technical and Service Support,Human Resources
800093784,HAYS SPECIALIST RECRUITMENT,663302,1,486.36,FRS STAFF AGENCY,02/02/17,486.36,Fire Safety Regulation,Human Resources
800093770,HAYS SPECIALIST RECRUITMENT,663303,1,524.30,FRS STAFF AGENCY,02/02/17,524.30,Procurement,Human Resources
800093757,HAYS SPECIALIST RECRUITMENT,663304,1,419.44,FRS STAFF AGENCY,02/02/17,419.44,Fire Safety Regulation,Human Resources
800093753,HAYS SPECIALIST RECRUITMENT,663305,1,924.84,FRS STAFF AGENCY,02/02/17,924.84,Review of Property Services,Human Resources
800093756,HAYS SPECIALIST RECRUITMENT,663306,1,419.44,FRS STAFF AGENCY,02/02/17,419.44,Fire Safety Regulation,Human Resources
800093765,HAYS SPECIALIST RECRUITMENT,663307,1,578.48,FRS STAFF AGENCY,02/02/17,578.48,Information and Communication Technology,Human Resources
800093749,HAYS SPECIALIST RECRUITMENT,663308,1,419.44,FRS STAFF AGENCY,02/02/17,419.44,Fire Safety Regulation,Human Resources
800093769,HAYS SPECIALIST RECRUITMENT,663309,1,440.16,FRS STAFF AGENCY,02/02/17,440.16,Information and Communication Technology,Human Resources
800093745,HAYS SPECIALIST RECRUITMENT,663310,1,447.70,FRS STAFF AGENCY,02/02/17,447.70,National Operational Guidance Project,Human Resources
800093752,HAYS SPECIALIST RECRUITMENT,663311,1,562.52,FRS STAFF AGENCY,02/02/17,562.52,Central Operations,Human Resources
800093774,HAYS SPECIALIST RECRUITMENT,663312,1,854.84,FRS STAFF AGENCY,02/02/17,854.84,Technical and Service Support,Human Resources
800093783,HAYS SPECIALIST RECRUITMENT,663313,1,366.45,FRS STAFF AGENCY,02/02/17,366.45,Fire Safety Regulation,Human Resources
800093762,HAYS SPECIALIST RECRUITMENT,663314,1,407.12,FRS STAFF AGENCY,02/02/17,407.12,Fire Stations (North East),Human Resources
800093763,HAYS SPECIALIST RECRUITMENT,663315,1,785.12,FRS STAFF AGENCY,02/02/17,785.12,Operational Resilience,Human Resources
800093748,HAYS SPECIALIST RECRUITMENT,663317,1,491.68,FRS STAFF AGENCY,02/02/17,491.68,Fire Safety Regulation,Human Resources
800093785,HAYS SPECIALIST RECRUITMENT,663318,1,701.40,FRS STAFF AGENCY,02/02/17,701.40,Technical and Service Support,Human Resources
800093791,HAYS SPECIALIST RECRUITMENT,663319,1,"1,299.35",FRS STAFF AGENCY,02/02/17,"1,299.35",Technical and Service Support,Human Resources
800093754,HAYS SPECIALIST RECRUITMENT,663321,1,314.58,FRS STAFF AGENCY,02/02/17,314.58,Fire Safety Regulation,Human Resources
800093761,HAYS SPECIALIST RECRUITMENT,663322,1,492.80,FRS STAFF AGENCY,02/02/17,492.80,Information and Communication Technology,Human Resources
800093775,HAYS SPECIALIST RECRUITMENT,663323,1,422.24,FRS STAFF AGENCY,02/02/17,422.24,Fire Stations (South West),Human Resources
800093760,HAYS SPECIALIST RECRUITMENT,663324,1,419.44,FRS STAFF AGENCY,02/02/17,419.44,Fire Safety Regulation,Human Resources
800093768,HAYS SPECIALIST RECRUITMENT,663325,1,440.91,FRS STAFF AGENCY,02/02/17,440.91,Fire Safety Regulation,Human Resources
800093781,HAYS SPECIALIST RECRUITMENT,663326,1,"1,042.44",FRS STAFF AGENCY,02/02/17,"1,042.44",Information and Communication Technology,Human Resources
800093788,HAYS SPECIALIST RECRUITMENT,663327,1,508.08,FRS STAFF AGENCY,02/02/17,508.08,Operational Policy,Human Resources
800093750,HAYS SPECIALIST RECRUITMENT,663328,1,419.44,FRS STAFF AGENCY,02/02/17,419.44,Fire Safety Regulation,Human Resources
800093747,HAYS SPECIALIST RECRUITMENT,663329,1,314.58,FRS STAFF AGENCY,02/02/17,314.58,Fire Safety Regulation,Human Resources
800093780,HAYS SPECIALIST RECRUITMENT,663330,1,349.12,FRS STAFF AGENCY,02/02/17,349.12,Technical and Service Support,Human Resources
800093776,HAYS SPECIALIST RECRUITMENT,663331,1,407.12,FRS STAFF AGENCY,02/02/17,407.12,Legal & Democratic Services,Human Resources
800093778,HAYS SPECIALIST RECRUITMENT,663332,1,861.28,FRS STAFF AGENCY,02/02/17,861.28,Development and Training,Human Resources
800093759,HAYS SPECIALIST RECRUITMENT,663333,1,486.36,FRS STAFF AGENCY,02/02/17,486.36,Fire Stations (South West),Human Resources
800093790,HAYS SPECIALIST RECRUITMENT,663334,1,593.04,FRS STAFF AGENCY,02/02/17,593.04,Information Management,Human Resources
190117K,ANGUS FIRE LIMITED,8037085,1,"4,548.60",OPERATIONAL EQUIP-PURCHASE,02/02/17,"4,548.60",Technical and Service Support,Fire & Rescue
800094172,G4S FIRE & SECURITY SYSTEMS UK,906294,1,619.59,REACTIVE APPLIANCE BAY DOORS,02/02/17,619.59,Technical and Service Support,Facilities & Management S
800094177,G4S FIRE & SECURITY SYSTEMS UK,908521,1,300.00,REACTIVE APPLIANCE BAY DOORS,02/02/17,300.00,Technical and Service Support,Facilities & Management S
260117F,PITNEY BOWES PURCHASE POWER,BE334428,1,"4,040.00",POSTAL SERVICES,02/02/17,"4,040.00",Information Management,Mail Services
260117F,NCC SERVICES LTD,E946489,1,930.00,MAINTENANCE & SUPPORT,02/02/17,930.00,Information and Communication Technology,ICT
800093795,INTERSERVE ( FACILITIES MGMT),FMANFI3658,1,"18,298.01",PLANNED CLEANING,02/02/17,"41,488.20",Technical and Service Support,Cleaning & Janitorial
800093795,INTERSERVE ( FACILITIES MGMT),FMANFI3658,2,"23,190.19",PLANNED CLEANING,02/02/17,,Technical and Service Support,Cleaning & Janitorial
200117K,HALL FUELS,I08992379,1,"2,879.40",FUEL,02/02/17,"2,879.40",Fire Stations (South East),Vehicle Management
160117K,MOTT MACDONALD============,IN00358357,1,"2,550.00",GENERAL,02/02/17,"2,550.00",Operational Response,Consultancy
250117G,CAPITA BUSINESS SERVICES LTD==,INV-40487,1,526.40,PROFESSIONAL DEVELOPMENT,02/02/17,526.40,Information Management,ICT
180117F,SOFTCAT LIMITED,INV01535384,1,324.80,ACQUISITIONS,02/02/17,332.30,National Operational Guidance Project,ICT
180117F,SOFTCAT LIMITED,INV01535384,2,7.50,ADDITIONAL PURCHASE COSTS,02/02/17,,National Operational Guidance Project,ICT
260117F,HUMANTECHNICS LTD,INV1660,1,"2,495.00",PROFESSIONAL DEVELOPMENT,02/02/17,"2,495.00",Fire Safety Regulation,Human Resources
141757,THE KITTLE PARTNERSHIP LTD====,K649,1,"9,250.00",OTHER EXPERTS FEES,02/02/17,"9,250.00",Compensation Budgets,Legal Services
141757,LPFA CONTRIBUTIONS ACCOUNT====,LPFA1095,1,550.00,LOCAL GOVT PENSION SCHEME PAYM,02/02/17,550.00,Central Finance,Financial Services
300117F,ETC VENUES LTD================,PH-144798,1,424.00,HIRE OF FACILITIES,02/02/17,424.00,National Operational Guidance Project,Facilities & Management S
260117F,RADIOCOMS SYSTEMS LIMITED,RSLSI16006616,1,"4,430.00",RADIO,02/02/17,"4,440.00",Information and Communication Technology,ICT
260117F,RADIOCOMS SYSTEMS LIMITED,RSLSI16006616,2,10.00,RADIO,02/02/17,,Information and Communication Technology,ICT
260117F,WASTE ACTION RESOURCE,SI-370,1,"2,200.00",SUBSCRIPTIONS,02/02/17,"2,200.00",Procurement,Environmental Services
200117K,BABCOCK CRITICAL SERVICES LTD,SMAI002421,1,"8,316.32",PURCHASES-VEHICLES,02/02/17,"8,316.32",Procurement,Consultancy
230117K,BABCOCK CRITICAL SERVICES LTD,SMAI002450,1,"160,800.00",PURCHASES-VEHICLES,02/02/17,"160,800.00",Procurement,Consultancy
010217G,GOVNET COMMUNICATIONS=========,0000114456,1,774.00,PROFESSIONAL DEVELOPMENT,06/02/17,774.00,Information Management,Human Resources
310117G,GOVNET COMMUNICATIONS=========,0000114729,1,385.00,PROFESSIONAL DEVELOPMENT,06/02/17,385.00,Finance Services,Human Resources
010217G,MOOLANDS LTD,00007129,1,420.00,TACTICAL DAY TO DAY,06/02/17,"4,935.00",Technical and Service Support,"Works - Construction, R&M"
010217G,MOOLANDS LTD,00007129,2,775.00,TACTICAL DAY TO DAY,06/02/17,,Technical and Service Support,"Works - Construction, R&M"
010217G,MOOLANDS LTD,00007129,3,775.00,TACTICAL DAY TO DAY,06/02/17,,Technical and Service Support,"Works - Construction, R&M"
010217G,MOOLANDS LTD,00007129,4,825.00,TACTICAL DAY TO DAY,06/02/17,,Technical and Service Support,"Works - Construction, R&M"
010217G,MOOLANDS LTD,00007129,5,825.00,TACTICAL DAY TO DAY,06/02/17,,Technical and Service Support,"Works - Construction, R&M"
010217G,MOOLANDS LTD,00007129,6,725.00,TACTICAL DAY TO DAY,06/02/17,,Technical and Service Support,"Works - Construction, R&M"
010217G,MOOLANDS LTD,00007129,7,590.00,TACTICAL DAY TO DAY,06/02/17,,Technical and Service Support,"Works - Construction, R&M"
010217G,LAWRIE (J.G) CONSULTING,01/17,1,"1,325.42",PROFESSIONAL DEVELOPMENT,06/02/17,"1,325.42",Central Finance,Legal Services
310117G,HELEN BARTIMOTE,0607,1,"3,800.00",CONSULTANTS,06/02/17,"3,800.00",HR Management,Consultancy
010217G,*HUNTER APPAREL SOLUTIONS LTD,067665,1,150.00,CLOTHING,06/02/17,788.53,Fire Stations (South East),Clothing
010217G,*HUNTER APPAREL SOLUTIONS LTD,067665,2,7.64,CLOTHING,06/02/17,,Fire Stations (North East),Clothing
010217G,*HUNTER APPAREL SOLUTIONS LTD,067665,3,7.64,CLOTHING,06/02/17,,Fire Stations (North East),Clothing
010217G,*HUNTER APPAREL SOLUTIONS LTD,067665,4,7.64,CLOTHING,06/02/17,,Fire Stations (North East),Clothing
010217G,*HUNTER APPAREL SOLUTIONS LTD,067665,5,7.64,CLOTHING,06/02/17,,Fire Stations (North East),Clothing
010217G,*HUNTER APPAREL SOLUTIONS LTD,067665,6,7.64,CLOTHING,06/02/17,,Fire Stations (South East),Clothing
010217G,*HUNTER APPAREL SOLUTIONS LTD,067665,7,7.64,CLOTHING,06/02/17,,Fire Stations (North West),Clothing
010217G,*HUNTER APPAREL SOLUTIONS LTD,067665,8,15.28,CLOTHING,06/02/17,,Fire Stations (North West),Clothing
010217G,*HUNTER APPAREL SOLUTIONS LTD,067665,9,22.92,CLOTHING,06/02/17,,Fire Stations (North West),Clothing
010217G,*HUNTER APPAREL SOLUTIONS LTD,067665,10,19.08,CLOTHING,06/02/17,,CBRN RRT,Clothing
010217G,*HUNTER APPAREL SOLUTIONS LTD,067665,11,7.64,CLOTHING,06/02/17,,CBRN RRT,Clothing
010217G,*HUNTER APPAREL SOLUTIONS LTD,067665,12,11.70,CLOTHING,06/02/17,,Operational Policy,Clothing
010217G,*HUNTER APPAREL SOLUTIONS LTD,067665,13,6.90,CLOTHING,06/02/17,,Operational Policy,Clothing
010217G,*HUNTER APPAREL SOLUTIONS LTD,067665,14,7.64,CLOTHING,06/02/17,,Fire Stations (North West),Clothing
010217G,*HUNTER APPAREL SOLUTIONS LTD,067665,15,7.64,CLOTHING,06/02/17,,Fire Stations (North East),Clothing
010217G,*HUNTER APPAREL SOLUTIONS LTD,067665,16,7.64,CLOTHING,06/02/17,,Fire Stations (South East),Clothing
010217G,*HUNTER APPAREL SOLUTIONS LTD,067665,17,7.64,CLOTHING,06/02/17,,Fire Stations (North East),Clothing
010217G,*HUNTER APPAREL SOLUTIONS LTD,067665,18,7.64,CLOTHING,06/02/17,,Fire Stations (North East),Clothing
010217G,*HUNTER APPAREL SOLUTIONS LTD,067665,19,15.28,CLOTHING,06/02/17,,Fire Stations (North West),Clothing
010217G,*HUNTER APPAREL SOLUTIONS LTD,067665,20,7.64,CLOTHING,06/02/17,,Fire Stations (South West),Clothing
010217G,*HUNTER APPAREL SOLUTIONS LTD,067665,21,19.08,CLOTHING,06/02/17,,Fire Stations (South West),Clothing
010217G,*HUNTER APPAREL SOLUTIONS LTD,067665,22,19.08,CLOTHING,06/02/17,,Fire Stations (North East),Clothing
010217G,*HUNTER APPAREL SOLUTIONS LTD,067665,23,22.92,CLOTHING,06/02/17,,Fire Stations (South West),Clothing
010217G,*HUNTER APPAREL SOLUTIONS LTD,067665,24,25.44,CLOTHING,06/02/17,,Fire Stations (South West),Clothing
010217G,*HUNTER APPAREL SOLUTIONS LTD,067665,25,7.64,CLOTHING,06/02/17,,Fire Stations (North East),Clothing
010217G,*HUNTER APPAREL SOLUTIONS LTD,067665,26,7.64,CLOTHING,06/02/17,,Fire Stations (North West),Clothing
010217G,*HUNTER APPAREL SOLUTIONS LTD,067665,27,7.64,CLOTHING,06/02/17,,Fire Stations (South West),Clothing
010217G,*HUNTER APPAREL SOLUTIONS LTD,067665,28,7.64,CLOTHING,06/02/17,,Fire Stations (South West),Clothing
010217G,*HUNTER APPAREL SOLUTIONS LTD,067665,29,19.08,CLOTHING,06/02/17,,Fire Stations (North West),Clothing
010217G,*HUNTER APPAREL SOLUTIONS LTD,067665,30,19.08,CLOTHING,06/02/17,,Fire Stations (North West),Clothing
010217G,*HUNTER APPAREL SOLUTIONS LTD,067665,31,25.44,CLOTHING,06/02/17,,Fire Stations (North East),Clothing
010217G,*HUNTER APPAREL SOLUTIONS LTD,067665,32,15.28,CLOTHING,06/02/17,,Fire Stations (North West),Clothing
010217G,*HUNTER APPAREL SOLUTIONS LTD,067665,33,15.28,CLOTHING,06/02/17,,Fire Stations (North West),Clothing
010217G,*HUNTER APPAREL SOLUTIONS LTD,067665,34,19.08,CLOTHING,06/02/17,,Fire Stations (North East),Clothing
010217G,*HUNTER APPAREL SOLUTIONS LTD,067665,35,15.28,CLOTHING,06/02/17,,Fire Stations (North East),Clothing
010217G,*HUNTER APPAREL SOLUTIONS LTD,067665,36,19.08,CLOTHING,06/02/17,,Fire Stations (North East),Clothing
010217G,*HUNTER APPAREL SOLUTIONS LTD,067665,37,15.28,CLOTHING,06/02/17,,Fire Stations (South East),Clothing
010217G,*HUNTER APPAREL SOLUTIONS LTD,067665,38,17.55,CLOTHING,06/02/17,,Fire Stations (North West),Clothing
010217G,*HUNTER APPAREL SOLUTIONS LTD,067665,39,20.70,CLOTHING,06/02/17,,Fire Stations (North West),Clothing
010217G,*HUNTER APPAREL SOLUTIONS LTD,067665,40,7.64,CLOTHING,06/02/17,,Fire Stations (North East),Clothing
010217G,*HUNTER APPAREL SOLUTIONS LTD,067665,41,7.64,CLOTHING,06/02/17,,Fire Stations (North East),Clothing
010217G,*HUNTER APPAREL SOLUTIONS LTD,067665,42,19.08,CLOTHING,06/02/17,,Fire Stations (North East),Clothing
010217G,*HUNTER APPAREL SOLUTIONS LTD,067665,43,22.92,CLOTHING,06/02/17,,Fire Stations (North West),Clothing
010217G,*HUNTER APPAREL SOLUTIONS LTD,067665,44,15.28,CLOTHING,06/02/17,,Fire Stations (South West),Clothing
010217G,*HUNTER APPAREL SOLUTIONS LTD,067665,45,7.64,CLOTHING,06/02/17,,Fire Stations (North East),Clothing
010217G,*HUNTER APPAREL SOLUTIONS LTD,067665,46,19.08,CLOTHING,06/02/17,,Fire Stations (North East),Clothing
010217G,*HUNTER APPAREL SOLUTIONS LTD,067665,47,22.92,CLOTHING,06/02/17,,Fire Stations (North East),Clothing
010217G,*HUNTER APPAREL SOLUTIONS LTD,067665,48,7.64,CLOTHING,06/02/17,,Fire Stations (North East),Clothing
250117G,AIRWAVE SOLUTIONS LTD,0941000028-24,1,"4,066.20",PURCHASE,06/02/17,"4,103.70",Information and Communication Technology,ICT
250117G,AIRWAVE SOLUTIONS LTD,0941000028-24,2,37.50,PURCHASE,06/02/17,,Information and Communication Technology,ICT
010217G,SOUTH WALES FIRE&RESCUE SERVIC,10001206,1,"1,240.76",PROFESSIONAL DEVELOPMENT,06/02/17,"1,240.76",Operational Policy,Human Resources
010217G,A.R.C.S. ENVIRONMENTAL LTD====,10683,1,540.00,DEVELOPMENT  EXPENSES-CONTRACT,06/02/17,540.00,Technical and Service Support,Environmental Services
310117G,*SPRUE SAFETY PRODUCTS LTD,1101401,1,"2,200.00",FIRE DETECTORS,06/02/17,"2,200.00",Fire Stations (North West),Health & Safety
010217G,INSTITUTION OF FIRE ENGINEERS=,1127952,1,"1,447.20",SUBSCRIPTIONS,06/02/17,"1,447.20",Fire Safety Regulation,Human Resources
010217G,BT GLOBAL SERVICES,1135960,1,541.66,TELECOMMUNICATIONS,06/02/17,541.66,Information and Communication Technology,ICT
141759,THAMES WATER UTILITIES LTD====,1295196012T,1,378.54,WATER & SEWERAGE RATES,06/02/17,378.54,Technical and Service Support,Utilities
010217G,RESPIREX,158581,1,"19,035.36",OPERATIONAL EQUIP-PURCHASE,06/02/17,"19,035.36",Gas Tight Suits,Clothing
010217G,RESPIREX,158582,1,"19,035.36",OPERATIONAL EQUIP-PURCHASE,06/02/17,"19,035.36",Gas Tight Suits,Clothing
010217G,RESPIREX,158657,1,"19,035.36",OPERATIONAL EQUIP-PURCHASE,06/02/17,"19,035.36",Gas Tight Suits,Clothing
010217G,RED ONE LIMITED,2116,1,"7,396.00",PROFESSIONAL DEVELOPMENT,06/02/17,"7,396.00",Operational Resilience,Human Resources
010217F,THORNS GROUP,221349/2,1,400.00,PUBLIC RELATIONS,06/02/17,764.00,Communications,Facilities & Management S
010217F,THORNS GROUP,221349/2,2,144.00,PUBLIC RELATIONS,06/02/17,,Communications,Facilities & Management S
010217F,THORNS GROUP,221349/2,3,100.00,PUBLIC RELATIONS,06/02/17,,Communications,Facilities & Management S
010217F,THORNS GROUP,221349/2,4,120.00,ADDITIONAL PURCHASE COSTS,06/02/17,,Communications,Facilities & Management S
141759,MISS BO-EUN JUNG==============,233362F,1,420.00,PROFESSIONAL FEES ENFORCEMENT,06/02/17,420.00,Legal & Democratic Services,Legal Services
141759,THAMES WATER UTILITIES LTD====,2406058171O,1,867.84,WATER & SEWERAGE RATES,06/02/17,867.84,Technical and Service Support,Utilities
010217G,AECOM INFRASTRUCTURE &,28285440,1,"2,947.29",PLANNED BUILDING DECORATIONS,06/02/17,"3,835.56",Technical and Service Support,Consultancy
010217G,AECOM INFRASTRUCTURE &,28285440,2,888.27,PLANNED BUILDING DECORATIONS,06/02/17,,Technical and Service Support,Consultancy
010217G,GRADIENT CONSULTANTS LLP======,2837,1,245.00,PLANNED ASBESTOS,06/02/17,922.50,Technical and Service Support,"Works - Construction, R&M"
010217G,GRADIENT CONSULTANTS LLP======,2837,2,245.00,PLANNED ASBESTOS,06/02/17,,Technical and Service Support,"Works - Construction, R&M"
010217G,GRADIENT CONSULTANTS LLP======,2837,3,245.00,PLANNED ASBESTOS,06/02/17,,Technical and Service Support,"Works - Construction, R&M"
010217G,GRADIENT CONSULTANTS LLP======,2837,4,187.50,PLANNED ASBESTOS,06/02/17,,Technical and Service Support,"Works - Construction, R&M"
010217G,DRAEGER SAFETY UK LIMITED,2910072276,1,"1,357.60",PROTECTIVE EQUIPT - PARTS,06/02/17,"1,357.60",Technical and Service Support,Fire & Rescue
010217G,B NOKES CONTRACTS LTD,3384,1,360.00,PLANNED BUILDING DECORATIONS,06/02/17,360.00,Technical and Service Support,"Works - Construction, R&M"
010217G,B NOKES CONTRACTS LTD,3396,1,"6,697.00",REACTIVE SMALL WORKS AND PROJ,06/02/17,"6,697.00",Technical and Service Support,"Works - Construction, R&M"
010217G,B NOKES CONTRACTS LTD,3397,1,"22,314.28",DEVELOPMENT  EXPENSES-CONTRACT,06/02/17,"59,973.30",Technical and Service Support,"Works - Construction, R&M"
010217G,B NOKES CONTRACTS LTD,3397,2,"37,659.02",DEVELOPMENT  EXPENSES-CONTRACT,06/02/17,,Technical and Service Support,"Works - Construction, R&M"
010217G,PANLOGIC LTD,3797/3825,1,"22,656.80",MAINTENANCE & SUPPORT,06/02/17,"22,656.80",National Operational Guidance Project,ICT
010217G,BT GLOBAL SERVICES,432178,1,"1,838.85",TELECOMMUNICATIONS,06/02/17,"1,838.85",Information and Communication Technology,ICT
800094266,*BURLINGTON UNIFORMS LTD,465562,1,91.20,UNIFORMS - POMS,06/02/17,"1,540.00",Procurement,Clothing
800094266,*BURLINGTON UNIFORMS LTD,465562,2,"1,368.00",UNIFORMS - POMS,06/02/17,,Procurement,Clothing
800094266,*BURLINGTON UNIFORMS LTD,465562,3,80.80,UNIFORMS - POMS,06/02/17,,Procurement,Clothing
010217G,DEALERSHIP SERVICES LTD,4993,1,414.00,CLOTHING,06/02/17,414.00,Cadets,Clothing
300117F,THE HEIGHTEC GROUP LTD========,54971,1,"1,169.65",PROTECTIVE EQUIPMENT,06/02/17,"1,169.65",Technical and Service Support,Fire & Rescue
230117K,UNIFY,6000884932,1,"9,328.50",MAINTENANCE & SUPPORT,06/02/17,"9,328.50",Information and Communication Technology,ICT
141759,LOCAL GOVERNMENT ASSOCIATION==,6025552,2,"11,695.58",COUNSELS FEES,06/02/17,"11,695.58",Compensation Budgets,Financial Services
141759,NWG BUSINESS LIMITED,603455300010V,1,641.59,WATER & SEWERAGE RATES,06/02/17,641.59,Technical and Service Support,Utilities
141759,THAMES WATER UTILITIES LTD====,6069175066O,1,"2,226.08",WATER & SEWERAGE RATES,06/02/17,"2,226.08",Technical and Service Support,Utilities
010217G,CONTRACT CATERING CONSULTANTS=,6420,1,500.00,CONSULTANTS,06/02/17,500.00,Technical and Service Support,Catering
010217G,TRY & LILLY LTD===============,70152,1,305.43,UNIFORMS - POMS,06/02/17,305.43,Procurement,Clothing
010217G,SHARPE PRITCHARD==============,86795,1,450.00,DISPOSAL COSTS-ESTATES AGENTS,06/02/17,450.00,Technical and Service Support,Legal Services
010217G,BANNER GROUP LIMITED,8714988,1,390.00,PUBLIC RELATIONS,06/02/17,"3,249.50",Community Safety Delivery,ICT
010217G,BANNER GROUP LIMITED,8714988,2,468.50,PUBLIC RELATIONS,06/02/17,,Community Safety Delivery,ICT
010217G,BANNER GROUP LIMITED,8714988,3,361.00,PUBLIC RELATIONS,06/02/17,,Community Safety Delivery,ICT
010217G,BANNER GROUP LIMITED,8714988,4,"1,440.00",PUBLIC RELATIONS,06/02/17,,Community Safety Delivery,ICT
010217G,BANNER GROUP LIMITED,8714988,5,590.00,PUBLIC RELATIONS,06/02/17,,Community Safety Delivery,ICT
250117G,SHEILA PANTRY ASSOCIATES LTD==,885A/2017,1,840.00,BOOKS & JOURNALS,06/02/17,840.00,Information Management,Education
010217G,ASTEC SURVEYS LIMITED=========,ASL-16-252,1,"2,025.00",PLANNED ASBESTOS,06/02/17,"2,025.00",Technical and Service Support,Environmental Services
701721,THAMES WATER UTILITIES LTD====,CBA1502719,1,477.00,CURRENT HYDRANT COSTS,06/02/17,477.00,Operational Resilience,Utilities
701721,THAMES WATER UTILITIES LTD====,CBA1509572,1,"1,111.00",CURRENT HYDRANT COSTS,06/02/17,"1,111.00",Operational Resilience,Utilities
141759,NOTTING HILL HOUSING TRUST,CSIF093,1,"16,353.00",FIRE AUTHS GRANT PAYMENTS,06/02/17,"16,353.00",Community Safety Investment Fund,HOUSING MANAGEMENT
310117G,E&S B DAVIS LTD,DAV/65011,1,295.00,OPERATIONAL EQUIP-PURCHASE,06/02/17,295.00,Fire Stations (South East),Environmental Services
310117G,E&S B DAVIS LTD,DAV/65190,1,295.00,OPERATIONAL EQUIP-PURCHASE,06/02/17,295.00,Fire Stations (North East),Environmental Services
310117G,E&S B DAVIS LTD,DAV/65318,1,295.00,OPERATIONAL EQUIP-PURCHASE,06/02/17,295.00,Fire Stations (North East),Environmental Services
310117G,E&S B DAVIS LTD,DAV/65795,1,295.00,OPERATIONAL EQUIP-PURCHASE,06/02/17,295.00,Fire Stations (South West),Environmental Services
310117G,E&S B DAVIS LTD,DAV/65937,1,295.00,OPERATIONAL EQUIP-PURCHASE,06/02/17,295.00,Fire Stations (North East),Environmental Services
310117G,E&S B DAVIS LTD,DAV/65938,1,295.00,OPERATIONAL EQUIP-PURCHASE,06/02/17,295.00,Fire Stations (North East),Environmental Services
310117G,E&S B DAVIS LTD,DAV/66154,1,295.00,OPERATIONAL EQUIP-PURCHASE,06/02/17,295.00,Fire Stations (South West),Environmental Services
310117G,E&S B DAVIS LTD,DAV/66155,1,295.00,OPERATIONAL EQUIP-PURCHASE,06/02/17,295.00,Fire Stations (North West),Environmental Services
310117G,E&S B DAVIS LTD,DAV/66225,1,295.00,OPERATIONAL EQUIP-PURCHASE,06/02/17,295.00,Fire Stations (South West),Environmental Services
310117G,E&S B DAVIS LTD,DAV/66322,1,295.00,OPERATIONAL EQUIP-PURCHASE,06/02/17,590.00,Fire Stations (North East),Environmental Services
310117G,E&S B DAVIS LTD,DAV/66322,2,295.00,OPERATIONAL EQUIP-PURCHASE,06/02/17,,Fire Stations (North East),Environmental Services
310117G,E&S B DAVIS LTD,DAV/66342,1,295.00,OPERATIONAL EQUIP-PURCHASE,06/02/17,295.00,Fire Stations (South West),Environmental Services
310117G,E&S B DAVIS LTD,DAV/66343,1,295.00,OPERATIONAL EQUIP-PURCHASE,06/02/17,295.00,Fire Stations (North West),Environmental Services
010217G,GOVT KNOWLEDGE TRAINING,GKT28252,1,825.00,PROFESSIONAL DEVELOPMENT,06/02/17,825.00,Operational Policy,Human Resources
310117G,HALL FUELS,I08973795,1,"1,936.40",FUEL,06/02/17,"1,936.40",Fire Stations (South West),Vehicle Management
310117G,QA LIMITED,ICE441604,1,718.00,PROFESSIONAL DEVELOPMENT,06/02/17,718.00,National Operational Guidance Project,Human Resources
310117G,QA LIMITED,ICE441605,1,718.00,PROFESSIONAL DEVELOPMENT,06/02/17,718.00,National Operational Guidance Project,Human Resources
010217G,BEADLES KIA,LD64OVS,1,"2,400.00",COMMUNITY RELATIONS,06/02/17,"2,400.00",Community Safety Delivery,Vehicle Management
010217G,PRINCIPEA CONSULTING,NILO COURSE,1,"1,341.30",PROFESSIONAL DEVELOPMENT,06/02/17,"1,341.30",Central Finance,Legal Services
310117G,CANNON'S MSA LTD,NV1104824,1,370.00,TACTICAL DAY TO DAY,06/02/17,370.00,Technical and Service Support,Vehicle Management
010217G,HUNTER LODGE==================,SI-06402,1,"1,186.00",ADVERTISING,06/02/17,"1,186.00",Operational Response,Facilities & Management S
141759,VEOLIA WATER PROJECTS LTD=====,SI-17-0000078,1,"3,592.08",ELECTRICITY,06/02/17,"3,592.08",Technical and Service Support,Utilities
310117G,HADLOW COLLEGE,SI14398,1,"3,320.00",PROFESSIONAL DEVELOPMENT,06/02/17,"3,320.00",Operational Policy,Human Resources
010217G,VODAFONE PAGING LTD,VR1470534,1,"5,020.32",CELLULAR TELEPHONES,06/02/17,"5,020.32",Information and Communication Technology,ICT
010217G,VODAFONE PAGING LTD,VR1470535,1,"1,756.65",TELECOMMUNICATIONS,06/02/17,"1,756.65",Information and Communication Technology,ICT
230117K,ADVANCED FURNITURE,0000089798,1,"2,295.00",OFFICE FURNITURE,09/02/17,"2,295.00",Fire Stations (North East),Furniture
230117K,ADVANCED FURNITURE,0000089799,1,270.00,OFFICE FURNITURE,09/02/17,270.00,Fire Stations (North West),Furniture
260117F,ADVANCED FURNITURE,0000089813,1,540.00,OFFICE FURNITURE,09/02/17,540.00,Fire Stations (South West),Furniture
030217G,GOVNET COMMUNICATIONS=========,0000114780,1,740.00,PROFESSIONAL DEVELOPMENT,09/02/17,740.00,National Operational Guidance Project,Human Resources
060217G,NORTHERN DIVER (INTERNATIONAL),0000176543,1,90.00,OPERATIONAL EQUIP-PURCHASE,09/02/17,"1,015.00",Technical and Service Support,Fire & Rescue
060217G,NORTHERN DIVER (INTERNATIONAL),0000176543,2,115.00,OPERATIONAL EQUIP-PURCHASE,09/02/17,,Technical and Service Support,Fire & Rescue
060217G,NORTHERN DIVER (INTERNATIONAL),0000176543,3,115.00,OPERATIONAL EQUIP-PURCHASE,09/02/17,,Technical and Service Support,Fire & Rescue
060217G,NORTHERN DIVER (INTERNATIONAL),0000176543,4,115.00,OPERATIONAL EQUIP-PURCHASE,09/02/17,,Technical and Service Support,Fire & Rescue
060217G,NORTHERN DIVER (INTERNATIONAL),0000176543,5,115.00,OPERATIONAL EQUIP-PURCHASE,09/02/17,,Technical and Service Support,Fire & Rescue
060217G,NORTHERN DIVER (INTERNATIONAL),0000176543,6,155.00,OPERATIONAL EQUIP-PURCHASE,09/02/17,,Technical and Service Support,Fire & Rescue
060217G,NORTHERN DIVER (INTERNATIONAL),0000176543,7,25.00,OPERATIONAL EQUIP-PURCHASE,09/02/17,,Technical and Service Support,Fire & Rescue
060217G,NORTHERN DIVER (INTERNATIONAL),0000176543,8,115.00,OPERATIONAL EQUIP-PURCHASE,09/02/17,,Technical and Service Support,Fire & Rescue
060217G,NORTHERN DIVER (INTERNATIONAL),0000176543,9,40.00,OPERATIONAL EQUIP-PURCHASE,09/02/17,,Technical and Service Support,Fire & Rescue
060217G,NORTHERN DIVER (INTERNATIONAL),0000176543,10,130.00,OPERATIONAL EQUIP-PURCHASE,09/02/17,,Technical and Service Support,Fire & Rescue
141761,CASTLE WATER LIMITED,00044082,1,272.26,WATER & SEWERAGE RATES,09/02/17,272.26,Technical and Service Support,Utilities
141761,MS. LUCY ORGAN,092956A,1,530.00,PROFESSIONAL FEES ENFORCEMENT,09/02/17,530.00,Legal & Democratic Services,Legal Services
300117F,BANCROFT HINCHLEY LTD=========,10058,1,372.00,PROTECTIVE EQUIPMENT,09/02/17,382.00,Technical and Service Support,Fire & Rescue
300117F,BANCROFT HINCHLEY LTD=========,10058,2,10.00,PROTECTIVE EQUIPMENT,09/02/17,,Technical and Service Support,Fire & Rescue
800094658,AZTEC COMPUTING LTD,10533,1,"4,500.00",MAINTENANCE & SUPPORT,09/02/17,"4,500.00",Information and Communication Technology,ICT
800094659,AZTEC COMPUTING LTD,10534,1,"1,500.00",MAINTENANCE & SUPPORT,09/02/17,"1,500.00",Information and Communication Technology,ICT
800094660,AZTEC COMPUTING LTD,10535,1,"1,875.00",MAINTENANCE & SUPPORT,09/02/17,"1,875.00",Information and Communication Technology,ICT
800094661,AZTEC COMPUTING LTD,10536,1,"1,050.00",MAINTENANCE & SUPPORT,09/02/17,"1,050.00",Information and Communication Technology,ICT
800094662,AZTEC COMPUTING LTD,10537,1,"3,375.00",MAINTENANCE & SUPPORT,09/02/17,"3,375.00",Information and Communication Technology,ICT
800094663,AZTEC COMPUTING LTD,10538,1,"2,625.00",MAINTENANCE & SUPPORT,09/02/17,"2,625.00",Information and Communication Technology,ICT
800094664,AZTEC COMPUTING LTD,10539,1,"1,500.00",MAINTENANCE & SUPPORT,09/02/17,"1,500.00",HR Management,ICT
800094665,AZTEC COMPUTING LTD,10540,1,"1,500.00",MAINTENANCE & SUPPORT,09/02/17,"1,500.00",Information and Communication Technology,ICT
800094667,AZTEC COMPUTING LTD,10542,1,"1,125.00",MAINTENANCE & SUPPORT,09/02/17,"1,125.00",HR Management,ICT
800094668,AZTEC COMPUTING LTD,10543,1,"3,000.00",MAINTENANCE & SUPPORT,09/02/17,"3,000.00",HR Management,ICT
800094669,AZTEC COMPUTING LTD,10544,1,"12,187.50",MAINTENANCE & SUPPORT,09/02/17,"12,187.50",Information and Communication Technology,ICT
020217G,AUXQUIMIA S.A.U,116959,1,"19,500.00",OPERATIONAL EQUIP-PURCHASE,09/02/17,"19,500.00",Central Operations,Fire & Rescue
030217G,RUTH LEE LTD==================,14975,1,370.00,PROTECTIVE EQUIPT - PARTS,09/02/17,380.00,Technical and Service Support,Fire & Rescue
030217G,RUTH LEE LTD==================,14975,2,10.00,REPAIR & MAINTENANCE,09/02/17,,Technical and Service Support,Fire & Rescue
030217G,RUTH LEE LTD==================,15000,1,740.00,PROTECTIVE EQUIPT - PARTS,09/02/17,750.00,Technical and Service Support,Fire & Rescue
030217G,RUTH LEE LTD==================,15000,2,10.00,REPAIR & MAINTENANCE,09/02/17,,Technical and Service Support,Fire & Rescue
060217G,PA ASSOCIATES (UK) LTD========,17027,1,"2,938.10",CONSULTANTS,09/02/17,"2,938.10",Technical and Service Support,Environmental Services
060217G,PA ASSOCIATES (UK) LTD========,17028,1,852.50,CONSULTANTS,09/02/17,852.50,Technical and Service Support,Environmental Services
030217G,MARVAL TRAINING & CONSULTANCY,1741,1,900.00,MAINTENANCE & SUPPORT,09/02/17,"1,800.00",Information and Communication Technology,ICT
030217G,MARVAL TRAINING & CONSULTANCY,1741,2,900.00,MAINTENANCE & SUPPORT,09/02/17,,Information and Communication Technology,ICT
030217G,DRON & WRIGHT,18670,1,745.00,PROFESSIONAL SERVICES,09/02/17,745.00,Property PFI,Facilities & Management S
800094167,*NPS (SHOES) LTD,18927,1,41.10,CLOTHING,09/02/17,"3,053.85",Fire Stations (North East),Clothing
800094167,*NPS (SHOES) LTD,18927,2,45.25,CLOTHING,09/02/17,,Fire Stations (South West),Clothing
800094167,*NPS (SHOES) LTD,18927,3,90.50,CLOTHING,09/02/17,,National Operational Guidance Project,Clothing
800094167,*NPS (SHOES) LTD,18927,4,45.25,CLOTHING,09/02/17,,Fire Stations (North West),Clothing
800094167,*NPS (SHOES) LTD,18927,5,33.00,CLOTHING,09/02/17,,Fire Stations (North East),Clothing
800094167,*NPS (SHOES) LTD,18927,6,33.00,CLOTHING,09/02/17,,Fire Stations (North West),Clothing
800094167,*NPS (SHOES) LTD,18927,7,33.00,CLOTHING,09/02/17,,Fire Stations (North West),Clothing
800094167,*NPS (SHOES) LTD,18927,8,33.00,CLOTHING,09/02/17,,Fire Stations (South East),Clothing
800094167,*NPS (SHOES) LTD,18927,9,33.00,CLOTHING,09/02/17,,Fire Stations (South West),Clothing
800094167,*NPS (SHOES) LTD,18927,10,33.00,CLOTHING,09/02/17,,Fire Stations (North West),Clothing
800094167,*NPS (SHOES) LTD,18927,11,33.00,CLOTHING,09/02/17,,Fire Stations (South East),Clothing
800094167,*NPS (SHOES) LTD,18927,12,33.00,CLOTHING,09/02/17,,Fire Stations (North West),Clothing
800094167,*NPS (SHOES) LTD,18927,13,33.00,CLOTHING,09/02/17,,Fire Stations (South East),Clothing
800094167,*NPS (SHOES) LTD,18927,14,33.00,CLOTHING,09/02/17,,Fire Stations (North West),Clothing
800094167,*NPS (SHOES) LTD,18927,15,33.00,CLOTHING,09/02/17,,Fire Stations (South East),Clothing
800094167,*NPS (SHOES) LTD,18927,16,33.00,CLOTHING,09/02/17,,Fire Stations (South West),Clothing
800094167,*NPS (SHOES) LTD,18927,17,33.00,CLOTHING,09/02/17,,Fire Stations (North East),Clothing
800094167,*NPS (SHOES) LTD,18927,18,33.00,CLOTHING,09/02/17,,Fire Stations (North East),Clothing
800094167,*NPS (SHOES) LTD,18927,19,33.00,CLOTHING,09/02/17,,Fire Stations (North West),Clothing
800094167,*NPS (SHOES) LTD,18927,20,33.00,CLOTHING,09/02/17,,Fire Stations (North East),Clothing
800094167,*NPS (SHOES) LTD,18927,21,33.00,CLOTHING,09/02/17,,Fire Stations (South East),Clothing
800094167,*NPS (SHOES) LTD,18927,22,33.00,CLOTHING,09/02/17,,Fire Stations (North East),Clothing
800094167,*NPS (SHOES) LTD,18927,23,33.00,CLOTHING,09/02/17,,Fire Stations (North West),Clothing
800094167,*NPS (SHOES) LTD,18927,24,33.00,CLOTHING,09/02/17,,Fire Stations (South East),Clothing
800094167,*NPS (SHOES) LTD,18927,25,33.00,CLOTHING,09/02/17,,Fire Stations (South West),Clothing
800094167,*NPS (SHOES) LTD,18927,26,33.00,CLOTHING,09/02/17,,Fire Stations (North West),Clothing
800094167,*NPS (SHOES) LTD,18927,27,33.00,CLOTHING,09/02/17,,Fire Stations (North West),Clothing
800094167,*NPS (SHOES) LTD,18927,28,33.00,CLOTHING,09/02/17,,Fire Stations (North West),Clothing
800094167,*NPS (SHOES) LTD,18927,29,45.25,CLOTHING,09/02/17,,Fire Stations (North East),Clothing
800094167,*NPS (SHOES) LTD,18927,30,45.25,CLOTHING,09/02/17,,Fire Stations (North West),Clothing
800094167,*NPS (SHOES) LTD,18927,31,45.25,CLOTHING,09/02/17,,Fire Stations (North West),Clothing
800094167,*NPS (SHOES) LTD,18927,32,45.25,CLOTHING,09/02/17,,Fire Stations (South East),Clothing
800094167,*NPS (SHOES) LTD,18927,33,32.00,CLOTHING,09/02/17,,Fire Stations (South East),Clothing
800094167,*NPS (SHOES) LTD,18927,34,33.25,CLOTHING,09/02/17,,Fire Stations (South West),Clothing
800094167,*NPS (SHOES) LTD,18927,35,33.25,CLOTHING,09/02/17,,Fire Stations (South East),Clothing
800094167,*NPS (SHOES) LTD,18927,36,33.25,CLOTHING,09/02/17,,Fire Stations (North West),Clothing
800094167,*NPS (SHOES) LTD,18927,37,33.25,CLOTHING,09/02/17,,Fire Stations (South East),Clothing
800094167,*NPS (SHOES) LTD,18927,38,33.25,CLOTHING,09/02/17,,Fire Stations (South East),Clothing
800094167,*NPS (SHOES) LTD,18927,39,33.25,CLOTHING,09/02/17,,Fire Safety Regulation,Clothing
800094167,*NPS (SHOES) LTD,18927,40,33.25,CLOTHING,09/02/17,,Fire Stations (South West),Clothing
800094167,*NPS (SHOES) LTD,18927,41,33.25,CLOTHING,09/02/17,,Fire Safety Regulation,Clothing
800094167,*NPS (SHOES) LTD,18927,42,33.25,CLOTHING,09/02/17,,Fire Stations (South West),Clothing
800094167,*NPS (SHOES) LTD,18927,43,33.25,CLOTHING,09/02/17,,Fire Stations (South West),Clothing
800094167,*NPS (SHOES) LTD,18927,44,33.00,CLOTHING,09/02/17,,Fire Stations (South East),Clothing
800094167,*NPS (SHOES) LTD,18927,45,33.00,CLOTHING,09/02/17,,Fire Stations (South West),Clothing
800094167,*NPS (SHOES) LTD,18927,46,33.00,CLOTHING,09/02/17,,Fire Stations (South East),Clothing
800094167,*NPS (SHOES) LTD,18927,47,33.00,CLOTHING,09/02/17,,Fire Stations (North West),Clothing
800094167,*NPS (SHOES) LTD,18927,48,33.00,CLOTHING,09/02/17,,Fire Stations (South East),Clothing
800094167,*NPS (SHOES) LTD,18927,49,45.25,CLOTHING,09/02/17,,Fire Safety Regulation,Clothing
800094167,*NPS (SHOES) LTD,18927,50,32.00,CLOTHING,09/02/17,,Fire Stations (North West),Clothing
800094167,*NPS (SHOES) LTD,18927,51,33.25,CLOTHING,09/02/17,,Fire Stations (North East),Clothing
800094167,*NPS (SHOES) LTD,18927,52,33.25,CLOTHING,09/02/17,,Fire Stations (North East),Clothing
800094167,*NPS (SHOES) LTD,18927,53,33.25,CLOTHING,09/02/17,,Fire Stations (North West),Clothing
800094167,*NPS (SHOES) LTD,18927,54,33.25,CLOTHING,09/02/17,,Fire Stations (North West),Clothing
800094167,*NPS (SHOES) LTD,18927,55,33.25,CLOTHING,09/02/17,,Fire Stations (South East),Clothing
800094167,*NPS (SHOES) LTD,18927,56,33.25,CLOTHING,09/02/17,,Fire Stations (South West),Clothing
800094167,*NPS (SHOES) LTD,18927,57,33.25,CLOTHING,09/02/17,,Fire Stations (North East),Clothing
800094167,*NPS (SHOES) LTD,18927,58,33.25,CLOTHING,09/02/17,,Fire Stations (South West),Clothing
800094167,*NPS (SHOES) LTD,18927,59,33.25,CLOTHING,09/02/17,,Fire Stations (North East),Clothing
800094167,*NPS (SHOES) LTD,18927,60,33.25,CLOTHING,09/02/17,,Fire Stations (South East),Clothing
800094167,*NPS (SHOES) LTD,18927,61,33.00,CLOTHING,09/02/17,,Fire Stations (North East),Clothing
800094167,*NPS (SHOES) LTD,18927,62,33.00,CLOTHING,09/02/17,,Fire Stations (North West),Clothing
800094167,*NPS (SHOES) LTD,18927,63,33.00,CLOTHING,09/02/17,,Fire Stations (North East),Clothing
800094167,*NPS (SHOES) LTD,18927,64,33.00,CLOTHING,09/02/17,,Fire Stations (South West),Clothing
800094167,*NPS (SHOES) LTD,18927,65,33.00,CLOTHING,09/02/17,,Fire Stations (North East),Clothing
800094167,*NPS (SHOES) LTD,18927,66,33.00,CLOTHING,09/02/17,,Fire Stations (North East),Clothing
800094167,*NPS (SHOES) LTD,18927,67,33.00,CLOTHING,09/02/17,,Fire Stations (South East),Clothing
800094167,*NPS (SHOES) LTD,18927,68,33.00,CLOTHING,09/02/17,,Fire Stations (North West),Clothing
800094167,*NPS (SHOES) LTD,18927,69,33.00,CLOTHING,09/02/17,,Fire Stations (North East),Clothing
800094167,*NPS (SHOES) LTD,18927,70,33.00,CLOTHING,09/02/17,,Fire Stations (South East),Clothing
800094167,*NPS (SHOES) LTD,18927,71,33.00,CLOTHING,09/02/17,,Fire Safety Regulation,Clothing
800094167,*NPS (SHOES) LTD,18927,72,33.00,CLOTHING,09/02/17,,Fire Stations (North West),Clothing
800094167,*NPS (SHOES) LTD,18927,73,33.00,CLOTHING,09/02/17,,Fire Stations (North East),Clothing
800094167,*NPS (SHOES) LTD,18927,74,33.00,CLOTHING,09/02/17,,Fire Stations (North West),Clothing
800094167,*NPS (SHOES) LTD,18927,75,33.00,CLOTHING,09/02/17,,Fire Stations (South West),Clothing
800094167,*NPS (SHOES) LTD,18927,76,33.00,CLOTHING,09/02/17,,Fire Stations (North East),Clothing
800094167,*NPS (SHOES) LTD,18927,77,33.00,CLOTHING,09/02/17,,Fire Stations (North West),Clothing
800094167,*NPS (SHOES) LTD,18927,78,33.00,CLOTHING,09/02/17,,Fire Stations (North West),Clothing
800094167,*NPS (SHOES) LTD,18927,79,33.00,CLOTHING,09/02/17,,Fire Stations (North East),Clothing
800094167,*NPS (SHOES) LTD,18927,80,36.50,CLOTHING,09/02/17,,Fire Stations (South West),Clothing
800094167,*NPS (SHOES) LTD,18927,81,36.50,CLOTHING,09/02/17,,Fire Stations (North West),Clothing
800094167,*NPS (SHOES) LTD,18927,82,33.00,CLOTHING,09/02/17,,Fire Stations (North West),Clothing
800094167,*NPS (SHOES) LTD,18927,83,45.25,CLOTHING,09/02/17,,Fire Stations (North West),Clothing
800094167,*NPS (SHOES) LTD,18927,84,45.25,CLOTHING,09/02/17,,Fire Stations (North West),Clothing
800094167,*NPS (SHOES) LTD,18927,85,32.00,CLOTHING,09/02/17,,Operational Response,Clothing
800094167,*NPS (SHOES) LTD,18927,86,32.00,CLOTHING,09/02/17,,Operational Response,Clothing
800094167,*NPS (SHOES) LTD,18927,87,32.00,CLOTHING,09/02/17,,Operational Response,Clothing
030217G,GEORGE JONES & SON LTD========,1971,1,"13,906.75",PLANNED BUILDING DECORATIONS,09/02/17,"13,906.75",Technical and Service Support,"Works - Construction, R&M"
060217G,DISCLOSURE SCOTLAND===========,2016333,1,950.00,CRB CHECKS,09/02/17,950.00,HR Management,Human Resources
800094505,REDFERN TRAVEL LTD,2030197,1,"1,845.90",ACCOMMODATION BOOKINGS,09/02/17,"1,845.90",Operational Resilience,Human Resources
800094504,REDFERN TRAVEL LTD,2030554,1,481.70,ACCOMMODATION BOOKINGS,09/02/17,481.70,National Operational Guidance Project,Human Resources
800094507,REDFERN TRAVEL LTD,2030967,1,281.70,ACCOMMODATION BOOKINGS,09/02/17,281.70,Operational Resilience,Human Resources
800094508,REDFERN TRAVEL LTD,2031006,1,281.70,ACCOMMODATION BOOKINGS,09/02/17,281.70,Operational Resilience,Human Resources
800094493,REDFERN TRAVEL LTD,2031834,1,400.70,ACCOMMODATION BOOKINGS,09/02/17,400.70,Operational Policy,Human Resources
800094511,REDFERN TRAVEL LTD,2032514,1,445.24,TRAVEL BOOKINGS,09/02/17,445.24,Legal & Democratic Services,Human Resources
800094490,REDFERN TRAVEL LTD,2033245,1,358.70,ACCOMMODATION BOOKINGS,09/02/17,358.70,Fire Safety Regulation,Human Resources
800094489,REDFERN TRAVEL LTD,2033618,1,256.86,TRAVEL BOOKINGS,09/02/17,256.86,National Operational Guidance Project,Human Resources
800094524,REDFERN TRAVEL LTD,2035473,1,387.81,TRAVEL BOOKINGS,09/02/17,387.81,National Operational Guidance Project,Human Resources
800094539,REDFERN TRAVEL LTD,2037216,1,"1,830.20",ACCOMMODATION BOOKINGS,09/02/17,"1,830.20",Operational Resilience,Human Resources
800094506,REDFERN TRAVEL LTD,2040890,1,263.51,TRAVEL BOOKINGS,09/02/17,263.51,National Operational Guidance Project,Human Resources
800094491,REDFERN TRAVEL LTD,2041686,1,258.70,ACCOMMODATION BOOKINGS,09/02/17,258.70,Operational Policy,Human Resources
800094495,REDFERN TRAVEL LTD,2041811,1,498.70,ACCOMMODATION BOOKINGS,09/02/17,498.70,Operational Policy,Human Resources
800094496,REDFERN TRAVEL LTD,2041824,1,498.70,ACCOMMODATION BOOKINGS,09/02/17,498.70,Operational Policy,Human Resources
800094497,REDFERN TRAVEL LTD,2041831,1,498.70,ACCOMMODATION BOOKINGS,09/02/17,498.70,Operational Policy,Human Resources
800094526,REDFERN TRAVEL LTD,2043024,1,531.25,ACCOMMODATION BOOKINGS,09/02/17,531.25,National Operational Guidance Project,Human Resources
800094515,REDFERN TRAVEL LTD,2043295,1,308.20,ACCOMMODATION BOOKINGS,09/02/17,308.20,National Operational Guidance Project,Human Resources
800094485,REDFERN TRAVEL LTD,2043718,1,354.55,ACCOMMODATION BOOKINGS,09/02/17,354.55,National Operational Guidance Project,Human Resources
800094546,REDFERN TRAVEL LTD,2046217,1,"1,325.88",ACCOMMODATION BOOKINGS,09/02/17,"1,325.88",Operational Resilience,Human Resources
800094556,REDFERN TRAVEL LTD,2046600,1,593.74,TRAVEL BOOKINGS,09/02/17,593.74,National Operational Guidance Project,Human Resources
230117K,ANGUS FIRE LIMITED,20549,1,"2,200.00",PROFESSIONAL DEVELOPMENT,09/02/17,"2,200.00",Operational Policy,Fire & Rescue
060217G,AECOM INFRASTRUCTURE &,28294299,1,"5,779.30",PROF FEES-MISCELLANEOUS,09/02/17,"7,045.79",Technical and Service Support,Consultancy
060217G,AECOM INFRASTRUCTURE &,28294299,2,"1,266.49",PROF FEES-MISCELLANEOUS,09/02/17,,Technical and Service Support,Consultancy
060217G,GRADIENT CONSULTANTS LLP======,2851,1,821.25,PROF FEES-MISCELLANEOUS,09/02/17,821.25,Technical and Service Support,"Works - Construction, R&M"
060217G,WATERFRONT MANUFACTURING LTD,28555,1,336.00,CLOTHING,09/02/17,336.00,Operational Resilience,Clothing
310117G,DRAEGER SAFETY UK LIMITED,2910072925,1,589.20,PROTECTIVE EQUIPT - PARTS,09/02/17,589.20,Technical and Service Support,Fire & Rescue
310117G,DRAEGER SAFETY UK LIMITED,2910072926,1,569.30,PROTECTIVE EQUIPT - PARTS,09/02/17,569.30,Technical and Service Support,Fire & Rescue
800094670,ARKAS LIMITED,29914,1,268.30,REACTIVE APPLIANCE BAY DOORS,09/02/17,268.30,Technical and Service Support,"Works - Construction, R&M"
800094688,ARKAS LIMITED,30120,1,499.10,REACTIVE APPLIANCE BAY DOORS,09/02/17,499.10,Technical and Service Support,"Works - Construction, R&M"
800094678,ARKAS LIMITED,30126,1,285.10,REACTIVE APPLIANCE BAY DOORS,09/02/17,285.10,Technical and Service Support,"Works - Construction, R&M"
800094697,ARKAS LIMITED,30129,1,251.30,REACTIVE APPLIANCE BAY DOORS,09/02/17,251.30,Technical and Service Support,"Works - Construction, R&M"
800094677,ARKAS LIMITED,30159,1,"1,005.90",REACTIVE APPLIANCE BAY DOORS,09/02/17,"1,005.90",Technical and Service Support,"Works - Construction, R&M"
800094702,ARKAS LIMITED,30169,1,289.90,REACTIVE APPLIANCE BAY DOORS,09/02/17,289.90,Technical and Service Support,"Works - Construction, R&M"
800094674,ARKAS LIMITED,30170,1,268.30,REACTIVE APPLIANCE BAY DOORS,09/02/17,268.30,Technical and Service Support,"Works - Construction, R&M"
800094700,ARKAS LIMITED,30172,1,480.70,REACTIVE APPLIANCE BAY DOORS,09/02/17,480.70,Technical and Service Support,"Works - Construction, R&M"
800094701,ARKAS LIMITED,30173,1,251.50,REACTIVE APPLIANCE BAY DOORS,09/02/17,251.50,Technical and Service Support,"Works - Construction, R&M"
800094672,ARKAS LIMITED,30175,1,268.30,REACTIVE APPLIANCE BAY DOORS,09/02/17,268.30,Technical and Service Support,"Works - Construction, R&M"
800094691,ARKAS LIMITED,30176,1,285.10,REACTIVE APPLIANCE BAY DOORS,09/02/17,285.10,Technical and Service Support,"Works - Construction, R&M"
800094699,ARKAS LIMITED,30216,1,"1,299.70",REACTIVE APPLIANCE BAY DOORS,09/02/17,"1,299.70",Technical and Service Support,"Works - Construction, R&M"
800094692,ARKAS LIMITED,30223,1,328.30,REACTIVE APPLIANCE BAY DOORS,09/02/17,328.30,Technical and Service Support,"Works - Construction, R&M"
800094680,ARKAS LIMITED,30226,1,258.04,REACTIVE APPLIANCE BAY DOORS,09/02/17,258.04,Technical and Service Support,"Works - Construction, R&M"
800094679,ARKAS LIMITED,30230,1,309.24,REACTIVE APPLIANCE BAY DOORS,09/02/17,309.24,Technical and Service Support,"Works - Construction, R&M"
060217G,ARKAS LIMITED,30287,1,"1,192.00",STRATEGIC (CYCLICAL),09/02/17,"1,192.00",Technical and Service Support,"Works - Construction, R&M"
030217G,DELTOR COMMUNICATIONS LTD.===,35361,1,539.00,GENERAL CONSUMABLES,09/02/17,539.00,Procurement,Facilities & Management S
800094270,*BURLINGTON UNIFORMS LTD,465566,1,107.15,OPERATIONAL EQUIP-PURCHASE,09/02/17,"3,428.80",Operational Resilience,Clothing
800094270,*BURLINGTON UNIFORMS LTD,465566,2,321.45,OPERATIONAL EQUIP-PURCHASE,09/02/17,,Operational Resilience,Clothing
800094270,*BURLINGTON UNIFORMS LTD,465566,3,428.60,OPERATIONAL EQUIP-PURCHASE,09/02/17,,Operational Resilience,Clothing
800094270,*BURLINGTON UNIFORMS LTD,465566,4,428.60,OPERATIONAL EQUIP-PURCHASE,09/02/17,,Operational Resilience,Clothing
800094270,*BURLINGTON UNIFORMS LTD,465566,5,321.45,OPERATIONAL EQUIP-PURCHASE,09/02/17,,Operational Resilience,Clothing
800094270,*BURLINGTON UNIFORMS LTD,465566,6,107.15,OPERATIONAL EQUIP-PURCHASE,09/02/17,,Operational Resilience,Clothing
800094270,*BURLINGTON UNIFORMS LTD,465566,7,107.15,OPERATIONAL EQUIP-PURCHASE,09/02/17,,Operational Resilience,Clothing
800094270,*BURLINGTON UNIFORMS LTD,465566,8,321.45,OPERATIONAL EQUIP-PURCHASE,09/02/17,,Operational Resilience,Clothing
800094270,*BURLINGTON UNIFORMS LTD,465566,9,428.60,OPERATIONAL EQUIP-PURCHASE,09/02/17,,Operational Resilience,Clothing
800094270,*BURLINGTON UNIFORMS LTD,465566,10,428.60,OPERATIONAL EQUIP-PURCHASE,09/02/17,,Operational Resilience,Clothing
800094270,*BURLINGTON UNIFORMS LTD,465566,11,321.45,OPERATIONAL EQUIP-PURCHASE,09/02/17,,Operational Resilience,Clothing
800094270,*BURLINGTON UNIFORMS LTD,465566,12,107.15,OPERATIONAL EQUIP-PURCHASE,09/02/17,,Operational Resilience,Clothing
060217G,DEALERSHIP SERVICES LTD,4805,1,159.60,CLOTHING,09/02/17,374.60,Cadets,Clothing
060217G,DEALERSHIP SERVICES LTD,4805,2,39.90,CLOTHING,09/02/17,,Cadets,Clothing
060217G,DEALERSHIP SERVICES LTD,4805,3,159.60,CLOTHING,09/02/17,,Cadets,Clothing
060217G,DEALERSHIP SERVICES LTD,4805,4,15.50,CLOTHING,09/02/17,,Cadets,Clothing
060217G,DEALERSHIP SERVICES LTD,4807,1,483.00,CLOTHING,09/02/17,812.95,Cadets,Clothing
060217G,DEALERSHIP SERVICES LTD,4807,2,86.55,CLOTHING,09/02/17,,Cadets,Clothing
060217G,DEALERSHIP SERVICES LTD,4807,3,86.55,CLOTHING,09/02/17,,Cadets,Clothing
060217G,DEALERSHIP SERVICES LTD,4807,4,19.95,CLOTHING,09/02/17,,Cadets,Clothing
060217G,DEALERSHIP SERVICES LTD,4807,5,15.50,CLOTHING,09/02/17,,Cadets,Clothing
060217G,DEALERSHIP SERVICES LTD,4807,6,31.00,CLOTHING,09/02/17,,Cadets,Clothing
060217G,DEALERSHIP SERVICES LTD,4807,7,31.00,CLOTHING,09/02/17,,Cadets,Clothing
060217G,DEALERSHIP SERVICES LTD,4807,8,14.85,CLOTHING,09/02/17,,Cadets,Clothing
060217G,DEALERSHIP SERVICES LTD,4807,9,14.85,CLOTHING,09/02/17,,Cadets,Clothing
060217G,DEALERSHIP SERVICES LTD,4807,10,24.75,CLOTHING,09/02/17,,Cadets,Clothing
060217G,DEALERSHIP SERVICES LTD,4807,11,4.95,CLOTHING,09/02/17,,Cadets,Clothing
060217G,DEALERSHIP SERVICES LTD,4848,1,199.50,CLOTHING,09/02/17,"1,228.05",Cadets,Clothing
060217G,DEALERSHIP SERVICES LTD,4848,2,99.75,CLOTHING,09/02/17,,Cadets,Clothing
060217G,DEALERSHIP SERVICES LTD,4848,3,39.90,CLOTHING,09/02/17,,Cadets,Clothing
060217G,DEALERSHIP SERVICES LTD,4848,4,4.95,CLOTHING,09/02/17,,Cadets,Clothing
060217G,DEALERSHIP SERVICES LTD,4848,5,49.50,CLOTHING,09/02/17,,Cadets,Clothing
060217G,DEALERSHIP SERVICES LTD,4848,6,24.75,CLOTHING,09/02/17,,Cadets,Clothing
060217G,DEALERSHIP SERVICES LTD,4848,7,9.90,CLOTHING,09/02/17,,Cadets,Clothing
060217G,DEALERSHIP SERVICES LTD,4848,8,21.45,CLOTHING,09/02/17,,Cadets,Clothing
060217G,DEALERSHIP SERVICES LTD,4848,9,77.50,CLOTHING,09/02/17,,Cadets,Clothing
060217G,DEALERSHIP SERVICES LTD,4848,10,19.95,CLOTHING,09/02/17,,Cadets,Clothing
060217G,DEALERSHIP SERVICES LTD,4848,11,46.50,CLOTHING,09/02/17,,Cadets,Clothing
060217G,DEALERSHIP SERVICES LTD,4848,12,15.50,CLOTHING,09/02/17,,Cadets,Clothing
060217G,DEALERSHIP SERVICES LTD,4848,13,31.00,CLOTHING,09/02/17,,Cadets,Clothing
060217G,DEALERSHIP SERVICES LTD,4848,14,62.00,CLOTHING,09/02/17,,Cadets,Clothing
060217G,DEALERSHIP SERVICES LTD,4848,15,15.50,CLOTHING,09/02/17,,Cadets,Clothing
060217G,DEALERSHIP SERVICES LTD,4848,16,317.35,CLOTHING,09/02/17,,Cadets,Clothing
060217G,DEALERSHIP SERVICES LTD,4848,17,115.40,CLOTHING,09/02/17,,Cadets,Clothing
060217G,DEALERSHIP SERVICES LTD,4848,18,57.70,CLOTHING,09/02/17,,Cadets,Clothing
060217G,DEALERSHIP SERVICES LTD,4848,19,19.95,CLOTHING,09/02/17,,Cadets,Clothing
060217G,DEALERSHIP SERVICES LTD,4895,1,28.85,CLOTHING,09/02/17,321.50,Cadets,Clothing
060217G,DEALERSHIP SERVICES LTD,4895,2,28.85,CLOTHING,09/02/17,,Cadets,Clothing
060217G,DEALERSHIP SERVICES LTD,4895,3,86.55,CLOTHING,09/02/17,,Cadets,Clothing
060217G,DEALERSHIP SERVICES LTD,4895,4,19.95,CLOTHING,09/02/17,,Cadets,Clothing
060217G,DEALERSHIP SERVICES LTD,4895,5,18.95,CLOTHING,09/02/17,,Cadets,Clothing
060217G,DEALERSHIP SERVICES LTD,4895,6,19.95,CLOTHING,09/02/17,,Cadets,Clothing
060217G,DEALERSHIP SERVICES LTD,4895,7,15.50,CLOTHING,09/02/17,,Cadets,Clothing
060217G,DEALERSHIP SERVICES LTD,4895,8,15.50,CLOTHING,09/02/17,,Cadets,Clothing
060217G,DEALERSHIP SERVICES LTD,4895,9,46.50,CLOTHING,09/02/17,,Cadets,Clothing
060217G,DEALERSHIP SERVICES LTD,4895,10,15.50,CLOTHING,09/02/17,,Cadets,Clothing
060217G,DEALERSHIP SERVICES LTD,4895,11,15.50,CLOTHING,09/02/17,,Cadets,Clothing
060217G,DEALERSHIP SERVICES LTD,4895,12,4.95,CLOTHING,09/02/17,,Cadets,Clothing
060217G,DEALERSHIP SERVICES LTD,4895,13,4.95,CLOTHING,09/02/17,,Cadets,Clothing
141757,ARQUIVA LIMITED===============,50001709,1,"3,495.00",RENTS,09/02/17,"3,495.00",Technical and Service Support,Building Constr Materials
800094706,SPORTSAFE UK LTD==============,500068,1,"1,680.00",REACTIVE GYM EQUIPMENT,09/02/17,"1,680.00",Technical and Service Support,Sports & Playground Equip
800091731,*GREENHAM TRADING LTD,5738089,1,21.19,HYGIENE,09/02/17,305.61,Fire Stations (South West),Cleaning & Janitorial
800091731,*GREENHAM TRADING LTD,5738089,2,89.59,OFFICE EQUIPMENT,09/02/17,,Fire Stations (South West),Cleaning & Janitorial
800091731,*GREENHAM TRADING LTD,5738089,3,52.90,OPERATIONAL EQUIP-PURCHASE,09/02/17,,Fire Stations (South West),Cleaning & Janitorial
800091731,*GREENHAM TRADING LTD,5738089,4,5.58,HYDRANTS,09/02/17,,Fire Stations (South West),Cleaning & Janitorial
800091731,*GREENHAM TRADING LTD,5738089,5,26.45,HYGIENE,09/02/17,,Fire Stations (South West),Cleaning & Janitorial
800091731,*GREENHAM TRADING LTD,5738089,6,18.45,HYGIENE,09/02/17,,Fire Stations (South West),Cleaning & Janitorial
800091731,*GREENHAM TRADING LTD,5738089,7,14.07,HYGIENE,09/02/17,,Fire Stations (South West),Cleaning & Janitorial
800091731,*GREENHAM TRADING LTD,5738089,8,77.38,HYGIENE,09/02/17,,Fire Stations (South West),Cleaning & Janitorial
800091734,*GREENHAM TRADING LTD,5738094,1,26.45,HYGIENE,09/02/17,264.84,Fire Stations (North West),Cleaning & Janitorial
800091734,*GREENHAM TRADING LTD,5738094,2,3.78,HYGIENE,09/02/17,,Fire Stations (North West),Cleaning & Janitorial
800091734,*GREENHAM TRADING LTD,5738094,3,18.45,HYGIENE,09/02/17,,Fire Stations (North West),Cleaning & Janitorial
800091734,*GREENHAM TRADING LTD,5738094,4,92.69,HYGIENE,09/02/17,,Fire Stations (North West),Cleaning & Janitorial
800091734,*GREENHAM TRADING LTD,5738094,5,20.90,HYGIENE,09/02/17,,Fire Stations (North West),Cleaning & Janitorial
800091734,*GREENHAM TRADING LTD,5738094,6,28.14,HYGIENE,09/02/17,,Fire Stations (North West),Cleaning & Janitorial
800091734,*GREENHAM TRADING LTD,5738094,7,11.19,HYGIENE,09/02/17,,Fire Stations (North West),Cleaning & Janitorial
800091734,*GREENHAM TRADING LTD,5738094,8,8.19,HYGIENE,09/02/17,,Fire Stations (North West),Cleaning & Janitorial
800091734,*GREENHAM TRADING LTD,5738094,9,33.89,HYGIENE,09/02/17,,Fire Stations (North West),Cleaning & Janitorial
800091734,*GREENHAM TRADING LTD,5738094,10,21.16,HYGIENE,09/02/17,,Fire Stations (North West),Cleaning & Janitorial
800091735,*GREENHAM TRADING LTD,5738096,1,7.77,HYGIENE,09/02/17,562.45,Fire Stations (North West),Cleaning & Janitorial
800091735,*GREENHAM TRADING LTD,5738096,2,3.38,HYGIENE,09/02/17,,Fire Stations (North West),Cleaning & Janitorial
800091735,*GREENHAM TRADING LTD,5738096,3,46.90,HYGIENE,09/02/17,,Fire Stations (North West),Cleaning & Janitorial
800091735,*GREENHAM TRADING LTD,5738096,4,7.38,HYGIENE,09/02/17,,Fire Stations (North West),Cleaning & Janitorial
800091735,*GREENHAM TRADING LTD,5738096,5,52.90,HYGIENE,09/02/17,,Fire Stations (North West),Cleaning & Janitorial
800091735,*GREENHAM TRADING LTD,5738096,6,7.38,HYGIENE,09/02/17,,Fire Stations (North West),Cleaning & Janitorial
800091735,*GREENHAM TRADING LTD,5738096,7,54.95,HYGIENE,09/02/17,,Fire Stations (North West),Cleaning & Janitorial
800091735,*GREENHAM TRADING LTD,5738096,8,8.37,HYGIENE,09/02/17,,Fire Stations (North West),Cleaning & Janitorial
800091735,*GREENHAM TRADING LTD,5738096,9,33.57,HYGIENE,09/02/17,,Fire Stations (North West),Cleaning & Janitorial
800091735,*GREENHAM TRADING LTD,5738096,10,139.90,OPERATIONAL EQUIP-PURCHASE,09/02/17,,Fire Stations (North West),Cleaning & Janitorial
800091735,*GREENHAM TRADING LTD,5738096,11,20.90,HYGIENE,09/02/17,,Fire Stations (North West),Cleaning & Janitorial
800091735,*GREENHAM TRADING LTD,5738096,12,5.45,HYGIENE,09/02/17,,Fire Stations (North West),Cleaning & Janitorial
800091735,*GREENHAM TRADING LTD,5738096,13,5.45,HYGIENE,09/02/17,,Fire Stations (North West),Cleaning & Janitorial
800091735,*GREENHAM TRADING LTD,5738096,14,19.74,HYGIENE,09/02/17,,Fire Stations (North West),Cleaning & Janitorial
800091735,*GREENHAM TRADING LTD,5738096,15,14.18,HYGIENE,09/02/17,,Fire Stations (North West),Cleaning & Janitorial
800091735,*GREENHAM TRADING LTD,5738096,16,25.90,CLOTHING,09/02/17,,Fire Stations (North West),Cleaning & Janitorial
800091735,*GREENHAM TRADING LTD,5738096,17,9.49,HYGIENE,09/02/17,,Fire Stations (North West),Cleaning & Janitorial
800091735,*GREENHAM TRADING LTD,5738096,18,65.52,HYGIENE,09/02/17,,Fire Stations (North West),Cleaning & Janitorial
800091735,*GREENHAM TRADING LTD,5738096,19,12.78,HYGIENE,09/02/17,,Fire Stations (North West),Cleaning & Janitorial
800091735,*GREENHAM TRADING LTD,5738096,20,10.38,HYGIENE,09/02/17,,Fire Stations (North West),Cleaning & Janitorial
800091735,*GREENHAM TRADING LTD,5738096,21,3.27,HYGIENE,09/02/17,,Fire Stations (North West),Cleaning & Janitorial
800091735,*GREENHAM TRADING LTD,5738096,22,6.89,HYGIENE,09/02/17,,Fire Stations (North West),Cleaning & Janitorial
030217G,PREMIER HOSE TECHNOLOGIES LTD=,625181,1,284.90,PROTECTIVE EQUIPT - PARTS,09/02/17,354.68,Technical and Service Support,Fire & Rescue
030217G,PREMIER HOSE TECHNOLOGIES LTD=,625181,2,52.28,PROTECTIVE EQUIPT - PARTS,09/02/17,,Technical and Service Support,Fire & Rescue
030217G,PREMIER HOSE TECHNOLOGIES LTD=,625181,3,17.50,REPAIR & MAINTENANCE,09/02/17,,Technical and Service Support,Fire & Rescue
800094122,HAYS SPECIALIST RECRUITMENT,666505,1,524.30,FRS STAFF AGENCY,09/02/17,524.30,HR Management,Human Resources
800094127,HAYS SPECIALIST RECRUITMENT,666506,1,"1,119.25",FRS STAFF AGENCY,09/02/17,"1,119.25",Procurement,Human Resources
800094078,HAYS SPECIALIST RECRUITMENT,666507,1,535.31,FRS STAFF AGENCY,09/02/17,535.31,Fire Stations (North West),Human Resources
800094114,HAYS SPECIALIST RECRUITMENT,666508,1,590.10,FRS STAFF AGENCY,09/02/17,590.10,Information Management,Human Resources
800094073,HAYS SPECIALIST RECRUITMENT,666509,1,419.44,FRS STAFF AGENCY,09/02/17,419.44,Fire Stations (South East),Human Resources
800094120,HAYS SPECIALIST RECRUITMENT,666510,1,314.58,FRS STAFF AGENCY,09/02/17,314.58,Procurement,Human Resources
800094107,HAYS SPECIALIST RECRUITMENT,666511,1,407.12,FRS STAFF AGENCY,09/02/17,407.12,Fire Stations (South West),Human Resources
800094099,HAYS SPECIALIST RECRUITMENT,666512,1,"2,376.25",FRS STAFF AGENCY,09/02/17,"2,376.25",Procurement,Human Resources
800094103,HAYS SPECIALIST RECRUITMENT,666513,1,314.58,FRS STAFF AGENCY,09/02/17,314.58,Fire Safety Regulation,Human Resources
800094081,HAYS SPECIALIST RECRUITMENT,666514,1,"1,118.44",FRS STAFF AGENCY,09/02/17,"1,118.44",Legal & Democratic Services,Human Resources
800094100,HAYS SPECIALIST RECRUITMENT,666515,1,533.05,FRS STAFF AGENCY,09/02/17,533.05,Fire Safety Regulation,Human Resources
800094082,HAYS SPECIALIST RECRUITMENT,666517,1,793.20,FRS STAFF AGENCY,09/02/17,793.20,Operational Resilience,Human Resources
800094088,HAYS SPECIALIST RECRUITMENT,666520,1,508.90,FRS STAFF AGENCY,09/02/17,508.90,Fire Safety Regulation,Human Resources
800094071,HAYS SPECIALIST RECRUITMENT,666521,1,299.60,FRS STAFF AGENCY,09/02/17,299.60,Fire Safety Regulation,Human Resources
800094091,HAYS SPECIALIST RECRUITMENT,666522,1,733.60,FRS STAFF AGENCY,09/02/17,733.60,Information and Communication Technology,Human Resources
800094069,HAYS SPECIALIST RECRUITMENT,666523,1,524.30,FRS STAFF AGENCY,09/02/17,524.30,Fire Safety Regulation,Human Resources
800094131,HAYS SPECIALIST RECRUITMENT,666524,1,864.85,FRS STAFF AGENCY,09/02/17,864.85,Finance Services,Human Resources
800094132,HAYS SPECIALIST RECRUITMENT,666525,1,647.91,FRS STAFF AGENCY,09/02/17,647.91,Operational Response,Human Resources
800094108,HAYS SPECIALIST RECRUITMENT,666526,1,895.10,FRS STAFF AGENCY,09/02/17,895.10,Technical and Service Support,Human Resources
800094116,HAYS SPECIALIST RECRUITMENT,666527,1,"1,545.12",FRS STAFF AGENCY,09/02/17,"1,545.12",Legal & Democratic Services,Human Resources
800094076,HAYS SPECIALIST RECRUITMENT,666529,1,419.44,FRS STAFF AGENCY,09/02/17,419.44,Fire Safety Regulation,Human Resources
800094124,HAYS SPECIALIST RECRUITMENT,666530,1,607.95,FRS STAFF AGENCY,09/02/17,607.95,Fire Safety Regulation,Human Resources
800094093,HAYS SPECIALIST RECRUITMENT,666531,1,411.95,FRS STAFF AGENCY,09/02/17,411.95,Procurement,Human Resources
800094117,HAYS SPECIALIST RECRUITMENT,666532,1,524.30,FRS STAFF AGENCY,09/02/17,524.30,Fire Safety Regulation,Human Resources
800094072,HAYS SPECIALIST RECRUITMENT,666534,1,527.45,FRS STAFF AGENCY,09/02/17,527.45,Procurement,Human Resources
800094095,HAYS SPECIALIST RECRUITMENT,666535,1,968.88,FRS STAFF AGENCY,09/02/17,968.88,Review of Property Services,Human Resources
800094104,HAYS SPECIALIST RECRUITMENT,666536,1,733.60,FRS STAFF AGENCY,09/02/17,733.60,Information and Communication Technology,Human Resources
800094075,HAYS SPECIALIST RECRUITMENT,666537,1,723.10,FRS STAFF AGENCY,09/02/17,723.10,Information and Communication Technology,Human Resources
800094097,HAYS SPECIALIST RECRUITMENT,666538,1,314.58,FRS STAFF AGENCY,09/02/17,314.58,Fire Safety Regulation,Human Resources
800094125,HAYS SPECIALIST RECRUITMENT,666539,1,586.88,FRS STAFF AGENCY,09/02/17,586.88,Information and Communication Technology,Human Resources
800094119,HAYS SPECIALIST RECRUITMENT,666540,1,419.44,FRS STAFF AGENCY,09/02/17,419.44,HR Management,Human Resources
800094133,HAYS SPECIALIST RECRUITMENT,666541,1,703.15,FRS STAFF AGENCY,09/02/17,703.15,Central Operations,Human Resources
800094126,HAYS SPECIALIST RECRUITMENT,666542,1,600.87,FRS STAFF AGENCY,09/02/17,600.87,National Operational Guidance Project,Human Resources
800094109,HAYS SPECIALIST RECRUITMENT,666543,1,"1,068.55",FRS STAFF AGENCY,09/02/17,"1,068.55",Technical and Service Support,Human Resources
800094115,HAYS SPECIALIST RECRUITMENT,666544,1,610.75,FRS STAFF AGENCY,09/02/17,610.75,Fire Safety Regulation,Human Resources
800094096,HAYS SPECIALIST RECRUITMENT,666545,1,981.40,FRS STAFF AGENCY,09/02/17,981.40,Operational Resilience,Human Resources
800094074,HAYS SPECIALIST RECRUITMENT,666546,1,"1,322.76",FRS STAFF AGENCY,09/02/17,"1,322.76",Procurement,Human Resources
800094121,HAYS SPECIALIST RECRUITMENT,666547,1,"2,238.50",FRS STAFF AGENCY,09/02/17,"2,238.50",National Operational Guidance Project,Human Resources
800094087,HAYS SPECIALIST RECRUITMENT,666548,1,614.60,FRS STAFF AGENCY,09/02/17,614.60,Fire Safety Regulation,Human Resources
800094084,HAYS SPECIALIST RECRUITMENT,666549,1,876.75,FRS STAFF AGENCY,09/02/17,876.75,Technical and Service Support,Human Resources
800094094,HAYS SPECIALIST RECRUITMENT,666550,1,578.48,FRS STAFF AGENCY,09/02/17,578.48,Information and Communication Technology,Human Resources
800094089,HAYS SPECIALIST RECRUITMENT,666551,1,"1,039.48",FRS STAFF AGENCY,09/02/17,"1,039.48",Technical and Service Support,Human Resources
800094128,HAYS SPECIALIST RECRUITMENT,666552,1,491.68,FRS STAFF AGENCY,09/02/17,491.68,HR Management,Human Resources
800094068,HAYS SPECIALIST RECRUITMENT,666554,1,"1,072.40",FRS STAFF AGENCY,09/02/17,"1,072.40",National Operational Guidance Project,Human Resources
800094113,HAYS SPECIALIST RECRUITMENT,666555,1,524.30,FRS STAFF AGENCY,09/02/17,524.30,Fire Safety Regulation,Human Resources
800094083,HAYS SPECIALIST RECRUITMENT,666556,1,616.00,FRS STAFF AGENCY,09/02/17,616.00,Information and Communication Technology,Human Resources
800094111,HAYS SPECIALIST RECRUITMENT,666557,1,527.80,FRS STAFF AGENCY,09/02/17,527.80,Fire Stations (South West),Human Resources
800094085,HAYS SPECIALIST RECRUITMENT,666558,1,389.48,FRS STAFF AGENCY,09/02/17,389.48,Fire Safety Regulation,Human Resources
800094098,HAYS SPECIALIST RECRUITMENT,666560,1,610.05,FRS STAFF AGENCY,09/02/17,610.05,Operational Resilience,Human Resources
800094066,HAYS SPECIALIST RECRUITMENT,666563,1,"1,303.05",FRS STAFF AGENCY,09/02/17,"1,303.05",Information and Communication Technology,Human Resources
800094080,HAYS SPECIALIST RECRUITMENT,666564,1,635.10,FRS STAFF AGENCY,09/02/17,635.10,Operational Policy,Human Resources
800094070,HAYS SPECIALIST RECRUITMENT,666565,1,524.30,FRS STAFF AGENCY,09/02/17,524.30,Fire Safety Regulation,Human Resources
800094123,HAYS SPECIALIST RECRUITMENT,666566,1,524.30,FRS STAFF AGENCY,09/02/17,524.30,Fire Safety Regulation,Human Resources
800094101,HAYS SPECIALIST RECRUITMENT,666567,1,487.50,FRS STAFF AGENCY,09/02/17,487.50,National Operational Guidance Project,Human Resources
800094118,HAYS SPECIALIST RECRUITMENT,666568,1,"1,009.88",FRS STAFF AGENCY,09/02/17,"1,009.88",National Operational Guidance Project,Human Resources
800094130,HAYS SPECIALIST RECRUITMENT,666569,1,508.90,FRS STAFF AGENCY,09/02/17,508.90,Legal & Democratic Services,Human Resources
800094112,HAYS SPECIALIST RECRUITMENT,666570,1,"1,076.60",FRS STAFF AGENCY,09/02/17,"1,076.60",Development and Training,Human Resources
800094067,HAYS SPECIALIST RECRUITMENT,666571,1,607.95,FRS STAFF AGENCY,09/02/17,607.95,Fire Stations (South West),Human Resources
800094110,HAYS SPECIALIST RECRUITMENT,666572,1,720.12,FRS STAFF AGENCY,09/02/17,720.12,Information Management,Human Resources
800094137,HAYS SPECIALIST RECRUITMENT,666573,1,520.52,FRS STAFF AGENCY,09/02/17,520.52,National Operational Guidance Project,Human Resources
800094139,HAYS SPECIALIST RECRUITMENT,666575,1,501.83,FRS STAFF AGENCY,09/02/17,501.83,Procurement,Human Resources
800094135,HAYS SPECIALIST RECRUITMENT,666576,1,723.10,FRS STAFF AGENCY,09/02/17,723.10,Information and Communication Technology,Human Resources
800094138,HAYS SPECIALIST RECRUITMENT,666577,1,259.87,FRS STAFF AGENCY,09/02/17,259.87,Technical and Service Support,Human Resources
800094134,HAYS SPECIALIST RECRUITMENT,666578,1,614.60,FRS STAFF AGENCY,09/02/17,614.60,HR Management,Human Resources
800094140,HAYS SPECIALIST RECRUITMENT,666580,1,440.91,FRS STAFF AGENCY,09/02/17,440.91,Fire Safety Regulation,Human Resources
800094136,HAYS SPECIALIST RECRUITMENT,666581,1,422.24,FRS STAFF AGENCY,09/02/17,422.24,Procurement,Human Resources
030217G,MOORE STEPHENS CONSULTING LTD,674790,1,"4,865.00",MAINTENANCE & SUPPORT,09/02/17,"4,865.00",Information and Communication Technology,ICT
030217G,MOORE STEPHENS CONSULTING LTD,674791,1,"3,790.00",MAINTENANCE & SUPPORT,09/02/17,"3,790.00",Development and Training,ICT
030217G,TRY & LILLY LTD===============,70199,1,253.35,UNIFORMS - POMS,09/02/17,491.70,Procurement,Clothing
030217G,TRY & LILLY LTD===============,70199,2,238.35,UNIFORMS - POMS,09/02/17,,Procurement,Clothing
030217G,CURRIE & BROWN UK LIMITED,7078810,1,850.00,PROF FEES-MISCELLANEOUS,09/02/17,850.00,Technical and Service Support,"Works - Construction, R&M"
030217G,CURRIE & BROWN UK LIMITED,7081094,1,"1,000.00",PLANNED BUILDING DECORATIONS,09/02/17,"1,000.00",Technical and Service Support,"Works - Construction, R&M"
030217G,CURRIE & BROWN UK LIMITED,7081192,1,"1,942.41",PLANNED BUILDING DECORATIONS,09/02/17,"1,942.41",Technical and Service Support,"Works - Construction, R&M"
030217G,BANNER GROUP LIMITED,8609217,1,202.50,COMMUNITY RELATIONS,09/02/17,"1,247.50",Community Safety Delivery,ICT
030217G,BANNER GROUP LIMITED,8609217,2,185.00,COMMUNITY RELATIONS,09/02/17,,Community Safety Delivery,ICT
030217G,BANNER GROUP LIMITED,8609217,3,200.00,COMMUNITY RELATIONS,09/02/17,,Community Safety Delivery,ICT
030217G,BANNER GROUP LIMITED,8609217,4,660.00,COMMUNITY RELATIONS,09/02/17,,Community Safety Delivery,ICT
020217G,BANNER GROUP LIMITED,8656846,1,265.00,PUBLIC RELATIONS,09/02/17,265.00,Community Safety Delivery,ICT
060217G,CITY UNIVERSITY===============,90368767,1,"8,640.00",MEDICAL EXPENSES CONTRACT,09/02/17,"8,640.00",HR Management,TRAINING AND EDUCATIONAL
060217G,CITY UNIVERSITY===============,90368768,1,"3,380.00",MEDICAL EXPENSES CONTRACT,09/02/17,"3,380.00",HR Management,TRAINING AND EDUCATIONAL
250117G,SERCO LTD=====================,91339055,1,910.00,PROFESSIONAL DEVELOPMENT,09/02/17,910.00,Operational Policy,Consultancy
030217G,BSI MANAGEMENT SYSTEMS,94678618/2000,1,439.00,BOOKS & JOURNALS,09/02/17,439.00,Information Management,Financial Services
010217G,ASTEC SURVEYS LIMITED=========,ASL-17-009,1,"1,955.00",PLANNED ASBESTOS,09/02/17,"1,955.00",Technical and Service Support,Environmental Services
010217G,ASTEC SURVEYS LIMITED=========,ASL-17-010,1,"2,075.00",PLANNED ASBESTOS,09/02/17,"2,075.00",Technical and Service Support,Environmental Services
030217G,THAMES WATER UTILITIES LTD====,CBA1502558,1,"1,185.00",CURRENT HYDRANT COSTS,09/02/17,"1,185.00",Operational Resilience,Utilities
701722,THAMES WATER UTILITIES LTD====,CBA1502597,1,"1,185.00",CURRENT HYDRANT COSTS,09/02/17,"1,185.00",Operational Resilience,Utilities
030217G,THAMES WATER UTILITIES LTD====,CBA1502648,1,459.00,CURRENT HYDRANT COSTS,09/02/17,459.00,Operational Resilience,Utilities
030217G,THAMES WATER UTILITIES LTD====,CBA1505803,1,"1,185.00",CURRENT HYDRANT COSTS,09/02/17,"1,185.00",Operational Resilience,Utilities
701722,THAMES WATER UTILITIES LTD====,CBA1600213,1,"1,185.00",CURRENT HYDRANT COSTS,09/02/17,"1,185.00",Operational Resilience,Utilities
060217G,THAMES WATER UTILITIES LTD====,CBA1601829,1,459.00,CURRENT HYDRANT COSTS,09/02/17,459.00,Operational Resilience,Utilities
060217G,THAMES WATER UTILITIES LTD====,CBA1602106,1,"1,185.00",CURRENT HYDRANT COSTS,09/02/17,"1,185.00",Operational Resilience,Utilities
060217G,THAMES WATER UTILITIES LTD====,CBA1602433,1,"1,185.00",CURRENT HYDRANT COSTS,09/02/17,"1,185.00",Operational Resilience,Utilities
060217G,THAMES WATER UTILITIES LTD====,CBA1603367,1,"1,185.00",CURRENT HYDRANT COSTS,09/02/17,"1,185.00",Operational Resilience,Utilities
060217G,THAMES WATER UTILITIES LTD====,CBA1605074,1,256.00,CURRENT HYDRANT COSTS,09/02/17,307.00,Operational Resilience,Utilities
060217G,THAMES WATER UTILITIES LTD====,CBA1605074,2,51.00,CURRENT HYDRANT COSTS,09/02/17,,Operational Resilience,Utilities
060217G,THAMES WATER UTILITIES LTD====,CBA1605152,1,256.00,CURRENT HYDRANT COSTS,09/02/17,256.00,Operational Resilience,Utilities
060217G,THAMES WATER UTILITIES LTD====,CBA1605770,1,459.00,CURRENT HYDRANT COSTS,09/02/17,459.00,Operational Resilience,Utilities
060217G,THAMES WATER UTILITIES LTD====,CBA1605785,1,459.00,CURRENT HYDRANT COSTS,09/02/17,459.00,Operational Resilience,Utilities
060217G,THAMES WATER UTILITIES LTD====,CBA1605789,1,"1,185.00",CURRENT HYDRANT COSTS,09/02/17,"1,185.00",Operational Resilience,Utilities
060217G,THAMES WATER UTILITIES LTD====,CBA1605812,1,459.00,CURRENT HYDRANT COSTS,09/02/17,459.00,Operational Resilience,Utilities
060217G,THAMES WATER UTILITIES LTD====,CBA1605827,1,714.00,CURRENT HYDRANT COSTS,09/02/17,714.00,Operational Resilience,Utilities
030217G,E&S B DAVIS LTD,DAV/65783,1,295.00,OPERATIONAL EQUIP-PURCHASE,09/02/17,295.00,Fire Stations (South East),Environmental Services
310117G,CASUALTIES UNION LONDON BRANCH,HI110816,1,200.00,PROFESSIONAL DEVELOPMENT,09/02/17,400.00,Challenge Team,Fire & Rescue
310117G,CASUALTIES UNION LONDON BRANCH,HI110816,2,200.00,PROFESSIONAL DEVELOPMENT,09/02/17,,Challenge Team,Fire & Rescue
300117F,MERSEYSIDE FCDA===============,I0019306,1,"9,395.26",FIRE AUTHS-MUTUAL ASSISTANCE,09/02/17,"9,395.26",National Operational Guidance Project,Human Resources
030217G,BABCOCK CIVIL INFRASTRUCTURE,II5003296,1,"4,099.00",PLANNED BUILDING DECORATIONS,09/02/17,"4,099.00",Technical and Service Support,"Works - Construction, R&M"
030217G,BABCOCK CIVIL INFRASTRUCTURE,II5003430,1,"31,762.30",STRATEGIC (CYCLICAL),09/02/17,"31,762.30",Technical and Service Support,"Works - Construction, R&M"
030217G,BABCOCK CIVIL INFRASTRUCTURE,II5003431,1,"6,738.95",STRATEGIC (CYCLICAL),09/02/17,"6,738.95",Technical and Service Support,"Works - Construction, R&M"
030217G,BABCOCK CIVIL INFRASTRUCTURE,II5003432,1,958.83,PLANNED BUILDING DECORATIONS,09/02/17,958.83,Technical and Service Support,"Works - Construction, R&M"
020217G,ARISTI LIMITED,INV773,1,"5,915.00",MAINTENANCE & SUPPORT,09/02/17,"5,915.00",Information and Communication Technology,Consultancy
020217G,CANNON'S MSA LTD,NV1105006,1,447.50,GENERAL CONSUMABLES,09/02/17,447.50,Procurement,Vehicle Management
020217G,CANNON'S MSA LTD,NV1105007,1,619.20,GENERAL CONSUMABLES,09/02/17,640.70,Procurement,Vehicle Management
020217G,CANNON'S MSA LTD,NV1105007,2,21.50,GENERAL CONSUMABLES,09/02/17,,Procurement,Vehicle Management
060217G,SPECIALIST COMPUTER CENTRE,OP/M252521,1,"4,560.80",ACQUISITIONS,09/02/17,"4,560.80",Information and Communication Technology,ICT
010217G,SPECIALIST COMPUTER CENTRE,OP/M258538,1,338.36,ACQUISITIONS,09/02/17,348.36,Information and Communication Technology,ICT
010217G,SPECIALIST COMPUTER CENTRE,OP/M258538,2,10.00,ADDITIONAL PURCHASE COSTS,09/02/17,,Information and Communication Technology,ICT
060217G,SAFETYNET SOLUTIONS LIMITED===,PSI-0039345,1,389.00,TACTICAL DAY TO DAY,09/02/17,399.00,Technical and Service Support,Facilities & Management S
060217G,SAFETYNET SOLUTIONS LIMITED===,PSI-0039345,2,10.00,TACTICAL DAY TO DAY,09/02/17,,Technical and Service Support,Facilities & Management S
030217G,RELIANCE HIGH-TECH,SLINV00049305,1,"3,380.88",REACTIVE SMALL WORKS AND PROJ,09/02/17,"3,380.88",Technical and Service Support,Facilities & Management S
030217G,RELIANCE HIGH-TECH,SLINV00049306,1,563.48,REACTIVE SMALL WORKS AND PROJ,09/02/17,563.48,Technical and Service Support,Facilities & Management S
060217G,COLLINS (CONTRACTORS) LTD=====,SPAR1006/16LEP04,1,"31,469.10",PLANNED BUILDING DECORATIONS,09/02/17,"31,469.10",Technical and Service Support,"Works - Construction, R&M"
300117F,NEWGROUND CIC,0000020131,1,699.00,SUBSCRIPTIONS,13/02/17,699.00,Procurement,Financial Services
080217G,GOVNET COMMUNICATIONS=========,0000113486,1,710.00,PROFESSIONAL DEVELOPMENT,13/02/17,710.00,Fire Safety Regulation,Human Resources
141762,CASTLE WATER LIMITED,00047764,1,681.43,WATER & SEWERAGE RATES,13/02/17,681.43,Technical and Service Support,Utilities
141762,CASTLE WATER LIMITED,00048581,1,593.35,WATER & SEWERAGE RATES,13/02/17,593.35,Technical and Service Support,Utilities
141762,CASTLE WATER LIMITED,00048935,1,504.27,WATER & SEWERAGE RATES,13/02/17,504.27,Technical and Service Support,Utilities
141762,CASTLE WATER LIMITED,00049723,1,301.50,WATER & SEWERAGE RATES,13/02/17,301.50,Technical and Service Support,Utilities
070217G,CHANGING YOUNG MINDS,0147,1,175.00,GENERAL,13/02/17,475.00,LIFE - LFB Funded,Human Resources
070217G,CHANGING YOUNG MINDS,0147,2,300.00,GENERAL,13/02/17,,LIFE - LFB Funded,Human Resources
070217G,CHANGING YOUNG MINDS,0185,1,350.00,GENERAL,13/02/17,350.00,LIFE - LFB Funded,Human Resources
141762,MS. LUCY ORGAN,092956B,1,540.00,PROFESSIONAL FEES ENFORCEMENT,13/02/17,540.00,Legal & Democratic Services,Legal Services
070217G,MATT HALL CONSULTING,104,1,"3,735.31",GENERAL,13/02/17,"3,735.31",Central Finance,Consultancy
080217G,*SPRUE SAFETY PRODUCTS LTD,1099934,1,"2,224.80",FIRE DETECTORS,13/02/17,"2,224.80",Fire Stations (North West),Health & Safety
080217G,*SPRUE SAFETY PRODUCTS LTD,1100342,1,988.80,FIRE DETECTORS,13/02/17,988.80,Fire Stations (North East),Health & Safety
080217G,*SPRUE SAFETY PRODUCTS LTD,1100387,1,988.80,FIRE DETECTORS,13/02/17,988.80,Fire Stations (South East),Health & Safety
030217G,*SPRUE SAFETY PRODUCTS LTD,1101591,1,"4,000.00",FIRE DETECTORS,13/02/17,"4,000.00",Fire Stations (North West),Health & Safety
080217G,THE HOME OFFICE,1135003,1,"368,980.60",RADIO,13/02/17,"394,231.06",Information and Communication Technology,Statutory Bodies
080217G,THE HOME OFFICE,1135003,2,"25,250.46",RADIO,13/02/17,,Information and Communication Technology,Statutory Bodies
141762,EDF ENERGY===================,1315210000G,1,"23,542.62",ELECTRICITY,13/02/17,"23,542.62",Technical and Service Support,Utilities
080217G,AAI SECURITY SYSTEMS==========,149144,1,990.00,REACTIVE SMALL WORKS AND PROJ,13/02/17,990.00,Technical and Service Support,Facilities & Management S
070217G,UK TAPES LTD==================,160464,1,411.84,GENERAL CONSUMABLES,13/02/17,411.84,Procurement,Health & Safety
080217G,LONDON FIT OUT LTD,1656,1,"2,999.30",DEVELOPMENT  EXPENSES-CONTRACT,13/02/17,"2,999.30",Technical and Service Support,"Works - Construction, R&M"
080217G,LONDON FIT OUT LTD,1657,1,"1,129.36",DEVELOPMENT  EXPENSES-CONTRACT,13/02/17,"1,129.36",Technical and Service Support,"Works - Construction, R&M"
080217G,LONDON FIT OUT LTD,1659,1,"1,900.11",DEVELOPMENT  EXPENSES-CONTRACT,13/02/17,"1,900.11",Technical and Service Support,"Works - Construction, R&M"
800094657,*NPS (SHOES) LTD,19021,1,33.25,CLOTHING,13/02/17,"2,131.00",Fire Stations (North West),Clothing
800094657,*NPS (SHOES) LTD,19021,2,33.25,CLOTHING,13/02/17,,Fire Stations (North West),Clothing
800094657,*NPS (SHOES) LTD,19021,3,33.25,CLOTHING,13/02/17,,Fire Stations (South West),Clothing
800094657,*NPS (SHOES) LTD,19021,4,33.25,CLOTHING,13/02/17,,Fire Stations (North West),Clothing
800094657,*NPS (SHOES) LTD,19021,5,33.25,CLOTHING,13/02/17,,Fire Stations (North East),Clothing
800094657,*NPS (SHOES) LTD,19021,6,33.25,CLOTHING,13/02/17,,Fire Stations (South West),Clothing
800094657,*NPS (SHOES) LTD,19021,7,33.25,CLOTHING,13/02/17,,Fire Stations (North East),Clothing
800094657,*NPS (SHOES) LTD,19021,8,33.25,CLOTHING,13/02/17,,Fire Stations (North East),Clothing
800094657,*NPS (SHOES) LTD,19021,9,33.25,CLOTHING,13/02/17,,Fire Stations (North West),Clothing
800094657,*NPS (SHOES) LTD,19021,10,33.25,CLOTHING,13/02/17,,Fire Stations (South East),Clothing
800094657,*NPS (SHOES) LTD,19021,11,33.25,CLOTHING,13/02/17,,Fire Stations (South West),Clothing
800094657,*NPS (SHOES) LTD,19021,12,33.25,CLOTHING,13/02/17,,Fire Stations (North West),Clothing
800094657,*NPS (SHOES) LTD,19021,13,33.25,CLOTHING,13/02/17,,Fire Stations (North West),Clothing
800094657,*NPS (SHOES) LTD,19021,14,36.75,CLOTHING,13/02/17,,Command Units,Clothing
800094657,*NPS (SHOES) LTD,19021,15,36.75,CLOTHING,13/02/17,,Fire Stations (North East),Clothing
800094657,*NPS (SHOES) LTD,19021,16,36.75,CLOTHING,13/02/17,,Fire Stations (North East),Clothing
800094657,*NPS (SHOES) LTD,19021,17,33.25,CLOTHING,13/02/17,,Fire Stations (North East),Clothing
800094657,*NPS (SHOES) LTD,19021,18,33.25,CLOTHING,13/02/17,,Fire Safety Regulation,Clothing
800094657,*NPS (SHOES) LTD,19021,19,33.00,CLOTHING,13/02/17,,Fire Stations (South East),Clothing
800094657,*NPS (SHOES) LTD,19021,20,33.00,CLOTHING,13/02/17,,Fire Stations (North East),Clothing
800094657,*NPS (SHOES) LTD,19021,21,33.00,CLOTHING,13/02/17,,Fire Stations (North East),Clothing
800094657,*NPS (SHOES) LTD,19021,22,33.00,CLOTHING,13/02/17,,Firefighter Trainees,Clothing
800094657,*NPS (SHOES) LTD,19021,23,33.00,CLOTHING,13/02/17,,Fire Stations (South East),Clothing
800094657,*NPS (SHOES) LTD,19021,24,33.00,CLOTHING,13/02/17,,Fire Stations (North East),Clothing
800094657,*NPS (SHOES) LTD,19021,25,33.00,CLOTHING,13/02/17,,Fire Stations (South East),Clothing
800094657,*NPS (SHOES) LTD,19021,26,33.00,CLOTHING,13/02/17,,Fire Stations (South West),Clothing
800094657,*NPS (SHOES) LTD,19021,27,33.00,CLOTHING,13/02/17,,Fire Stations (North East),Clothing
800094657,*NPS (SHOES) LTD,19021,28,33.00,CLOTHING,13/02/17,,Firefighter Trainees,Clothing
800094657,*NPS (SHOES) LTD,19021,29,33.00,CLOTHING,13/02/17,,Firefighter Trainees,Clothing
800094657,*NPS (SHOES) LTD,19021,30,33.00,CLOTHING,13/02/17,,Fire Stations (South West),Clothing
800094657,*NPS (SHOES) LTD,19021,31,33.00,CLOTHING,13/02/17,,Firefighter Trainees,Clothing
800094657,*NPS (SHOES) LTD,19021,32,33.00,CLOTHING,13/02/17,,Firefighter Trainees,Clothing
800094657,*NPS (SHOES) LTD,19021,33,33.00,CLOTHING,13/02/17,,Firefighter Trainees,Clothing
800094657,*NPS (SHOES) LTD,19021,34,33.00,CLOTHING,13/02/17,,Firefighter Trainees,Clothing
800094657,*NPS (SHOES) LTD,19021,35,33.00,CLOTHING,13/02/17,,Firefighter Trainees,Clothing
800094657,*NPS (SHOES) LTD,19021,36,33.00,CLOTHING,13/02/17,,Firefighter Trainees,Clothing
800094657,*NPS (SHOES) LTD,19021,37,33.00,CLOTHING,13/02/17,,Firefighter Trainees,Clothing
800094657,*NPS (SHOES) LTD,19021,38,33.00,CLOTHING,13/02/17,,Fire Stations (South West),Clothing
800094657,*NPS (SHOES) LTD,19021,39,33.00,CLOTHING,13/02/17,,Fire Stations (South West),Clothing
800094657,*NPS (SHOES) LTD,19021,40,33.00,CLOTHING,13/02/17,,Fire Stations (North West),Clothing
800094657,*NPS (SHOES) LTD,19021,41,33.00,CLOTHING,13/02/17,,Fire Stations (South East),Clothing
800094657,*NPS (SHOES) LTD,19021,42,33.00,CLOTHING,13/02/17,,Fire Stations (South East),Clothing
800094657,*NPS (SHOES) LTD,19021,43,33.00,CLOTHING,13/02/17,,Fire Stations (North East),Clothing
800094657,*NPS (SHOES) LTD,19021,44,33.00,CLOTHING,13/02/17,,Fire Stations (North West),Clothing
800094657,*NPS (SHOES) LTD,19021,45,33.00,CLOTHING,13/02/17,,Firefighter Trainees,Clothing
800094657,*NPS (SHOES) LTD,19021,46,33.00,CLOTHING,13/02/17,,Firefighter Trainees,Clothing
800094657,*NPS (SHOES) LTD,19021,47,33.00,CLOTHING,13/02/17,,Fire Stations (North West),Clothing
800094657,*NPS (SHOES) LTD,19021,48,33.00,CLOTHING,13/02/17,,Fire Stations (South West),Clothing
800094657,*NPS (SHOES) LTD,19021,49,33.00,CLOTHING,13/02/17,,Fire Stations (South East),Clothing
800094657,*NPS (SHOES) LTD,19021,50,33.00,CLOTHING,13/02/17,,Fire Stations (North West),Clothing
800094657,*NPS (SHOES) LTD,19021,51,33.00,CLOTHING,13/02/17,,Fire Stations (North East),Clothing
800094657,*NPS (SHOES) LTD,19021,52,33.00,CLOTHING,13/02/17,,Fire Stations (North West),Clothing
800094657,*NPS (SHOES) LTD,19021,53,33.00,CLOTHING,13/02/17,,Fire Stations (South East),Clothing
800094657,*NPS (SHOES) LTD,19021,54,33.00,CLOTHING,13/02/17,,Fire Stations (North East),Clothing
800094657,*NPS (SHOES) LTD,19021,55,33.00,CLOTHING,13/02/17,,Fire Stations (North East),Clothing
800094657,*NPS (SHOES) LTD,19021,56,33.00,CLOTHING,13/02/17,,Fire Stations (South East),Clothing
800094657,*NPS (SHOES) LTD,19021,57,33.00,CLOTHING,13/02/17,,Fire Stations (South East),Clothing
800094657,*NPS (SHOES) LTD,19021,58,33.00,CLOTHING,13/02/17,,Fire Stations (North West),Clothing
800094657,*NPS (SHOES) LTD,19021,59,33.00,CLOTHING,13/02/17,,Fire Stations (North East),Clothing
800094657,*NPS (SHOES) LTD,19021,60,36.50,CLOTHING,13/02/17,,Fire Stations (North East),Clothing
800094657,*NPS (SHOES) LTD,19021,61,36.50,CLOTHING,13/02/17,,Fire Stations (South East),Clothing
800094657,*NPS (SHOES) LTD,19021,62,32.00,CLOTHING,13/02/17,,Fire Safety Regulation,Clothing
800094657,*NPS (SHOES) LTD,19021,63,32.00,CLOTHING,13/02/17,,Fire Stations (South East),Clothing
800094657,*NPS (SHOES) LTD,19021,64,32.00,CLOTHING,13/02/17,,Fire Stations (South West),Clothing
141762,MISS SARAH LE FEVRE===========,231311*,1,"1,750.00",PROFESSIONAL FEES ENFORCEMENT,13/02/17,"1,750.00",Legal & Democratic Services,Legal Services
141762,EDF ENERGY===================,2368210000G,1,"16,086.95",ELECTRICITY,13/02/17,"16,086.95",Technical and Service Support,Utilities
070217G,AEGIS ENGINEERING LTD,24755,1,"3,206.32",OPERATIONAL EQUIP-PURCHASE,13/02/17,"30,059.25",Operational Resilience,Fire & Rescue
070217G,AEGIS ENGINEERING LTD,24755,2,"6,011.85",OPERATIONAL EQUIP-PURCHASE,13/02/17,,Operational Resilience,Fire & Rescue
070217G,AEGIS ENGINEERING LTD,24755,3,"8,817.38",OPERATIONAL EQUIP-PURCHASE,13/02/17,,Operational Resilience,Fire & Rescue
070217G,AEGIS ENGINEERING LTD,24755,4,"8,817.38",OPERATIONAL EQUIP-PURCHASE,13/02/17,,Operational Resilience,Fire & Rescue
070217G,AEGIS ENGINEERING LTD,24755,5,"3,206.32",OPERATIONAL EQUIP-PURCHASE,13/02/17,,Operational Resilience,Fire & Rescue
070217G,AEGIS ENGINEERING LTD,24756,1,"17,077.50",OPERATIONAL EQUIP-PURCHASE,13/02/17,"17,077.50",Operational Resilience,Fire & Rescue
070217G,AEGIS ENGINEERING LTD,24757,1,"2,003.95",OPERATIONAL EQUIP-PURCHASE,13/02/17,"15,712.25",Operational Resilience,Fire & Rescue
070217G,AEGIS ENGINEERING LTD,24757,2,"3,206.32",OPERATIONAL EQUIP-PURCHASE,13/02/17,,Operational Resilience,Fire & Rescue
070217G,AEGIS ENGINEERING LTD,24757,3,"3,206.32",OPERATIONAL EQUIP-PURCHASE,13/02/17,,Operational Resilience,Fire & Rescue
070217G,AEGIS ENGINEERING LTD,24757,4,"1,603.16",OPERATIONAL EQUIP-PURCHASE,13/02/17,,Operational Resilience,Fire & Rescue
070217G,AEGIS ENGINEERING LTD,24757,5,"5,692.50",OPERATIONAL EQUIP-PURCHASE,13/02/17,,Operational Resilience,Fire & Rescue
800094717,MAINTENANCE ASSOCIATED,25546,1,39.10,PLANNED PEST CONTROL,13/02/17,406.46,Technical and Service Support,Environmental Services
800094717,MAINTENANCE ASSOCIATED,25546,2,24.44,PLANNED PEST CONTROL,13/02/17,,Technical and Service Support,Environmental Services
800094717,MAINTENANCE ASSOCIATED,25546,3,19.55,PLANNED PEST CONTROL,13/02/17,,Technical and Service Support,Environmental Services
800094717,MAINTENANCE ASSOCIATED,25546,4,19.55,PLANNED PEST CONTROL,13/02/17,,Technical and Service Support,Environmental Services
800094717,MAINTENANCE ASSOCIATED,25546,5,19.55,PLANNED PEST CONTROL,13/02/17,,Technical and Service Support,Environmental Services
800094717,MAINTENANCE ASSOCIATED,25546,6,29.36,PLANNED PEST CONTROL,13/02/17,,Technical and Service Support,Environmental Services
800094717,MAINTENANCE ASSOCIATED,25546,7,108.28,PLANNED PEST CONTROL,13/02/17,,Technical and Service Support,Environmental Services
800094717,MAINTENANCE ASSOCIATED,25546,8,24.44,PLANNED PEST CONTROL,13/02/17,,Technical and Service Support,Environmental Services
800094717,MAINTENANCE ASSOCIATED,25546,9,97.75,PLANNED PEST CONTROL,13/02/17,,Technical and Service Support,Environmental Services
800094717,MAINTENANCE ASSOCIATED,25546,10,24.44,PLANNED PEST CONTROL,13/02/17,,Technical and Service Support,Environmental Services
800094716,MAINTENANCE ASSOCIATED,25547,1,29.33,PLANNED PEST CONTROL,13/02/17,469.98,Technical and Service Support,Environmental Services
800094716,MAINTENANCE ASSOCIATED,25547,2,108.28,PLANNED PEST CONTROL,13/02/17,,Technical and Service Support,Environmental Services
800094716,MAINTENANCE ASSOCIATED,25547,3,97.75,PLANNED PEST CONTROL,13/02/17,,Technical and Service Support,Environmental Services
800094716,MAINTENANCE ASSOCIATED,25547,4,39.10,PLANNED PEST CONTROL,13/02/17,,Technical and Service Support,Environmental Services
800094716,MAINTENANCE ASSOCIATED,25547,5,48.88,PLANNED PEST CONTROL,13/02/17,,Technical and Service Support,Environmental Services
800094716,MAINTENANCE ASSOCIATED,25547,6,48.88,PLANNED PEST CONTROL,13/02/17,,Technical and Service Support,Environmental Services
800094716,MAINTENANCE ASSOCIATED,25547,7,24.44,PLANNED PEST CONTROL,13/02/17,,Technical and Service Support,Environmental Services
800094716,MAINTENANCE ASSOCIATED,25547,8,24.44,PLANNED PEST CONTROL,13/02/17,,Technical and Service Support,Environmental Services
800094716,MAINTENANCE ASSOCIATED,25547,9,29.33,PLANNED PEST CONTROL,13/02/17,,Technical and Service Support,Environmental Services
800094716,MAINTENANCE ASSOCIATED,25547,10,19.55,PLANNED PEST CONTROL,13/02/17,,Technical and Service Support,Environmental Services
800094711,MAINTENANCE ASSOCIATED,25548,1,108.28,PLANNED PEST CONTROL,13/02/17,486.14,Technical and Service Support,Environmental Services
800094711,MAINTENANCE ASSOCIATED,25548,2,24.44,PLANNED PEST CONTROL,13/02/17,,Technical and Service Support,Environmental Services
800094711,MAINTENANCE ASSOCIATED,25548,3,19.55,PLANNED PEST CONTROL,13/02/17,,Technical and Service Support,Environmental Services
800094711,MAINTENANCE ASSOCIATED,25548,4,108.28,PLANNED PEST CONTROL,13/02/17,,Technical and Service Support,Environmental Services
800094711,MAINTENANCE ASSOCIATED,25548,5,29.33,PLANNED PEST CONTROL,13/02/17,,Technical and Service Support,Environmental Services
800094711,MAINTENANCE ASSOCIATED,25548,6,19.55,PLANNED PEST CONTROL,13/02/17,,Technical and Service Support,Environmental Services
800094711,MAINTENANCE ASSOCIATED,25548,7,108.28,PLANNED PEST CONTROL,13/02/17,,Technical and Service Support,Environmental Services
800094711,MAINTENANCE ASSOCIATED,25548,8,29.33,PLANNED PEST CONTROL,13/02/17,,Technical and Service Support,Environmental Services
800094711,MAINTENANCE ASSOCIATED,25548,9,19.55,PLANNED PEST CONTROL,13/02/17,,Technical and Service Support,Environmental Services
800094711,MAINTENANCE ASSOCIATED,25548,10,19.55,PLANNED PEST CONTROL,13/02/17,,Technical and Service Support,Environmental Services
800094712,MAINTENANCE ASSOCIATED,25549,1,29.33,PLANNED PEST CONTROL,13/02/17,411.33,Technical and Service Support,Environmental Services
800094712,MAINTENANCE ASSOCIATED,25549,2,108.28,PLANNED PEST CONTROL,13/02/17,,Technical and Service Support,Environmental Services
800094712,MAINTENANCE ASSOCIATED,25549,3,24.44,PLANNED PEST CONTROL,13/02/17,,Technical and Service Support,Environmental Services
800094712,MAINTENANCE ASSOCIATED,25549,4,29.33,PLANNED PEST CONTROL,13/02/17,,Technical and Service Support,Environmental Services
800094712,MAINTENANCE ASSOCIATED,25549,5,97.75,PLANNED PEST CONTROL,13/02/17,,Technical and Service Support,Environmental Services
800094712,MAINTENANCE ASSOCIATED,25549,6,24.44,PLANNED PEST CONTROL,13/02/17,,Technical and Service Support,Environmental Services
800094712,MAINTENANCE ASSOCIATED,25549,7,24.44,PLANNED PEST CONTROL,13/02/17,,Technical and Service Support,Environmental Services
800094712,MAINTENANCE ASSOCIATED,25549,8,19.55,PLANNED PEST CONTROL,13/02/17,,Technical and Service Support,Environmental Services
800094712,MAINTENANCE ASSOCIATED,25549,9,24.44,PLANNED PEST CONTROL,13/02/17,,Technical and Service Support,Environmental Services
800094712,MAINTENANCE ASSOCIATED,25549,10,29.33,PLANNED PEST CONTROL,13/02/17,,Technical and Service Support,Environmental Services
070217G,WATERFRONT MANUFACTURING LTD,28534,1,350.00,CLOTHING,13/02/17,"1,100.00",Fire Stations (Management),Clothing
070217G,WATERFRONT MANUFACTURING LTD,28534,2,750.00,CLOTHING,13/02/17,,Fire Stations (Management),Clothing
070217G,PAUL EVERS,300117,1,400.00,GENERAL,13/02/17,400.00,LIFE - LFB Funded,Human Resources
141762,EDF ENERGY===================,3015210000G,1,"1,483.79",ELECTRICITY,13/02/17,"1,483.79",Technical and Service Support,Utilities
080217G,CHAIN GANG,338,1,456.81,POSTAL SERVICES,13/02/17,456.81,Information Management,Mail Services
070217G,B NOKES CONTRACTS LTD,3398,1,"1,446.60",REACTIVE SMALL WORKS AND PROJ,13/02/17,"1,446.60",Technical and Service Support,"Works - Construction, R&M"
070217G,B NOKES CONTRACTS LTD,3399,1,"3,773.50",PLANNED BUILDING DECORATIONS,13/02/17,"3,773.50",Technical and Service Support,"Works - Construction, R&M"
080217G,HUNTERS CONTRACTS LIMITED,356690,1,533.40,OFFICE FURNITURE,13/02/17,533.40,Technical and Service Support,Furniture
080217G,HUNTERS CONTRACTS LIMITED,357009,1,"1,635.00",PLANNED BUILDING DECORATIONS,13/02/17,"1,635.00",Technical and Service Support,Furniture
080217G,HUNTERS CONTRACTS LIMITED,357010,1,"3,375.00",PLANNED BUILDING DECORATIONS,13/02/17,"3,375.00",Technical and Service Support,Furniture
080217G,LEADING EDGE LEADERSHIP LTD,374,1,"1,050.00",GENERAL,13/02/17,"1,050.00",Fire Safety Regulation,Human Resources
070217G,CANON (UK) LTD,401845224,1,82.61,OFFICE EQUIPMENT,13/02/17,"1,509.38",Information Management,ICT
070217G,CANON (UK) LTD,401845224,2,737.00,OFFICE EQUIPMENT,13/02/17,,Information Management,ICT
070217G,CANON (UK) LTD,401845224,3,16.87,OFFICE EQUIPMENT,13/02/17,,Information Management,ICT
070217G,CANON (UK) LTD,401845224,4,672.90,OFFICE EQUIPMENT,13/02/17,,Information Management,ICT
141762,EDF ENERGY===================,5015210000G,1,"6,966.73",ELECTRICITY,13/02/17,"6,966.73",Technical and Service Support,Utilities
080217G,FAHEY BUILDERS LTD============,5388,1,"9,754.00",PLANNED BUILDING DECORATIONS,13/02/17,"9,754.00",Technical and Service Support,"Works - Construction, R&M"
080217G,FAHEY BUILDERS LTD============,5389,1,"2,954.00",PLANNED BUILDING DECORATIONS,13/02/17,"2,954.00",Technical and Service Support,"Works - Construction, R&M"
080217G,FAHEY BUILDERS LTD============,5390,1,"7,840.00",PLANNED BUILDING DECORATIONS,13/02/17,"7,840.00",Technical and Service Support,"Works - Construction, R&M"
030217G,UNDERSTANDING RECRUITMENT,5422,1,"5,250.00",FRS STAFF AGENCY,13/02/17,"5,250.00",Information and Communication Technology,Human Resources
080217G,HP INC UK LIMITED,5621426,1,168.00,ACQUISITIONS,13/02/17,"11,023.80",Information and Communication Technology,ICT
080217G,HP INC UK LIMITED,5621426,2,"6,255.90",ACQUISITIONS,13/02/17,,Information and Communication Technology,ICT
080217G,HP INC UK LIMITED,5621426,3,"3,659.40",ACQUISITIONS,13/02/17,,Information and Communication Technology,ICT
080217G,HP INC UK LIMITED,5621426,4,940.50,ACQUISITIONS,13/02/17,,Information and Communication Technology,ICT
080217G,HP INC UK LIMITED,5667293,1,"1,070.00",ACQUISITIONS,13/02/17,"1,070.00",Information and Communication Technology,ICT
010217G,VODAFONE LIMITED,82868545,1,"8,604.00",CELLULAR TELEPHONES,13/02/17,"8,604.00",Information and Communication Technology,ICT
141762,EDF ENERGY===================,8315210000G,1,325.76,ELECTRICITY,13/02/17,"3,257.55",Technical and Service Support,Utilities
141762,EDF ENERGY===================,8315210000G,2,"2,931.79",ELECTRICITY,13/02/17,,Technical and Service Support,Utilities
080217G,BIRLEM LTD,84492,1,"7,500.00",REACTIVE SMALL WORKS AND PROJ,13/02/17,"7,500.00",Technical and Service Support,Vehicle Management
080217G,BIRLEM LTD,84493,1,"6,000.50",REACTIVE SMALL WORKS AND PROJ,13/02/17,"6,000.50",Technical and Service Support,Vehicle Management
141767,H M COURT & TRIBUNAL SERVICES,9377,1,255.00,MISCELLANEOUS DISBURSEMENTS,13/02/17,255.00,Compensation Budgets,Legal Services
141767,THOMPSONS SOLICITORS==========,9854,1,"1,297.48",CLAIMANT COSTS AGREED,13/02/17,"1,297.48",Compensation Budgets,Legal Services
080217G,THAMES WATER UTILITIES LTD====,CBA1605828,1,459.00,CURRENT HYDRANT COSTS,13/02/17,459.00,Operational Resilience,Utilities
080217G,THAMES WATER UTILITIES LTD====,CBA1605831,1,459.00,CURRENT HYDRANT COSTS,13/02/17,459.00,Operational Resilience,Utilities
080217G,THAMES WATER UTILITIES LTD====,CBA1605832,1,459.00,CURRENT HYDRANT COSTS,13/02/17,459.00,Operational Resilience,Utilities
080217G,THAMES WATER UTILITIES LTD====,CBA1606074,1,459.00,CURRENT HYDRANT COSTS,13/02/17,459.00,Operational Resilience,Utilities
080217G,THAMES WATER UTILITIES LTD====,CBA1606075,1,459.00,CURRENT HYDRANT COSTS,13/02/17,459.00,Operational Resilience,Utilities
080217G,THAMES WATER UTILITIES LTD====,CBA1610108,1,"1,273.00",CURRENT HYDRANT COSTS,13/02/17,"1,273.00",Operational Resilience,Utilities
080217G,THAMES WATER UTILITIES LTD====,CBA1610124,1,"1,273.00",CURRENT HYDRANT COSTS,13/02/17,"1,273.00",Operational Resilience,Utilities
080217G,THAMES WATER UTILITIES LTD====,CBA1610252,1,"1,273.00",CURRENT HYDRANT COSTS,13/02/17,"1,273.00",Operational Resilience,Utilities
080217G,THAMES WATER UTILITIES LTD====,CBA1610319,1,348.00,CURRENT HYDRANT COSTS,13/02/17,348.00,Operational Resilience,Utilities
080217G,THAMES WATER UTILITIES LTD====,CBA1610574,1,348.00,CURRENT HYDRANT COSTS,13/02/17,348.00,Operational Resilience,Utilities
080217G,THAMES WATER UTILITIES LTD====,CBA1610624,1,256.00,CURRENT HYDRANT COSTS,13/02/17,256.00,Operational Resilience,Utilities
080217G,THAMES WATER UTILITIES LTD====,CBA1610625,1,256.00,CURRENT HYDRANT COSTS,13/02/17,256.00,Operational Resilience,Utilities
080217G,THAMES WATER UTILITIES LTD====,CBA1610627,1,714.00,CURRENT HYDRANT COSTS,13/02/17,714.00,Operational Resilience,Utilities
080217G,THAMES WATER UTILITIES LTD====,CBA1611127,1,"1,273.00",CURRENT HYDRANT COSTS,13/02/17,"1,273.00",Operational Resilience,Utilities
080217G,THAMES WATER UTILITIES LTD====,CBA1611128,1,714.00,CURRENT HYDRANT COSTS,13/02/17,714.00,Operational Resilience,Utilities
141710,LB OF RICHMOND UPON THAMES,CSIF014,1,"32,640.00",FIRE AUTHS GRANT PAYMENTS,13/02/17,"32,640.00",Community Safety Investment Fund,Statutory Bodies
141762,LB BARKING & DAGENHAM,CSIF025,1,"60,000.00",FIRE AUTHS GRANT PAYMENTS,13/02/17,"60,000.00",Community Safety Investment Fund,Statutory Bodies
141762,LB BARKING & DAGENHAM,CSIF026,1,"80,000.00",FIRE AUTHS GRANT PAYMENTS,13/02/17,"80,000.00",Community Safety Investment Fund,Statutory Bodies
141762,LB BARKING & DAGENHAM,CSIF027,1,"50,000.00",FIRE AUTHS GRANT PAYMENTS,13/02/17,"50,000.00",Community Safety Investment Fund,Statutory Bodies
070217G,E&S B DAVIS LTD,DAV/66156,1,295.00,OPERATIONAL EQUIP-PURCHASE,13/02/17,295.00,Fire Stations (North West),Environmental Services
080217G,WM ENGINEERING SERVICES LTD===,I-5206,1,303.90,TACTICAL DAY TO DAY,13/02/17,303.90,Technical and Service Support,"Works - Construction, R&M"
030217G,HALL FUELS,I09023573,1,"3,144.21",FUEL,13/02/17,"3,144.21",Fire Stations (South West),Vehicle Management
070217G,HALL FUELS,I09023574,1,"2,857.50",FUEL,13/02/17,"2,857.50",Fire Stations (South East),Vehicle Management
902710,CGE RISK MANAGEMENT SOLUTIONS,INV-04882,1,"56,100.61",MAINTENANCE & SUPPORT,13/02/17,"56,100.61",National Operational Guidance Project,Consultancy
080217G,PHOENIX SOFTWARE LTD,OP/I792271,1,"3,310.40",MAINTENANCE & SUPPORT,13/02/17,"3,310.40",Information and Communication Technology,ICT
070217G,ETC VENUES LTD================,PH-145449,1,986.00,HIRE OF FACILITIES,13/02/17,986.00,National Operational Guidance Project,Facilities & Management S
070217G,PILLINGER CONTROLS LTD========,PI75981,1,"3,510.00",REACTIVE SMALL WORKS AND PROJ,13/02/17,"3,510.00",Technical and Service Support,Environmental Services
080217G,BISHOP'S MOVE LTD,SIN313219,1,"2,600.00",REMOVALS,13/02/17,"2,600.00",Technical and Service Support,Facilities & Management S
070217G,BABCOCK CRITICAL SERVICES LTD,SMAI002357,1,"75,856.20",PURCHASES-PLANT/MACHINERY,13/02/17,"75,856.20",Procurement,Consultancy
070217G,BABCOCK CRITICAL SERVICES LTD,SMAI2460,1,"10,649.00",PURCHASES-PLANT/MACHINERY,13/02/17,"10,751.00",Procurement,Consultancy
070217G,BABCOCK CRITICAL SERVICES LTD,SMAI2460,2,102.00,PURCHASES-PLANT/MACHINERY,13/02/17,,Procurement,Consultancy
080217G,COLLINS (CONTRACTORS) LTD=====,SPAS086/1616LFEP05,1,"1,698.32",DEVELOPMENT  EXPENSES-CONTRACT,13/02/17,"1,698.32",Technical and Service Support,"Works - Construction, R&M"
030217G,APPLUS LLT,17008,1,"3,750.00",GENERAL,15/02/17,"3,750.00",Procurement,Vehicle Management
090217G,GARRAN LOCKERS LTD============,0000016685,1,164.53,OFFICE FURNITURE,16/02/17,285.27,Fire Stations (South East),Furniture
090217G,GARRAN LOCKERS LTD============,0000016685,2,120.74,OFFICE FURNITURE,16/02/17,,Fire Stations (South East),Furniture
100217F,GOVNET COMMUNICATIONS=========,0000114316,1,385.00,PROFESSIONAL DEVELOPMENT,16/02/17,385.00,National Operational Guidance Project,Human Resources
141765,CASTLE WATER LIMITED,00050219,1,387.22,WATER & SEWERAGE RATES,16/02/17,387.22,Technical and Service Support,Utilities
130217G,MAJESTIC WINE WAREHOUSES LTD==,003/1259210,1,"1,248.65",PUBLIC RELATIONS,16/02/17,"1,248.65",LFB 150th Anniversary,Catering
090217G,POLLYTILES LTD,0206,1,"4,524.00",PUBLIC RELATIONS,16/02/17,"4,524.00",LFB 150th Anniversary,Facilities & Management S
130217G,BROWNS OF BEXLEY,1,1,"1,170.00",COMMUNITY RELATIONS,16/02/17,"1,170.00",Community Safety Delivery,Catering
090217G,AZTEC COMPUTING LTD,10541,1,"1,680.00",MAINTENANCE & SUPPORT,16/02/17,"1,680.00",Information and Communication Technology,ICT
800094919,ENVIRONTEC LIMITED,105620,1,600.00,PLANNED ASBESTOS,16/02/17,"10,800.00",Technical and Service Support,Environmental Services
800094919,ENVIRONTEC LIMITED,105620,2,600.00,PLANNED ASBESTOS,16/02/17,,Technical and Service Support,Environmental Services
800094919,ENVIRONTEC LIMITED,105620,3,600.00,PLANNED ASBESTOS,16/02/17,,Technical and Service Support,Environmental Services
800094919,ENVIRONTEC LIMITED,105620,4,600.00,PLANNED ASBESTOS,16/02/17,,Technical and Service Support,Environmental Services
800094919,ENVIRONTEC LIMITED,105620,5,600.00,PLANNED ASBESTOS,16/02/17,,Technical and Service Support,Environmental Services
800094919,ENVIRONTEC LIMITED,105620,6,600.00,PLANNED ASBESTOS,16/02/17,,Technical and Service Support,Environmental Services
800094919,ENVIRONTEC LIMITED,105620,7,600.00,PLANNED ASBESTOS,16/02/17,,Technical and Service Support,Environmental Services
800094919,ENVIRONTEC LIMITED,105620,8,600.00,PLANNED ASBESTOS,16/02/17,,Technical and Service Support,Environmental Services
800094919,ENVIRONTEC LIMITED,105620,9,600.00,PLANNED ASBESTOS,16/02/17,,Technical and Service Support,Environmental Services
800094919,ENVIRONTEC LIMITED,105620,10,600.00,PLANNED ASBESTOS,16/02/17,,Technical and Service Support,Environmental Services
800094919,ENVIRONTEC LIMITED,105620,11,600.00,PLANNED ASBESTOS,16/02/17,,Technical and Service Support,Environmental Services
800094919,ENVIRONTEC LIMITED,105620,12,600.00,PLANNED ASBESTOS,16/02/17,,Technical and Service Support,Environmental Services
800094919,ENVIRONTEC LIMITED,105620,13,600.00,PLANNED ASBESTOS,16/02/17,,Technical and Service Support,Environmental Services
800094919,ENVIRONTEC LIMITED,105620,14,600.00,PLANNED ASBESTOS,16/02/17,,Technical and Service Support,Environmental Services
800094919,ENVIRONTEC LIMITED,105620,15,600.00,PLANNED ASBESTOS,16/02/17,,Technical and Service Support,Environmental Services
800094919,ENVIRONTEC LIMITED,105620,16,600.00,PLANNED ASBESTOS,16/02/17,,Technical and Service Support,Environmental Services
800094919,ENVIRONTEC LIMITED,105620,17,600.00,PLANNED ASBESTOS,16/02/17,,Technical and Service Support,Environmental Services
800094919,ENVIRONTEC LIMITED,105620,18,600.00,PLANNED ASBESTOS,16/02/17,,Technical and Service Support,Environmental Services
800094921,ENVIRONTEC LIMITED,105621,1,500.00,PLANNED ASBESTOS,16/02/17,500.00,Technical and Service Support,Environmental Services
130217G,*SPRUE SAFETY PRODUCTS LTD,1099936,1,618.00,FIRE DETECTORS,16/02/17,618.00,Fire Stations (North West),Health & Safety
130217G,ENVIROGRAF,116422,1,"1,078.50",OPERATIONAL EQUIP-PURCHASE,16/02/17,"3,203.30",Community Safety Delivery,Fire & Rescue
130217G,ENVIROGRAF,116422,2,"2,124.80",OPERATIONAL EQUIP-PURCHASE,16/02/17,,Community Safety Delivery,Fire & Rescue
080217G,REAM CONTRACTS LTD,14624,1,"9,743.88",REACTIVE SMALL WORKS AND PROJ,16/02/17,"9,743.88",Technical and Service Support,Building Constr Materials
100217F,REAM CONTRACTS LTD,14636,1,"15,429.36",REACTIVE SMALL WORKS AND PROJ,16/02/17,"15,429.36",Technical and Service Support,Building Constr Materials
130217G,RESPIREX,158600,1,325.00,UNIFORMS - POMS,16/02/17,"1,950.00",Procurement,Clothing
130217G,RESPIREX,158600,2,325.00,UNIFORMS - POMS,16/02/17,,Procurement,Clothing
130217G,RESPIREX,158600,3,325.00,UNIFORMS - POMS,16/02/17,,Procurement,Clothing
130217G,RESPIREX,158600,4,325.00,UNIFORMS - POMS,16/02/17,,Procurement,Clothing
130217G,RESPIREX,158600,5,325.00,UNIFORMS - POMS,16/02/17,,Procurement,Clothing
130217G,RESPIREX,158600,6,325.00,UNIFORMS - POMS,16/02/17,,Procurement,Clothing
100217F,KIER BUILDING SERV ENGINEERS==,16060786/16060941,1,"31,760.21",TACTICAL DAY TO DAY,16/02/17,"62,544.25",Technical and Service Support,"Works - Construction, R&M"
100217F,KIER BUILDING SERV ENGINEERS==,16060786/16060941,2,574.64,TACTICAL DAY TO DAY,16/02/17,,Technical and Service Support,"Works - Construction, R&M"
100217F,KIER BUILDING SERV ENGINEERS==,16060786/16060941,3,"1,820.04",TACTICAL DAY TO DAY,16/02/17,,Technical and Service Support,"Works - Construction, R&M"
100217F,KIER BUILDING SERV ENGINEERS==,16060786/16060941,4,"2,297.73",TACTICAL DAY TO DAY,16/02/17,,Technical and Service Support,"Works - Construction, R&M"
100217F,KIER BUILDING SERV ENGINEERS==,16060786/16060941,5,"17,572.12",STRATEGIC (CYCLICAL),16/02/17,,Technical and Service Support,"Works - Construction, R&M"
100217F,KIER BUILDING SERV ENGINEERS==,16060786/16060941,6,860.17,STRATEGIC (CYCLICAL),16/02/17,,Technical and Service Support,"Works - Construction, R&M"
100217F,KIER BUILDING SERV ENGINEERS==,16060786/16060941,7,"1,640.92",STRATEGIC (CYCLICAL),16/02/17,,Technical and Service Support,"Works - Construction, R&M"
100217F,KIER BUILDING SERV ENGINEERS==,16060786/16060941,8,"6,018.42",STRATEGIC (CYCLICAL),16/02/17,,Technical and Service Support,"Works - Construction, R&M"
800094752,PRIMEPEACE LTD,161201,1,"3,800.00",MAINTENANCE & SUPPORT,16/02/17,"3,800.00",Information and Communication Technology,ICT
100217F,LONDON FIT OUT LTD,1658,1,"1,647.22",DEVELOPMENT  EXPENSES-CONTRACT,16/02/17,"1,647.22",Technical and Service Support,"Works - Construction, R&M"
090217G,LONDON BOROUGH OF REDBRIDGE,170114800981,1,"1,000.00",GENERAL,16/02/17,"1,000.00",Community Safety Delivery,Statutory Bodies
100217F,TRANSPORT FOR LONDON,1800036020,1,291.58,MAINTENANCE & SUPPORT,16/02/17,"14,966.82",Operational Response,ICT
100217F,TRANSPORT FOR LONDON,1800036020,2,"1,655.04",MAINTENANCE & SUPPORT,16/02/17,,Operational Response,ICT
100217F,TRANSPORT FOR LONDON,1800036020,3,291.58,MAINTENANCE & SUPPORT,16/02/17,,Operational Response,ICT
100217F,TRANSPORT FOR LONDON,1800036020,4,"1,655.04",MAINTENANCE & SUPPORT,16/02/17,,Operational Response,ICT
100217F,TRANSPORT FOR LONDON,1800036020,5,291.58,MAINTENANCE & SUPPORT,16/02/17,,Operational Response,ICT
100217F,TRANSPORT FOR LONDON,1800036020,6,"10,782.00",MAINTENANCE & SUPPORT,16/02/17,,Operational Response,ICT
100217F,DRON & WRIGHT,18663,1,"4,582.25",PROFESSIONAL SERVICES,16/02/17,"29,891.77",Technical and Service Support,Facilities & Management S
100217F,DRON & WRIGHT,18663,2,"4,314.54",PROFESSIONAL SERVICES,16/02/17,,Technical and Service Support,Facilities & Management S
100217F,DRON & WRIGHT,18663,3,"2,105.00",PROFESSIONAL SERVICES,16/02/17,,Technical and Service Support,Facilities & Management S
100217F,DRON & WRIGHT,18663,4,515.00,PROFESSIONAL SERVICES,16/02/17,,Technical and Service Support,Facilities & Management S
100217F,DRON & WRIGHT,18663,5,"1,279.50",DISPOSAL COSTS-ESTATES AGENTS,16/02/17,,Technical and Service Support,Facilities & Management S
100217F,DRON & WRIGHT,18663,6,"1,638.50",DISPOSAL COSTS-ESTATES AGENTS,16/02/17,,Technical and Service Support,Facilities & Management S
100217F,DRON & WRIGHT,18663,7,"1,354.51",PROFESSIONAL SERVICES,16/02/17,,Technical and Service Support,Facilities & Management S
100217F,DRON & WRIGHT,18663,8,"2,024.00",PROFESSIONAL SERVICES,16/02/17,,Technical and Service Support,Facilities & Management S
100217F,DRON & WRIGHT,18663,9,416.67,PROFESSIONAL SERVICES,16/02/17,,Technical and Service Support,Facilities & Management S
100217F,DRON & WRIGHT,18663,10,625.00,PROF FEES-MISCELLANEOUS,16/02/17,,Technical and Service Support,Facilities & Management S
100217F,DRON & WRIGHT,18663,11,455.00,PROF FEES-MISCELLANEOUS,16/02/17,,Technical and Service Support,Facilities & Management S
100217F,DRON & WRIGHT,18663,12,622.50,PROF FEES-MISCELLANEOUS,16/02/17,,Technical and Service Support,Facilities & Management S
100217F,DRON & WRIGHT,18663,13,"8,948.80",DISPOSAL COSTS-ESTATES AGENTS,16/02/17,,Technical and Service Support,Facilities & Management S
100217F,DRON & WRIGHT,18663,14,420.00,DISPOSAL COSTS-ESTATES AGENTS,16/02/17,,Technical and Service Support,Facilities & Management S
100217F,DRON & WRIGHT,18663,15,170.00,PROF FEES-MISCELLANEOUS,16/02/17,,Technical and Service Support,Facilities & Management S
100217F,DRON & WRIGHT,18663,16,420.50,PROF FEES-MISCELLANEOUS,16/02/17,,Technical and Service Support,Facilities & Management S
130217G,L B OF LAMBETH,2100114094,1,"1,000.00",GENERAL,16/02/17,"1,000.00",Community Safety Delivery,Statutory Bodies
141764,LONDON PENSIONS FUND AUTHORITY,2200,1,"80,176.41",LOCAL GOVT PENSION SCHEME PAYM,16/02/17,"80,176.41",Central Finance,Financial Services
130217G,CROYDON COUNCIL===============,2396264,1,"1,000.00",GENERAL,16/02/17,"1,000.00",Community Safety Delivery,Statutory Bodies
800094923,MAINTENANCE ASSOCIATED,25564,1,19.55,PLANNED PEST CONTROL,16/02/17,"1,712.92",Technical and Service Support,Environmental Services
800094923,MAINTENANCE ASSOCIATED,25564,2,108.28,PLANNED PEST CONTROL,16/02/17,,Technical and Service Support,Environmental Services
800094923,MAINTENANCE ASSOCIATED,25564,3,29.33,PLANNED PEST CONTROL,16/02/17,,Technical and Service Support,Environmental Services
800094923,MAINTENANCE ASSOCIATED,25564,4,820.00,PLANNED PEST CONTROL,16/02/17,,Technical and Service Support,Environmental Services
800094923,MAINTENANCE ASSOCIATED,25564,5,19.55,PLANNED PEST CONTROL,16/02/17,,Technical and Service Support,Environmental Services
800094923,MAINTENANCE ASSOCIATED,25564,6,48.88,PLANNED PEST CONTROL,16/02/17,,Technical and Service Support,Environmental Services
800094923,MAINTENANCE ASSOCIATED,25564,7,108.28,PLANNED PEST CONTROL,16/02/17,,Technical and Service Support,Environmental Services
800094923,MAINTENANCE ASSOCIATED,25564,8,19.89,PLANNED PEST CONTROL,16/02/17,,Technical and Service Support,Environmental Services
800094923,MAINTENANCE ASSOCIATED,25564,9,244.62,REACTIVE PEST CONTROL,16/02/17,,Technical and Service Support,Environmental Services
800094923,MAINTENANCE ASSOCIATED,25564,10,294.54,REACTIVE PEST CONTROL,16/02/17,,Technical and Service Support,Environmental Services
100217F,AECOM INFRASTRUCTURE &,28292589,1,"12,502.46",PROF FEES-MISCELLANEOUS,16/02/17,"12,502.46",Technical and Service Support,Consultancy
090217G,AECOM INFRASTRUCTURE &,28294211,1,"1,282.17",PROF FEES-MISCELLANEOUS,16/02/17,"16,668.30",Technical and Service Support,Consultancy
090217G,AECOM INFRASTRUCTURE &,28294211,2,"1,282.17",PROF FEES-MISCELLANEOUS,16/02/17,,Technical and Service Support,Consultancy
090217G,AECOM INFRASTRUCTURE &,28294211,3,"1,282.17",PROF FEES-MISCELLANEOUS,16/02/17,,Technical and Service Support,Consultancy
090217G,AECOM INFRASTRUCTURE &,28294211,4,"1,282.18",PROF FEES-MISCELLANEOUS,16/02/17,,Technical and Service Support,Consultancy
090217G,AECOM INFRASTRUCTURE &,28294211,5,"1,282.18",PROF FEES-MISCELLANEOUS,16/02/17,,Technical and Service Support,Consultancy
090217G,AECOM INFRASTRUCTURE &,28294211,6,"1,282.18",PROF FEES-MISCELLANEOUS,16/02/17,,Technical and Service Support,Consultancy
090217G,AECOM INFRASTRUCTURE &,28294211,7,"1,282.18",PROF FEES-MISCELLANEOUS,16/02/17,,Technical and Service Support,Consultancy
090217G,AECOM INFRASTRUCTURE &,28294211,8,"1,282.18",PROF FEES-MISCELLANEOUS,16/02/17,,Technical and Service Support,Consultancy
090217G,AECOM INFRASTRUCTURE &,28294211,9,"1,282.18",PROF FEES-MISCELLANEOUS,16/02/17,,Technical and Service Support,Consultancy
090217G,AECOM INFRASTRUCTURE &,28294211,10,"1,282.18",PROF FEES-MISCELLANEOUS,16/02/17,,Technical and Service Support,Consultancy
090217G,AECOM INFRASTRUCTURE &,28294211,11,"1,282.18",PROF FEES-MISCELLANEOUS,16/02/17,,Technical and Service Support,Consultancy
090217G,AECOM INFRASTRUCTURE &,28294211,12,"1,282.17",PROF FEES-MISCELLANEOUS,16/02/17,,Technical and Service Support,Consultancy
090217G,AECOM INFRASTRUCTURE &,28294211,13,"1,282.18",PROF FEES-MISCELLANEOUS,16/02/17,,Technical and Service Support,Consultancy
100217F,AECOM LIMITED=================,28294302,1,"10,341.44",PROF FEES-MISCELLANEOUS,16/02/17,"31,487.87",Technical and Service Support,"Works - Construction, R&M"
100217F,AECOM LIMITED=================,28294302,2,"6,054.99",PLANNED BUILDING DECORATIONS,16/02/17,,Technical and Service Support,"Works - Construction, R&M"
100217F,AECOM LIMITED=================,28294302,3,"15,091.44",PROF FEES-MISCELLANEOUS,16/02/17,,Technical and Service Support,"Works - Construction, R&M"
090217G,AECOM INFRASTRUCTURE &,28294586,1,"8,705.81",PROF FEES-MISCELLANEOUS,16/02/17,"8,705.81",Technical and Service Support,Consultancy
090217G,RS COMPONENTS LTD,285186830,1,33.60,STATIONERY CONSUMABLES,16/02/17,723.59,Technical and Service Support,Building Constr Materials
090217G,RS COMPONENTS LTD,285186830,2,88.42,STATIONERY CONSUMABLES,16/02/17,,Technical and Service Support,Building Constr Materials
090217G,RS COMPONENTS LTD,285186830,3,88.42,STATIONERY CONSUMABLES,16/02/17,,Technical and Service Support,Building Constr Materials
090217G,RS COMPONENTS LTD,285186830,4,405.84,STATIONERY CONSUMABLES,16/02/17,,Technical and Service Support,Building Constr Materials
090217G,RS COMPONENTS LTD,285186830,5,14.25,STATIONERY CONSUMABLES,16/02/17,,Technical and Service Support,Building Constr Materials
090217G,RS COMPONENTS LTD,285186830,6,25.82,STATIONERY CONSUMABLES,16/02/17,,Technical and Service Support,Building Constr Materials
090217G,RS COMPONENTS LTD,285186830,7,18.00,STATIONERY CONSUMABLES,16/02/17,,Technical and Service Support,Building Constr Materials
090217G,RS COMPONENTS LTD,285186830,8,27.76,STATIONERY CONSUMABLES,16/02/17,,Technical and Service Support,Building Constr Materials
090217G,RS COMPONENTS LTD,285186830,9,21.48,STATIONERY CONSUMABLES,16/02/17,,Technical and Service Support,Building Constr Materials
130217G,ABARIS INTERNATIONAL LIMITED,28531,1,86.68,CLOTHING,16/02/17,"1,048.55",Operational Policy,Clothing
130217G,ABARIS INTERNATIONAL LIMITED,28531,2,86.68,CLOTHING,16/02/17,,Operational Policy,Clothing
130217G,ABARIS INTERNATIONAL LIMITED,28531,3,86.68,CLOTHING,16/02/17,,Operational Policy,Clothing
130217G,ABARIS INTERNATIONAL LIMITED,28531,4,86.68,CLOTHING,16/02/17,,Operational Policy,Clothing
130217G,ABARIS INTERNATIONAL LIMITED,28531,5,86.68,CLOTHING,16/02/17,,Operational Policy,Clothing
130217G,ABARIS INTERNATIONAL LIMITED,28531,6,86.68,CLOTHING,16/02/17,,Operational Policy,Clothing
130217G,ABARIS INTERNATIONAL LIMITED,28531,7,86.68,CLOTHING,16/02/17,,Operational Policy,Clothing
130217G,ABARIS INTERNATIONAL LIMITED,28531,8,86.68,CLOTHING,16/02/17,,Operational Policy,Clothing
130217G,ABARIS INTERNATIONAL LIMITED,28531,9,86.68,CLOTHING,16/02/17,,Operational Policy,Clothing
130217G,ABARIS INTERNATIONAL LIMITED,28531,10,86.68,CLOTHING,16/02/17,,Operational Policy,Clothing
130217G,ABARIS INTERNATIONAL LIMITED,28531,11,86.68,CLOTHING,16/02/17,,Operational Policy,Clothing
130217G,ABARIS INTERNATIONAL LIMITED,28531,12,95.07,CLOTHING,16/02/17,,Operational Policy,Clothing
800094819,ARKAS LIMITED,30064,1,663.50,REACTIVE APPLIANCE BAY DOORS,16/02/17,663.50,Technical and Service Support,"Works - Construction, R&M"
800094825,ARKAS LIMITED,30102,1,"5,008.30",REACTIVE APPLIANCE BAY DOORS,16/02/17,"5,008.30",Technical and Service Support,"Works - Construction, R&M"
800094817,ARKAS LIMITED,30103,1,338.70,REACTIVE APPLIANCE BAY DOORS,16/02/17,338.70,Technical and Service Support,"Works - Construction, R&M"
800094828,ARKAS LIMITED,30104,1,845.00,REACTIVE APPLIANCE BAY DOORS,16/02/17,845.00,Technical and Service Support,"Works - Construction, R&M"
800094821,ARKAS LIMITED,30105,1,"1,703.00",REACTIVE APPLIANCE BAY DOORS,16/02/17,"1,703.00",Technical and Service Support,"Works - Construction, R&M"
800094830,ARKAS LIMITED,30106,1,"1,222.90",REACTIVE APPLIANCE BAY DOORS,16/02/17,"1,222.90",Technical and Service Support,"Works - Construction, R&M"
800094820,ARKAS LIMITED,30119,1,"1,226.50",REACTIVE APPLIANCE BAY DOORS,16/02/17,"1,226.50",Technical and Service Support,"Works - Construction, R&M"
090217G,VIMPEX LIMITED================,301529,1,550.00,OPERATIONAL EQUIP-PURCHASE,16/02/17,"1,680.00",Technical and Service Support,Fire & Rescue
090217G,VIMPEX LIMITED================,301529,2,550.00,OPERATIONAL EQUIP-PURCHASE,16/02/17,,Technical and Service Support,Fire & Rescue
090217G,VIMPEX LIMITED================,301529,3,565.00,OPERATIONAL EQUIP-PURCHASE,16/02/17,,Technical and Service Support,Fire & Rescue
090217G,VIMPEX LIMITED================,301529,4,15.00,OPERATIONAL EQUIP-PURCHASE,16/02/17,,Technical and Service Support,Fire & Rescue
800094818,ARKAS LIMITED,30288,1,783.10,REACTIVE APPLIANCE BAY DOORS,16/02/17,783.10,Technical and Service Support,"Works - Construction, R&M"
800094829,ARKAS LIMITED,30290,1,817.90,REACTIVE APPLIANCE BAY DOORS,16/02/17,817.90,Technical and Service Support,"Works - Construction, R&M"
800094822,ARKAS LIMITED,30293,1,699.10,REACTIVE APPLIANCE BAY DOORS,16/02/17,699.10,Technical and Service Support,"Works - Construction, R&M"
800094827,ARKAS LIMITED,30294,1,320.00,REACTIVE APPLIANCE BAY DOORS,16/02/17,320.00,Technical and Service Support,"Works - Construction, R&M"
090217G,THE DOCUMENT WAREHOUSE UK LTD,3061,1,"2,906.28",GENERAL,16/02/17,"2,906.28",Information Management,Facilities & Management S
100217F,COMPUTACENTRE,3780047824,1,87.00,ACQUISITIONS,16/02/17,267.00,Information and Communication Technology,ICT
100217F,COMPUTACENTRE,3780047824,2,180.00,ACQUISITIONS,16/02/17,,Information and Communication Technology,ICT
130217G,BROWNS OF BEXLEY,4,1,"1,283.00",COMMUNITY RELATIONS,16/02/17,"1,283.00",Community Safety Delivery,Catering
010217G,MITIE SECURITY (LONDON) LTD===,44/631466,1,"17,245.92",PREMISES SECURITY,16/02/17,"17,245.92",Technical and Service Support,Facilities & Management S
130217G,PRESCO,494542,1,302.52,STATIONERY CONSUMABLES,16/02/17,302.52,Communications,Stationery
800094709,SPORTSAFE UK LTD==============,500276,1,11.67,PLANNED GYM EQUIPMENT,16/02/17,"1,406.47",Technical and Service Support,Sports & Playground Equip
800094709,SPORTSAFE UK LTD==============,500276,2,15.42,PLANNED GYM EQUIPMENT,16/02/17,,Technical and Service Support,Sports & Playground Equip
800094709,SPORTSAFE UK LTD==============,500276,3,11.67,PLANNED GYM EQUIPMENT,16/02/17,,Technical and Service Support,Sports & Playground Equip
800094709,SPORTSAFE UK LTD==============,500276,4,7.92,PLANNED GYM EQUIPMENT,16/02/17,,Technical and Service Support,Sports & Playground Equip
800094709,SPORTSAFE UK LTD==============,500276,5,11.67,PLANNED GYM EQUIPMENT,16/02/17,,Technical and Service Support,Sports & Playground Equip
800094709,SPORTSAFE UK LTD==============,500276,6,15.42,PLANNED GYM EQUIPMENT,16/02/17,,Technical and Service Support,Sports & Playground Equip
800094709,SPORTSAFE UK LTD==============,500276,7,15.42,PLANNED GYM EQUIPMENT,16/02/17,,Technical and Service Support,Sports & Playground Equip
800094709,SPORTSAFE UK LTD==============,500276,8,15.42,PLANNED GYM EQUIPMENT,16/02/17,,Technical and Service Support,Sports & Playground Equip
800094709,SPORTSAFE UK LTD==============,500276,9,11.67,PLANNED GYM EQUIPMENT,16/02/17,,Technical and Service Support,Sports & Playground Equip
800094709,SPORTSAFE UK LTD==============,500276,10,15.42,PLANNED GYM EQUIPMENT,16/02/17,,Technical and Service Support,Sports & Playground Equip
800094709,SPORTSAFE UK LTD==============,500276,11,11.67,PLANNED GYM EQUIPMENT,16/02/17,,Technical and Service Support,Sports & Playground Equip
800094709,SPORTSAFE UK LTD==============,500276,12,15.42,PLANNED GYM EQUIPMENT,16/02/17,,Technical and Service Support,Sports & Playground Equip
800094709,SPORTSAFE UK LTD==============,500276,13,17.50,PLANNED GYM EQUIPMENT,16/02/17,,Technical and Service Support,Sports & Playground Equip
800094709,SPORTSAFE UK LTD==============,500276,14,18.75,PLANNED GYM EQUIPMENT,16/02/17,,Technical and Service Support,Sports & Playground Equip
800094709,SPORTSAFE UK LTD==============,500276,15,22.50,PLANNED GYM EQUIPMENT,16/02/17,,Technical and Service Support,Sports & Playground Equip
800094709,SPORTSAFE UK LTD==============,500276,16,30.84,PLANNED GYM EQUIPMENT,16/02/17,,Technical and Service Support,Sports & Playground Equip
800094709,SPORTSAFE UK LTD==============,500276,17,18.34,PLANNED GYM EQUIPMENT,16/02/17,,Technical and Service Support,Sports & Playground Equip
800094709,SPORTSAFE UK LTD==============,500276,18,11.67,PLANNED GYM EQUIPMENT,16/02/17,,Technical and Service Support,Sports & Playground Equip
800094709,SPORTSAFE UK LTD==============,500276,19,15.42,PLANNED GYM EQUIPMENT,16/02/17,,Technical and Service Support,Sports & Playground Equip
800094709,SPORTSAFE UK LTD==============,500276,20,11.67,PLANNED GYM EQUIPMENT,16/02/17,,Technical and Service Support,Sports & Playground Equip
800094709,SPORTSAFE UK LTD==============,500276,21,31.67,PLANNED GYM EQUIPMENT,16/02/17,,Technical and Service Support,Sports & Playground Equip
800094709,SPORTSAFE UK LTD==============,500276,22,16.67,PLANNED GYM EQUIPMENT,16/02/17,,Technical and Service Support,Sports & Playground Equip
800094709,SPORTSAFE UK LTD==============,500276,23,15.42,PLANNED GYM EQUIPMENT,16/02/17,,Technical and Service Support,Sports & Playground Equip
800094709,SPORTSAFE UK LTD==============,500276,24,11.67,PLANNED GYM EQUIPMENT,16/02/17,,Technical and Service Support,Sports & Playground Equip
800094709,SPORTSAFE UK LTD==============,500276,25,14.59,PLANNED GYM EQUIPMENT,16/02/17,,Technical and Service Support,Sports & Playground Equip
800094709,SPORTSAFE UK LTD==============,500276,26,15.42,PLANNED GYM EQUIPMENT,16/02/17,,Technical and Service Support,Sports & Playground Equip
800094709,SPORTSAFE UK LTD==============,500276,27,15.42,PLANNED GYM EQUIPMENT,16/02/17,,Technical and Service Support,Sports & Playground Equip
800094709,SPORTSAFE UK LTD==============,500276,28,9.58,PLANNED GYM EQUIPMENT,16/02/17,,Technical and Service Support,Sports & Playground Equip
800094709,SPORTSAFE UK LTD==============,500276,29,21.25,PLANNED GYM EQUIPMENT,16/02/17,,Technical and Service Support,Sports & Playground Equip
800094709,SPORTSAFE UK LTD==============,500276,30,13.75,PLANNED GYM EQUIPMENT,16/02/17,,Technical and Service Support,Sports & Playground Equip
800094709,SPORTSAFE UK LTD==============,500276,31,13.75,PLANNED GYM EQUIPMENT,16/02/17,,Technical and Service Support,Sports & Playground Equip
800094709,SPORTSAFE UK LTD==============,500276,32,13.75,PLANNED GYM EQUIPMENT,16/02/17,,Technical and Service Support,Sports & Playground Equip
800094709,SPORTSAFE UK LTD==============,500276,33,11.67,PLANNED GYM EQUIPMENT,16/02/17,,Technical and Service Support,Sports & Playground Equip
800094709,SPORTSAFE UK LTD==============,500276,34,13.75,PLANNED GYM EQUIPMENT,16/02/17,,Technical and Service Support,Sports & Playground Equip
800094709,SPORTSAFE UK LTD==============,500276,35,15.42,PLANNED GYM EQUIPMENT,16/02/17,,Technical and Service Support,Sports & Playground Equip
800094709,SPORTSAFE UK LTD==============,500276,36,15.42,PLANNED GYM EQUIPMENT,16/02/17,,Technical and Service Support,Sports & Playground Equip
800094709,SPORTSAFE UK LTD==============,500276,37,11.67,PLANNED GYM EQUIPMENT,16/02/17,,Technical and Service Support,Sports & Playground Equip
800094709,SPORTSAFE UK LTD==============,500276,38,13.75,PLANNED GYM EQUIPMENT,16/02/17,,Technical and Service Support,Sports & Playground Equip
800094709,SPORTSAFE UK LTD==============,500276,39,13.75,PLANNED GYM EQUIPMENT,16/02/17,,Technical and Service Support,Sports & Playground Equip
800094709,SPORTSAFE UK LTD==============,500276,40,18.75,PLANNED GYM EQUIPMENT,16/02/17,,Technical and Service Support,Sports & Playground Equip
800094709,SPORTSAFE UK LTD==============,500276,41,11.67,PLANNED GYM EQUIPMENT,16/02/17,,Technical and Service Support,Sports & Playground Equip
800094709,SPORTSAFE UK LTD==============,500276,42,17.50,PLANNED GYM EQUIPMENT,16/02/17,,Technical and Service Support,Sports & Playground Equip
800094709,SPORTSAFE UK LTD==============,500276,43,15.42,PLANNED GYM EQUIPMENT,16/02/17,,Technical and Service Support,Sports & Playground Equip
800094709,SPORTSAFE UK LTD==============,500276,44,11.67,PLANNED GYM EQUIPMENT,16/02/17,,Technical and Service Support,Sports & Playground Equip
800094709,SPORTSAFE UK LTD==============,500276,45,18.75,PLANNED GYM EQUIPMENT,16/02/17,,Technical and Service Support,Sports & Playground Equip
800094709,SPORTSAFE UK LTD==============,500276,46,17.50,PLANNED GYM EQUIPMENT,16/02/17,,Technical and Service Support,Sports & Playground Equip
800094709,SPORTSAFE UK LTD==============,500276,47,15.42,PLANNED GYM EQUIPMENT,16/02/17,,Technical and Service Support,Sports & Playground Equip
800094709,SPORTSAFE UK LTD==============,500276,48,17.50,PLANNED GYM EQUIPMENT,16/02/17,,Technical and Service Support,Sports & Playground Equip
800094709,SPORTSAFE UK LTD==============,500276,49,11.67,PLANNED GYM EQUIPMENT,16/02/17,,Technical and Service Support,Sports & Playground Equip
800094709,SPORTSAFE UK LTD==============,500276,50,11.67,PLANNED GYM EQUIPMENT,16/02/17,,Technical and Service Support,Sports & Playground Equip
800094709,SPORTSAFE UK LTD==============,500276,51,49.59,PLANNED GYM EQUIPMENT,16/02/17,,Technical and Service Support,Sports & Playground Equip
800094709,SPORTSAFE UK LTD==============,500276,52,11.67,PLANNED GYM EQUIPMENT,16/02/17,,Technical and Service Support,Sports & Playground Equip
800094709,SPORTSAFE UK LTD==============,500276,53,12.92,PLANNED GYM EQUIPMENT,16/02/17,,Technical and Service Support,Sports & Playground Equip
800094709,SPORTSAFE UK LTD==============,500276,54,18.75,PLANNED GYM EQUIPMENT,16/02/17,,Technical and Service Support,Sports & Playground Equip
800094709,SPORTSAFE UK LTD==============,500276,55,12.92,PLANNED GYM EQUIPMENT,16/02/17,,Technical and Service Support,Sports & Playground Equip
800094709,SPORTSAFE UK LTD==============,500276,56,15.42,PLANNED GYM EQUIPMENT,16/02/17,,Technical and Service Support,Sports & Playground Equip
800094709,SPORTSAFE UK LTD==============,500276,57,15.42,PLANNED GYM EQUIPMENT,16/02/17,,Technical and Service Support,Sports & Playground Equip
800094709,SPORTSAFE UK LTD==============,500276,58,17.50,PLANNED GYM EQUIPMENT,16/02/17,,Technical and Service Support,Sports & Playground Equip
800094709,SPORTSAFE UK LTD==============,500276,59,15.42,PLANNED GYM EQUIPMENT,16/02/17,,Technical and Service Support,Sports & Playground Equip
800094709,SPORTSAFE UK LTD==============,500276,60,17.50,PLANNED GYM EQUIPMENT,16/02/17,,Technical and Service Support,Sports & Playground Equip
800094709,SPORTSAFE UK LTD==============,500276,61,11.67,PLANNED GYM EQUIPMENT,16/02/17,,Technical and Service Support,Sports & Playground Equip
800094709,SPORTSAFE UK LTD==============,500276,62,13.75,PLANNED GYM EQUIPMENT,16/02/17,,Technical and Service Support,Sports & Playground Equip
800094709,SPORTSAFE UK LTD==============,500276,63,17.50,PLANNED GYM EQUIPMENT,16/02/17,,Technical and Service Support,Sports & Playground Equip
800094709,SPORTSAFE UK LTD==============,500276,64,11.67,PLANNED GYM EQUIPMENT,16/02/17,,Technical and Service Support,Sports & Playground Equip
800094709,SPORTSAFE UK LTD==============,500276,65,11.67,PLANNED GYM EQUIPMENT,16/02/17,,Technical and Service Support,Sports & Playground Equip
800094709,SPORTSAFE UK LTD==============,500276,66,17.50,PLANNED GYM EQUIPMENT,16/02/17,,Technical and Service Support,Sports & Playground Equip
800094709,SPORTSAFE UK LTD==============,500276,67,15.42,PLANNED GYM EQUIPMENT,16/02/17,,Technical and Service Support,Sports & Playground Equip
800094709,SPORTSAFE UK LTD==============,500276,68,19.59,PLANNED GYM EQUIPMENT,16/02/17,,Technical and Service Support,Sports & Playground Equip
800094709,SPORTSAFE UK LTD==============,500276,69,15.42,PLANNED GYM EQUIPMENT,16/02/17,,Technical and Service Support,Sports & Playground Equip
800094709,SPORTSAFE UK LTD==============,500276,70,15.42,PLANNED GYM EQUIPMENT,16/02/17,,Technical and Service Support,Sports & Playground Equip
800094709,SPORTSAFE UK LTD==============,500276,71,15.42,PLANNED GYM EQUIPMENT,16/02/17,,Technical and Service Support,Sports & Playground Equip
800094709,SPORTSAFE UK LTD==============,500276,72,15.42,PLANNED GYM EQUIPMENT,16/02/17,,Technical and Service Support,Sports & Playground Equip
800094709,SPORTSAFE UK LTD==============,500276,73,11.67,PLANNED GYM EQUIPMENT,16/02/17,,Technical and Service Support,Sports & Playground Equip
800094709,SPORTSAFE UK LTD==============,500276,74,17.50,PLANNED GYM EQUIPMENT,16/02/17,,Technical and Service Support,Sports & Playground Equip
800094709,SPORTSAFE UK LTD==============,500276,75,13.75,PLANNED GYM EQUIPMENT,16/02/17,,Technical and Service Support,Sports & Playground Equip
800094709,SPORTSAFE UK LTD==============,500276,76,15.42,PLANNED GYM EQUIPMENT,16/02/17,,Technical and Service Support,Sports & Playground Equip
800094709,SPORTSAFE UK LTD==============,500276,77,11.67,PLANNED GYM EQUIPMENT,16/02/17,,Technical and Service Support,Sports & Playground Equip
800094709,SPORTSAFE UK LTD==============,500276,78,15.42,PLANNED GYM EQUIPMENT,16/02/17,,Technical and Service Support,Sports & Playground Equip
800094709,SPORTSAFE UK LTD==============,500276,79,11.67,PLANNED GYM EQUIPMENT,16/02/17,,Technical and Service Support,Sports & Playground Equip
800094709,SPORTSAFE UK LTD==============,500276,80,15.42,PLANNED GYM EQUIPMENT,16/02/17,,Technical and Service Support,Sports & Playground Equip
800094709,SPORTSAFE UK LTD==============,500276,81,13.75,PLANNED GYM EQUIPMENT,16/02/17,,Technical and Service Support,Sports & Playground Equip
800094709,SPORTSAFE UK LTD==============,500276,82,17.50,PLANNED GYM EQUIPMENT,16/02/17,,Technical and Service Support,Sports & Playground Equip
800094709,SPORTSAFE UK LTD==============,500276,83,11.67,PLANNED GYM EQUIPMENT,16/02/17,,Technical and Service Support,Sports & Playground Equip
800094709,SPORTSAFE UK LTD==============,500276,84,15.42,PLANNED GYM EQUIPMENT,16/02/17,,Technical and Service Support,Sports & Playground Equip
800094709,SPORTSAFE UK LTD==============,500276,85,15.42,PLANNED GYM EQUIPMENT,16/02/17,,Technical and Service Support,Sports & Playground Equip
800094709,SPORTSAFE UK LTD==============,500276,86,13.75,PLANNED GYM EQUIPMENT,16/02/17,,Technical and Service Support,Sports & Playground Equip
800094709,SPORTSAFE UK LTD==============,500276,87,11.67,PLANNED GYM EQUIPMENT,16/02/17,,Technical and Service Support,Sports & Playground Equip
800094709,SPORTSAFE UK LTD==============,500276,88,15.42,PLANNED GYM EQUIPMENT,16/02/17,,Technical and Service Support,Sports & Playground Equip
800094709,SPORTSAFE UK LTD==============,500276,89,21.25,PLANNED GYM EQUIPMENT,16/02/17,,Technical and Service Support,Sports & Playground Equip
800094709,SPORTSAFE UK LTD==============,500276,90,17.50,PLANNED GYM EQUIPMENT,16/02/17,,Technical and Service Support,Sports & Playground Equip
800094709,SPORTSAFE UK LTD==============,500276,91,11.67,PLANNED GYM EQUIPMENT,16/02/17,,Technical and Service Support,Sports & Playground Equip
100217F,CARPETS & FLOOR COVERS DIRECT=,5266,1,"2,766.25",REACTIVE SMALL WORKS AND PROJ,16/02/17,"2,766.25",Technical and Service Support,Building Constr Materials
100217F,FOCUS & VISION TECHNOLOGY LTD,55878,1,624.76,MEDICAL EXPENSES CONTRACT,16/02/17,624.76,HR Management,Healthcare
100217F,FOCUS & VISION TECHNOLOGY LTD,55903,1,405.60,MEDICAL EXPENSES CONTRACT,16/02/17,405.60,HR Management,Healthcare
800094683,G BURLEY & SONS LTD,58465,1,"2,091.56",GROUNDS MAINTENANCE,16/02/17,"2,091.56",Technical and Service Support,Works - Construction
800094924,G BURLEY & SONS LTD,58466,1,126.00,REACTIVE GROUNDS MAINTENANCE,16/02/17,"1,028.25",Technical and Service Support,Works - Construction
800094924,G BURLEY & SONS LTD,58466,2,756.00,REACTIVE GROUNDS MAINTENANCE,16/02/17,,Technical and Service Support,Works - Construction
800094924,G BURLEY & SONS LTD,58466,3,49.06,GROUNDS MAINTENANCE,16/02/17,,Technical and Service Support,Works - Construction
800094924,G BURLEY & SONS LTD,58466,4,29.19,GROUNDS MAINTENANCE,16/02/17,,Technical and Service Support,Works - Construction
800094924,G BURLEY & SONS LTD,58466,5,68.00,REACTIVE GROUNDS MAINTENANCE,16/02/17,,Technical and Service Support,Works - Construction
100217F,VIGILANCE PROPERTIES,5959,1,"10,000.00",PREMISES SECURITY,16/02/17,"10,000.00",Technical and Service Support,Facilities & Management S
141764,NWG BUSINESS LIMITED,616206810010B,1,675.13,WATER & SEWERAGE RATES,16/02/17,675.13,Technical and Service Support,Utilities
800094196,HAYS SPECIALIST RECRUITMENT,669586,1,524.30,FRS STAFF AGENCY,16/02/17,524.30,HR Management,Human Resources
800094188,HAYS SPECIALIST RECRUITMENT,669587,1,807.08,FRS STAFF AGENCY,16/02/17,807.08,Operational Resilience,Human Resources
800094205,HAYS SPECIALIST RECRUITMENT,669588,1,"1,119.25",FRS STAFF AGENCY,16/02/17,"1,119.25",Procurement,Human Resources
800094219,HAYS SPECIALIST RECRUITMENT,669589,1,590.10,FRS STAFF AGENCY,16/02/17,590.10,Fire Stations (North West),Human Resources
800094232,HAYS SPECIALIST RECRUITMENT,669590,1,590.10,FRS STAFF AGENCY,16/02/17,590.10,Information Management,Human Resources
800094229,HAYS SPECIALIST RECRUITMENT,669591,1,"2,376.25",FRS STAFF AGENCY,16/02/17,"2,376.25",Procurement,Human Resources
800094186,HAYS SPECIALIST RECRUITMENT,669592,1,314.58,FRS STAFF AGENCY,16/02/17,314.58,Fire Safety Regulation,Human Resources
800094182,HAYS SPECIALIST RECRUITMENT,669593,1,"1,219.28",FRS STAFF AGENCY,16/02/17,"1,219.28",Legal & Democratic Services,Human Resources
800094208,HAYS SPECIALIST RECRUITMENT,669594,1,523.44,FRS STAFF AGENCY,16/02/17,523.44,Fire Safety Regulation,Human Resources
800094217,HAYS SPECIALIST RECRUITMENT,669595,1,533.05,FRS STAFF AGENCY,16/02/17,533.05,Fire Safety Regulation,Human Resources
800094187,HAYS SPECIALIST RECRUITMENT,669596,1,793.20,FRS STAFF AGENCY,16/02/17,793.20,Operational Resilience,Human Resources
800094203,HAYS SPECIALIST RECRUITMENT,669597,1,586.88,FRS STAFF AGENCY,16/02/17,586.88,Information and Communication Technology,Human Resources
800094201,HAYS SPECIALIST RECRUITMENT,669598,1,864.85,FRS STAFF AGENCY,16/02/17,864.85,Finance Services,Human Resources
800094215,HAYS SPECIALIST RECRUITMENT,669599,1,895.10,FRS STAFF AGENCY,16/02/17,895.10,Technical and Service Support,Human Resources
800094218,HAYS SPECIALIST RECRUITMENT,669600,1,"1,545.12",FRS STAFF AGENCY,16/02/17,"1,545.12",Legal & Democratic Services,Human Resources
800094223,HAYS SPECIALIST RECRUITMENT,669601,1,440.91,FRS STAFF AGENCY,16/02/17,440.91,Fire Safety Regulation,Human Resources
800094207,HAYS SPECIALIST RECRUITMENT,669602,1,607.95,FRS STAFF AGENCY,16/02/17,607.95,Fire Safety Regulation,Human Resources
800094226,HAYS SPECIALIST RECRUITMENT,669603,1,524.30,FRS STAFF AGENCY,16/02/17,524.30,Fire Safety Regulation,Human Resources
800094200,HAYS SPECIALIST RECRUITMENT,669605,1,"1,017.50",FRS STAFF AGENCY,16/02/17,"1,017.50",Development and Training,Human Resources
800094204,HAYS SPECIALIST RECRUITMENT,669606,1,733.60,FRS STAFF AGENCY,16/02/17,733.60,Information and Communication Technology,Human Resources
800094192,HAYS SPECIALIST RECRUITMENT,669607,1,451.62,FRS STAFF AGENCY,16/02/17,451.62,Fire Stations (North West),Human Resources
800094198,HAYS SPECIALIST RECRUITMENT,669608,1,723.10,FRS STAFF AGENCY,16/02/17,723.10,Information and Communication Technology,Human Resources
800094209,HAYS SPECIALIST RECRUITMENT,669609,1,314.58,FRS STAFF AGENCY,16/02/17,314.58,Fire Safety Regulation,Human Resources
800094194,HAYS SPECIALIST RECRUITMENT,669610,1,419.44,FRS STAFF AGENCY,16/02/17,419.44,Fire Safety Regulation,Human Resources
800094227,HAYS SPECIALIST RECRUITMENT,669611,1,524.30,FRS STAFF AGENCY,16/02/17,524.30,HR Management,Human Resources
800094220,HAYS SPECIALIST RECRUITMENT,669612,1,703.15,FRS STAFF AGENCY,16/02/17,703.15,Central Operations,Human Resources
800094179,HAYS SPECIALIST RECRUITMENT,669614,1,610.75,FRS STAFF AGENCY,16/02/17,610.75,Fire Safety Regulation,Human Resources
800094197,HAYS SPECIALIST RECRUITMENT,669615,1,635.10,FRS STAFF AGENCY,16/02/17,635.10,Operational Policy,Human Resources
800094181,HAYS SPECIALIST RECRUITMENT,669616,1,305.34,FRS STAFF AGENCY,16/02/17,305.34,Fire Stations (North East),Human Resources
800094191,HAYS SPECIALIST RECRUITMENT,669617,1,981.40,FRS STAFF AGENCY,16/02/17,981.40,Operational Resilience,Human Resources
800094213,HAYS SPECIALIST RECRUITMENT,669618,1,524.30,FRS STAFF AGENCY,16/02/17,524.30,Fire Safety Regulation,Human Resources
800094195,HAYS SPECIALIST RECRUITMENT,669619,1,839.42,FRS STAFF AGENCY,16/02/17,839.42,National Operational Guidance Project,Human Resources
800094189,HAYS SPECIALIST RECRUITMENT,669620,1,"1,343.10",FRS STAFF AGENCY,16/02/17,"1,343.10",National Operational Guidance Project,Human Resources
800094180,HAYS SPECIALIST RECRUITMENT,669621,1,524.30,FRS STAFF AGENCY,16/02/17,524.30,Fire Safety Regulation,Human Resources
800094210,HAYS SPECIALIST RECRUITMENT,669622,1,614.60,FRS STAFF AGENCY,16/02/17,614.60,Fire Safety Regulation,Human Resources
800094225,HAYS SPECIALIST RECRUITMENT,669623,1,"1,256.85",FRS STAFF AGENCY,16/02/17,"1,256.85",Legal & Democratic Services,Human Resources
800094202,HAYS SPECIALIST RECRUITMENT,669624,1,650.79,FRS STAFF AGENCY,16/02/17,650.79,Information and Communication Technology,Human Resources
800094212,HAYS SPECIALIST RECRUITMENT,669625,1,859.57,FRS STAFF AGENCY,16/02/17,859.57,Technical and Service Support,Human Resources
800094234,HAYS SPECIALIST RECRUITMENT,669626,1,614.60,FRS STAFF AGENCY,16/02/17,614.60,HR Management,Human Resources
800094235,HAYS SPECIALIST RECRUITMENT,669627,1,402.15,FRS STAFF AGENCY,16/02/17,402.15,National Operational Guidance Project,Human Resources
800094228,HAYS SPECIALIST RECRUITMENT,669628,1,524.30,FRS STAFF AGENCY,16/02/17,524.30,Fire Safety Regulation,Human Resources
800094190,HAYS SPECIALIST RECRUITMENT,669629,1,598.40,FRS STAFF AGENCY,16/02/17,598.40,Information and Communication Technology,Human Resources
800094230,HAYS SPECIALIST RECRUITMENT,669630,1,422.24,FRS STAFF AGENCY,16/02/17,422.24,Fire Stations (South West),Human Resources
800094224,HAYS SPECIALIST RECRUITMENT,669631,1,419.44,FRS STAFF AGENCY,16/02/17,419.44,Fire Safety Regulation,Human Resources
800094206,HAYS SPECIALIST RECRUITMENT,669632,1,524.30,FRS STAFF AGENCY,16/02/17,524.30,Fire Safety Regulation,Human Resources
800094211,HAYS SPECIALIST RECRUITMENT,669633,1,566.16,FRS STAFF AGENCY,16/02/17,566.16,Communications,Human Resources
800094236,HAYS SPECIALIST RECRUITMENT,669634,1,493.44,FRS STAFF AGENCY,16/02/17,493.44,Cadets,Human Resources
800094216,HAYS SPECIALIST RECRUITMENT,669635,1,832.78,FRS STAFF AGENCY,16/02/17,832.78,Technical and Service Support,Human Resources
800094184,HAYS SPECIALIST RECRUITMENT,669637,1,610.05,FRS STAFF AGENCY,16/02/17,610.05,Operational Resilience,Human Resources
800094233,HAYS SPECIALIST RECRUITMENT,669638,1,527.80,FRS STAFF AGENCY,16/02/17,527.80,Procurement,Human Resources
800094185,HAYS SPECIALIST RECRUITMENT,669639,1,524.30,FRS STAFF AGENCY,16/02/17,524.30,Fire Safety Regulation,Human Resources
800094199,HAYS SPECIALIST RECRUITMENT,669640,1,868.75,FRS STAFF AGENCY,16/02/17,868.75,National Operational Guidance Project,Human Resources
800094193,HAYS SPECIALIST RECRUITMENT,669641,1,403.95,FRS STAFF AGENCY,16/02/17,403.95,National Operational Guidance Project,Human Resources
800094214,HAYS SPECIALIST RECRUITMENT,669642,1,407.12,FRS STAFF AGENCY,16/02/17,407.12,Legal & Democratic Services,Human Resources
800094221,HAYS SPECIALIST RECRUITMENT,669643,1,607.95,FRS STAFF AGENCY,16/02/17,607.95,Fire Stations (South West),Human Resources
800094240,HAYS SPECIALIST RECRUITMENT,669644,1,"1,017.50",FRS STAFF AGENCY,16/02/17,"1,017.50",Development and Training,Human Resources
800094244,HAYS SPECIALIST RECRUITMENT,669645,1,559.61,FRS STAFF AGENCY,16/02/17,559.61,National Operational Guidance Project,Human Resources
800094239,HAYS SPECIALIST RECRUITMENT,669646,1,"1,256.85",FRS STAFF AGENCY,16/02/17,"1,256.85",Legal & Democratic Services,Human Resources
800094242,HAYS SPECIALIST RECRUITMENT,669647,1,578.48,FRS STAFF AGENCY,16/02/17,578.48,Information and Communication Technology,Human Resources
800094238,HAYS SPECIALIST RECRUITMENT,669648,1,"1,889.05",FRS STAFF AGENCY,16/02/17,"1,889.05",Technical and Service Support,Human Resources
800094243,HAYS SPECIALIST RECRUITMENT,669649,1,493.44,FRS STAFF AGENCY,16/02/17,493.44,Cadets,Human Resources
800094237,HAYS SPECIALIST RECRUITMENT,669650,1,"1,121.05",FRS STAFF AGENCY,16/02/17,"1,121.05",Technical and Service Support,Human Resources
800094241,HAYS SPECIALIST RECRUITMENT,669651,1,440.91,FRS STAFF AGENCY,16/02/17,440.91,Fire Safety Regulation,Human Resources
090217G,GAS & AIR SERVICES (UK)=======,7194,1,"2,400.00",REPAIR & MAINTENANCE,16/02/17,"2,400.00",Technical and Service Support,Building Constr Materials
141767,ALPHABET (GB) LIMITED,80111744,1,883.48,LEASE CAR CHARGES,16/02/17,"4,742.23",Procurement,Vehicle Management
141767,ALPHABET (GB) LIMITED,80111744,2,"3,858.75",P/PAYMTS-CAR LEASG-RENTAL,16/02/17,,Procurement,Vehicle Management
141767,ALPHABET (GB) LIMITED,80111744,3,-420.34,VAT CAR LEASING,16/02/17,,Finance Services,Vehicle Management
141767,ALPHABET (GB) LIMITED,80111744,4,420.34,LEASE CAR CHARGES,16/02/17,,Procurement,Vehicle Management
141767,ALPHABET (GB) LIMITED,80112107,1,649.37,LEASE CAR CHARGES,16/02/17,"3,537.63",Procurement,Vehicle Management
141767,ALPHABET (GB) LIMITED,80112107,2,"2,888.26",P/PAYMTS-CAR LEASG-RENTAL,16/02/17,,Procurement,Vehicle Management
141767,ALPHABET (GB) LIMITED,80112107,3,-301.33,VAT CAR LEASING,16/02/17,,Finance Services,Vehicle Management
141767,ALPHABET (GB) LIMITED,80112107,4,301.33,LEASE CAR CHARGES,16/02/17,,Procurement,Vehicle Management
141767,ALPHABET (GB) LIMITED,80112291,1,774.46,LEASE CAR CHARGES,16/02/17,"4,348.90",Procurement,Vehicle Management
141767,ALPHABET (GB) LIMITED,80112291,2,"3,574.44",P/PAYMTS-CAR LEASG-RENTAL,16/02/17,,Procurement,Vehicle Management
141767,ALPHABET (GB) LIMITED,80112291,3,-383.82,VAT CAR LEASING,16/02/17,,Finance Services,Vehicle Management
141767,ALPHABET (GB) LIMITED,80112291,4,383.82,LEASE CAR CHARGES,16/02/17,,Procurement,Vehicle Management
100217F,SHARPE PRITCHARD==============,86196,1,"1,418.00",LEGAL PROFESSIONAL FEES-GENERL,16/02/17,"1,418.00",Central Finance,Legal Services
100217F,ALLHALLOWS BAR LTD,912F 02,1,"5,715.00",PUBLIC RELATIONS,16/02/17,"5,715.00",LFB 150th Anniversary,Arts & Leisure Services
100217F,SMITHS DETECTION WATFORD LTD.,92032116,1,"6,490.00",OPERATIONAL EQUIP-PURCHASE,16/02/17,"12,980.00",CBRN RRT,Environmental Services
100217F,SMITHS DETECTION WATFORD LTD.,92032116,2,"6,490.00",OPERATIONAL EQUIP-PURCHASE,16/02/17,,CBRN RRT,Environmental Services
100217F,THAMES WATER UTILITIES LTD====,CBA1611092,1,714.00,CURRENT HYDRANT COSTS,16/02/17,714.00,Operational Resilience,Utilities
090217G,THAMES WATER UTILITIES LTD====,CBA1700159,1,348.00,CURRENT HYDRANT COSTS,16/02/17,348.00,Operational Resilience,Utilities
090217G,THAMES WATER UTILITIES LTD====,CBA1700164,1,"1,273.00",CURRENT HYDRANT COSTS,16/02/17,"1,273.00",Operational Resilience,Utilities
090217G,THAMES WATER UTILITIES LTD====,CBA1700165,1,"1,273.00",CURRENT HYDRANT COSTS,16/02/17,"1,273.00",Operational Resilience,Utilities
090217G,THAMES WATER UTILITIES LTD====,CBA1700178,1,354.00,CURRENT HYDRANT COSTS,16/02/17,354.00,Operational Resilience,Utilities
090217G,THAMES WATER UTILITIES LTD====,CBA1700226,1,348.00,CURRENT HYDRANT COSTS,16/02/17,348.00,Operational Resilience,Utilities
141764,LB OF BROMLEY,CSFI063,1,"49,435.00",FIRE AUTHS GRANT PAYMENTS,16/02/17,"49,435.00",Community Safety Investment Fund,Statutory Bodies
141765,RB OF KENSINGTON & CHELSEA,CSIF024,1,"10,000.00",FIRE AUTHS GRANT PAYMENTS,16/02/17,"10,000.00",Community Safety Investment Fund,Statutory Bodies
141764,SUTTON HOUSING PARTNERSHIP LTD,CSIF035,1,"61,640.00",FIRE AUTHS GRANT PAYMENTS,16/02/17,"61,640.00",Community Safety Investment Fund,Housing Management
141764,SUTTON HOUSING PARTNERSHIP LTD,CSIF036,1,"41,650.00",FIRE AUTHS GRANT PAYMENTS,16/02/17,"41,650.00",Community Safety Investment Fund,Housing Management
141764,L B OF HAVERING,CSIF044,1,"10,187.16",FIRE AUTHS GRANT PAYMENTS,16/02/17,"10,187.16",Community Safety Investment Fund,Statutory Bodies
141764,LB OF BROMLEY,CSIF064,1,"7,153.70",FIRE AUTHS GRANT PAYMENTS,16/02/17,"7,153.70",Community Safety Investment Fund,Statutory Bodies
141764,LB WANDSWORTH,CSIF082,1,"9,600.00",FIRE AUTHS GRANT PAYMENTS,16/02/17,"9,600.00",Community Safety Investment Fund,Statutory Bodies
141764,LB WANDSWORTH,CSIF083,1,"24,985.24",FIRE AUTHS GRANT PAYMENTS,16/02/17,"24,985.24",Community Safety Investment Fund,Statutory Bodies
141764,LB WANDSWORTH,CSIF084,1,"15,000.00",FIRE AUTHS GRANT PAYMENTS,16/02/17,"15,000.00",Community Safety Investment Fund,Statutory Bodies
141765,CITY OF LONDON,CSIF086,1,"10,000.00",FIRE AUTHS GRANT PAYMENTS,16/02/17,"10,000.00",Community Safety Investment Fund,Facilities & Management S
141765,CITY OF LONDON,CSIF088,1,"10,000.00",FIRE AUTHS GRANT PAYMENTS,16/02/17,"10,000.00",Community Safety Investment Fund,Facilities & Management S
141764,L B OF HACKNEY,CSIF096,1,"9,735.00",FIRE AUTHS GRANT PAYMENTS,16/02/17,"9,735.00",Community Safety Investment Fund,Statutory Bodies
141765,LB OF HAMMERSMITH & FULHAM,CSIF108,1,"9,984.00",FIRE AUTHS GRANT PAYMENTS,16/02/17,"9,984.00",Community Safety Investment Fund,Statutory Bodies
130217G,E&S B DAVIS LTD,DAV/65784,1,295.00,OPERATIONAL EQUIP-PURCHASE,16/02/17,295.00,Fire Stations (South East),Environmental Services
090217G,E&S B DAVIS LTD,DAV/66259,1,295.00,OPERATIONAL EQUIP-PURCHASE,16/02/17,295.00,Fire Stations (North East),Environmental Services
800094926,ALLSTAR BUSINESS SOLUTIONS LTD,E2007881404,1,669.11,FUEL,16/02/17,"18,361.60",Procurement,Vehicle Management
800094926,ALLSTAR BUSINESS SOLUTIONS LTD,E2007881404,2,561.56,FUEL,16/02/17,,Fire Stations (North West),Vehicle Management
800094926,ALLSTAR BUSINESS SOLUTIONS LTD,E2007881404,3,556.91,FUEL,16/02/17,,Fire Stations (North West),Vehicle Management
800094926,ALLSTAR BUSINESS SOLUTIONS LTD,E2007881404,4,511.63,FUEL,16/02/17,,Fire Stations (South West),Vehicle Management
800094926,ALLSTAR BUSINESS SOLUTIONS LTD,E2007881404,5,502.86,FUEL,16/02/17,,Fire Stations (South West),Vehicle Management
800094926,ALLSTAR BUSINESS SOLUTIONS LTD,E2007881404,6,460.38,FUEL,16/02/17,,Fire Stations (South West),Vehicle Management
800094926,ALLSTAR BUSINESS SOLUTIONS LTD,E2007881404,7,412.05,FUEL,16/02/17,,Fire Stations (North West),Vehicle Management
800094926,ALLSTAR BUSINESS SOLUTIONS LTD,E2007881404,8,409.81,FUEL,16/02/17,,Fire Stations (South East),Vehicle Management
800094926,ALLSTAR BUSINESS SOLUTIONS LTD,E2007881404,9,403.03,FUEL,16/02/17,,Fire Stations (North West),Vehicle Management
800094926,ALLSTAR BUSINESS SOLUTIONS LTD,E2007881404,10,383.19,FUEL,16/02/17,,Fire Stations (South West),Vehicle Management
800094926,ALLSTAR BUSINESS SOLUTIONS LTD,E2007881404,11,375.93,FUEL,16/02/17,,Fire Stations (North West),Vehicle Management
800094926,ALLSTAR BUSINESS SOLUTIONS LTD,E2007881404,12,359.85,FUEL,16/02/17,,Fire Stations (South West),Vehicle Management
800094926,ALLSTAR BUSINESS SOLUTIONS LTD,E2007881404,13,343.63,FUEL,16/02/17,,Fire Stations (North East),Vehicle Management
800094926,ALLSTAR BUSINESS SOLUTIONS LTD,E2007881404,14,307.87,FUEL,16/02/17,,Fire Stations (South West),Vehicle Management
800094926,ALLSTAR BUSINESS SOLUTIONS LTD,E2007881404,15,307.00,FUEL,16/02/17,,Fire Stations (North East),Vehicle Management
800094926,ALLSTAR BUSINESS SOLUTIONS LTD,E2007881404,16,281.24,FUEL,16/02/17,,Fire Stations (North West),Vehicle Management
800094926,ALLSTAR BUSINESS SOLUTIONS LTD,E2007881404,17,276.34,FUEL,16/02/17,,Fire Stations (North West),Vehicle Management
800094926,ALLSTAR BUSINESS SOLUTIONS LTD,E2007881404,18,274.52,FUEL,16/02/17,,Fire Stations (North East),Vehicle Management
800094926,ALLSTAR BUSINESS SOLUTIONS LTD,E2007881404,19,273.11,FUEL,16/02/17,,Fire Stations (North West),Vehicle Management
800094926,ALLSTAR BUSINESS SOLUTIONS LTD,E2007881404,20,270.35,FUEL,16/02/17,,Central Operations,Vehicle Management
800094926,ALLSTAR BUSINESS SOLUTIONS LTD,E2007881404,21,269.24,FUEL,16/02/17,,Fire Stations (South West),Vehicle Management
800094926,ALLSTAR BUSINESS SOLUTIONS LTD,E2007881404,22,254.66,FUEL,16/02/17,,Fire Stations (South West),Vehicle Management
800094926,ALLSTAR BUSINESS SOLUTIONS LTD,E2007881404,23,254.32,FUEL,16/02/17,,Fire Stations (North West),Vehicle Management
800094926,ALLSTAR BUSINESS SOLUTIONS LTD,E2007881404,24,239.00,FUEL,16/02/17,,Fire Stations (North West),Vehicle Management
800094926,ALLSTAR BUSINESS SOLUTIONS LTD,E2007881404,25,232.41,FUEL,16/02/17,,Fire Stations (North West),Vehicle Management
800094926,ALLSTAR BUSINESS SOLUTIONS LTD,E2007881404,26,227.05,FUEL,16/02/17,,Fire Stations (North West),Vehicle Management
800094926,ALLSTAR BUSINESS SOLUTIONS LTD,E2007881404,27,223.38,FUEL,16/02/17,,Fire Stations (North West),Vehicle Management
800094926,ALLSTAR BUSINESS SOLUTIONS LTD,E2007881404,28,220.04,FUEL,16/02/17,,Fire Stations (South East),Vehicle Management
800094926,ALLSTAR BUSINESS SOLUTIONS LTD,E2007881404,29,219.88,FUEL,16/02/17,,Fire Stations (North East),Vehicle Management
800094926,ALLSTAR BUSINESS SOLUTIONS LTD,E2007881404,30,218.34,FUEL,16/02/17,,Fire Stations (South East),Vehicle Management
800094926,ALLSTAR BUSINESS SOLUTIONS LTD,E2007881404,31,217.67,FUEL,16/02/17,,Fire Stations (South West),Vehicle Management
800094926,ALLSTAR BUSINESS SOLUTIONS LTD,E2007881404,32,215.33,FUEL,16/02/17,,Command Units,Vehicle Management
800094926,ALLSTAR BUSINESS SOLUTIONS LTD,E2007881404,33,209.38,FUEL,16/02/17,,Fire Stations (South East),Vehicle Management
800094926,ALLSTAR BUSINESS SOLUTIONS LTD,E2007881404,34,198.02,FUEL,16/02/17,,Fire Stations (North East),Vehicle Management
800094926,ALLSTAR BUSINESS SOLUTIONS LTD,E2007881404,35,193.86,FUEL,16/02/17,,Information and Communication Technology,Vehicle Management
800094926,ALLSTAR BUSINESS SOLUTIONS LTD,E2007881404,36,193.43,FUEL,16/02/17,,Operational Resilience,Vehicle Management
800094926,ALLSTAR BUSINESS SOLUTIONS LTD,E2007881404,37,190.86,FUEL,16/02/17,,Fire Stations (South East),Vehicle Management
800094926,ALLSTAR BUSINESS SOLUTIONS LTD,E2007881404,38,182.57,FUEL,16/02/17,,Command Units,Vehicle Management
800094926,ALLSTAR BUSINESS SOLUTIONS LTD,E2007881404,39,182.36,FUEL,16/02/17,,Fire Stations (North East),Vehicle Management
800094926,ALLSTAR BUSINESS SOLUTIONS LTD,E2007881404,40,179.37,FUEL,16/02/17,,Command Units,Vehicle Management
800094926,ALLSTAR BUSINESS SOLUTIONS LTD,E2007881404,41,178.68,FUEL,16/02/17,,Fire Stations (North West),Vehicle Management
800094926,ALLSTAR BUSINESS SOLUTIONS LTD,E2007881404,42,175.13,FUEL,16/02/17,,Fire Stations (South West),Vehicle Management
800094926,ALLSTAR BUSINESS SOLUTIONS LTD,E2007881404,43,172.82,FUEL,16/02/17,,Fire Stations (North West),Vehicle Management
800094926,ALLSTAR BUSINESS SOLUTIONS LTD,E2007881404,44,169.63,FUEL,16/02/17,,Fire Stations (South West),Vehicle Management
800094926,ALLSTAR BUSINESS SOLUTIONS LTD,E2007881404,45,167.70,FUEL,16/02/17,,Fire Stations (North West),Vehicle Management
800094926,ALLSTAR BUSINESS SOLUTIONS LTD,E2007881404,46,159.44,FUEL,16/02/17,,Fire Stations (North West),Vehicle Management
800094926,ALLSTAR BUSINESS SOLUTIONS LTD,E2007881404,47,153.06,FUEL,16/02/17,,Fire Stations (South West),Vehicle Management
800094926,ALLSTAR BUSINESS SOLUTIONS LTD,E2007881404,48,151.59,FUEL,16/02/17,,Fire Stations (North West),Vehicle Management
800094926,ALLSTAR BUSINESS SOLUTIONS LTD,E2007881404,49,150.53,FUEL,16/02/17,,Fire Stations (South East),Vehicle Management
800094926,ALLSTAR BUSINESS SOLUTIONS LTD,E2007881404,50,149.85,FUEL,16/02/17,,Fire Stations (South East),Vehicle Management
800094926,ALLSTAR BUSINESS SOLUTIONS LTD,E2007881404,51,149.14,FUEL,16/02/17,,Fire Stations (North East),Vehicle Management
800094926,ALLSTAR BUSINESS SOLUTIONS LTD,E2007881404,52,148.71,FUEL,16/02/17,,Fire Stations (North East),Vehicle Management
800094926,ALLSTAR BUSINESS SOLUTIONS LTD,E2007881404,53,147.70,FUEL,16/02/17,,Fire Stations (South East),Vehicle Management
800094926,ALLSTAR BUSINESS SOLUTIONS LTD,E2007881404,54,145.50,FUEL,16/02/17,,Fire Stations (North West),Vehicle Management
800094926,ALLSTAR BUSINESS SOLUTIONS LTD,E2007881404,55,144.41,FUEL,16/02/17,,Command Units,Vehicle Management
800094926,ALLSTAR BUSINESS SOLUTIONS LTD,E2007881404,56,142.72,FUEL,16/02/17,,Fire Safety Regulation,Vehicle Management
800094926,ALLSTAR BUSINESS SOLUTIONS LTD,E2007881404,57,137.75,FUEL,16/02/17,,Fire Stations (North East),Vehicle Management
800094926,ALLSTAR BUSINESS SOLUTIONS LTD,E2007881404,58,137.49,FUEL,16/02/17,,Fire Stations (North East),Vehicle Management
800094926,ALLSTAR BUSINESS SOLUTIONS LTD,E2007881404,59,136.30,FUEL,16/02/17,,Fire Stations (North East),Vehicle Management
800094926,ALLSTAR BUSINESS SOLUTIONS LTD,E2007881404,60,134.56,FUEL,16/02/17,,Fire Stations (South West),Vehicle Management
800094926,ALLSTAR BUSINESS SOLUTIONS LTD,E2007881404,61,133.38,FUEL,16/02/17,,Fire Stations (North East),Vehicle Management
800094926,ALLSTAR BUSINESS SOLUTIONS LTD,E2007881404,62,132.86,FUEL,16/02/17,,Fire Stations (North East),Vehicle Management
800094926,ALLSTAR BUSINESS SOLUTIONS LTD,E2007881404,63,125.41,FUEL,16/02/17,,Fire Stations (South East),Vehicle Management
800094926,ALLSTAR BUSINESS SOLUTIONS LTD,E2007881404,64,123.19,FUEL,16/02/17,,Fire Stations (South West),Vehicle Management
800094926,ALLSTAR BUSINESS SOLUTIONS LTD,E2007881404,65,120.35,FUEL,16/02/17,,Fire Stations (North East),Vehicle Management
800094926,ALLSTAR BUSINESS SOLUTIONS LTD,E2007881404,66,119.30,FUEL,16/02/17,,Fire Stations (South East),Vehicle Management
800094926,ALLSTAR BUSINESS SOLUTIONS LTD,E2007881404,67,119.23,FUEL,16/02/17,,Fire Stations (North East),Vehicle Management
800094926,ALLSTAR BUSINESS SOLUTIONS LTD,E2007881404,68,116.96,FUEL,16/02/17,,Fire Stations (South East),Vehicle Management
800094926,ALLSTAR BUSINESS SOLUTIONS LTD,E2007881404,69,116.62,FUEL,16/02/17,,Command Units,Vehicle Management
800094926,ALLSTAR BUSINESS SOLUTIONS LTD,E2007881404,70,115.88,FUEL,16/02/17,,Fire Stations (North East),Vehicle Management
800094926,ALLSTAR BUSINESS SOLUTIONS LTD,E2007881404,71,114.60,FUEL,16/02/17,,Command Units,Vehicle Management
800094926,ALLSTAR BUSINESS SOLUTIONS LTD,E2007881404,72,108.46,FUEL,16/02/17,,Fire Stations (South East),Vehicle Management
800094926,ALLSTAR BUSINESS SOLUTIONS LTD,E2007881404,73,103.01,FUEL,16/02/17,,Fire Stations (North West),Vehicle Management
800094926,ALLSTAR BUSINESS SOLUTIONS LTD,E2007881404,74,102.78,FUEL,16/02/17,,Fire Stations (North East),Vehicle Management
800094926,ALLSTAR BUSINESS SOLUTIONS LTD,E2007881404,75,97.24,FUEL,16/02/17,,Command Units,Vehicle Management
800094926,ALLSTAR BUSINESS SOLUTIONS LTD,E2007881404,76,96.28,FUEL,16/02/17,,Fire Stations (North East),Vehicle Management
800094926,ALLSTAR BUSINESS SOLUTIONS LTD,E2007881404,77,92.29,FUEL,16/02/17,,Fire Stations (South West),Vehicle Management
800094926,ALLSTAR BUSINESS SOLUTIONS LTD,E2007881404,78,91.55,FUEL,16/02/17,,Fire Stations (South East),Vehicle Management
800094926,ALLSTAR BUSINESS SOLUTIONS LTD,E2007881404,79,87.42,FUEL,16/02/17,,Fire Stations (South East),Vehicle Management
800094926,ALLSTAR BUSINESS SOLUTIONS LTD,E2007881404,80,83.27,FUEL,16/02/17,,Fire Stations (North East),Vehicle Management
800094926,ALLSTAR BUSINESS SOLUTIONS LTD,E2007881404,81,77.37,FUEL,16/02/17,,Fire Stations (North West),Vehicle Management
800094926,ALLSTAR BUSINESS SOLUTIONS LTD,E2007881404,82,73.68,FUEL,16/02/17,,Operational Policy,Vehicle Management
800094926,ALLSTAR BUSINESS SOLUTIONS LTD,E2007881404,83,71.37,FUEL,16/02/17,,Operational Resilience,Vehicle Management
800094926,ALLSTAR BUSINESS SOLUTIONS LTD,E2007881404,84,63.97,FUEL,16/02/17,,Fire Stations (North East),Vehicle Management
800094926,ALLSTAR BUSINESS SOLUTIONS LTD,E2007881404,85,62.95,FUEL,16/02/17,,Fire Stations (South East),Vehicle Management
800094926,ALLSTAR BUSINESS SOLUTIONS LTD,E2007881404,86,57.77,FUEL,16/02/17,,Fire Stations (South East),Vehicle Management
800094926,ALLSTAR BUSINESS SOLUTIONS LTD,E2007881404,87,56.76,FUEL,16/02/17,,Fire Stations (North East),Vehicle Management
800094926,ALLSTAR BUSINESS SOLUTIONS LTD,E2007881404,88,56.31,FUEL,16/02/17,,Cadets,Vehicle Management
800094926,ALLSTAR BUSINESS SOLUTIONS LTD,E2007881404,89,55.05,FUEL,16/02/17,,Fire Stations (South East),Vehicle Management
800094926,ALLSTAR BUSINESS SOLUTIONS LTD,E2007881404,90,50.03,FUEL,16/02/17,,Operational Resilience,Vehicle Management
800094926,ALLSTAR BUSINESS SOLUTIONS LTD,E2007881404,91,47.91,FUEL,16/02/17,,CBRN RRT,Vehicle Management
800094926,ALLSTAR BUSINESS SOLUTIONS LTD,E2007881404,92,46.98,FUEL,16/02/17,,LIFE - LFB Funded,Vehicle Management
800094926,ALLSTAR BUSINESS SOLUTIONS LTD,E2007881404,93,38.37,FUEL,16/02/17,,Fire Stations (South West),Vehicle Management
800094926,ALLSTAR BUSINESS SOLUTIONS LTD,E2007881404,94,29.96,FUEL,16/02/17,,Technical and Service Support,Vehicle Management
800094926,ALLSTAR BUSINESS SOLUTIONS LTD,E2007881404,95,25.39,FUEL,16/02/17,,Technical and Service Support,Vehicle Management
800094926,ALLSTAR BUSINESS SOLUTIONS LTD,E2007881404,96,23.64,FUEL,16/02/17,,Fire Stations (South East),Vehicle Management
800094926,ALLSTAR BUSINESS SOLUTIONS LTD,E2007881404,97,9.76,FUEL,16/02/17,,Fire Stations (North East),Vehicle Management
100217F,ERNST AND YOUNG,GB10100120916,1,"16,871.00",EXTERNAL AUDIT,16/02/17,"16,871.00",Central Finance,Financial Services
260117F,METEOROLOGICAL OFFICE=========,I0105411,1,"8,250.00",GENERAL,16/02/17,"8,250.00",Operational Response,ICT
130217G,HALL FUELS,I09004377,1,"2,870.70",FUEL,16/02/17,"2,870.70",Fire Stations (South West),Vehicle Management
130217G,HALL FUELS,I09023572,1,"2,571.75",FUEL,16/02/17,"2,571.75",Fire Stations (North West),Vehicle Management
070217G,HALL FUELS,I09041670,1,"2,857.50",FUEL,16/02/17,"2,857.50",Fire Stations (South West),Vehicle Management
100217F,ALIGNED ASSETS LIMITED,INV1805,1,"22,231.76",ACQUISITIONS,16/02/17,"22,231.76",Information and Communication Technology,Consultancy
141764,LEX AUTOLEASE,IRIN512532,1,948.72,LEASE CAR CHARGES,16/02/17,"4,679.52",Procurement,Vehicle Management
141764,LEX AUTOLEASE,IRIN512532,2,"3,730.80",VAT CAR LEASING,16/02/17,,Finance Services,Vehicle Management
141764,LEX AUTOLEASE,IRIN512532,3,-402.36,VAT CAR LEASING,16/02/17,,Finance Services,Vehicle Management
141764,LEX AUTOLEASE,IRIN512532,4,402.36,LEASE CAR CHARGES,16/02/17,,Procurement,Vehicle Management
141764,LEX AUTOLEASE,IRIN513123,1,816.61,LEASE CAR CHARGES,16/02/17,"4,139.76",Procurement,Vehicle Management
141764,LEX AUTOLEASE,IRIN513123,2,"3,323.15",P/PAYMTS-CAR LEASG-RENTAL,16/02/17,,Procurement,Vehicle Management
141764,LEX AUTOLEASE,IRIN513123,3,-372.47,VAT CAR LEASING,16/02/17,,Finance Services,Vehicle Management
141764,LEX AUTOLEASE,IRIN513123,4,372.47,LEASE CAR CHARGES,16/02/17,,Procurement,Vehicle Management
800094824,JACKSON LIFT GROUP============,JS505786,1,"1,390.00",REACTIVE LIFTS,16/02/17,"1,390.00",Technical and Service Support,Facilities & Management S
141764,LEX AUTOLEASE,MI4948851,1,691.61,LEASE CAR CHARGES,16/02/17,"4,428.72",Procurement,Vehicle Management
141764,LEX AUTOLEASE,MI4948851,2,"3,737.11",P/PAYMTS-CAR LEASG-RENTAL,16/02/17,,Procurement,Vehicle Management
141764,LEX AUTOLEASE,MI4948851,3,-388.63,VAT CAR LEASING,16/02/17,,Finance Services,Vehicle Management
141764,LEX AUTOLEASE,MI4948851,4,388.63,LEASE CAR CHARGES,16/02/17,,Procurement,Vehicle Management
141764,LEX AUTOLEASE,MRI4948812,1,777.84,LEASE CAR CHARGES,16/02/17,"3,998.76",Procurement,Vehicle Management
141764,LEX AUTOLEASE,MRI4948812,2,"3,220.92",P/PAYMTS-CAR LEASG-RENTAL,16/02/17,,Procurement,Vehicle Management
141764,LEX AUTOLEASE,MRI4948812,3,-347.69,VAT CAR LEASING,16/02/17,,Finance Services,Vehicle Management
141764,LEX AUTOLEASE,MRI4948812,4,347.69,LEASE CAR CHARGES,16/02/17,,Procurement,Vehicle Management
141764,LEX AUTOLEASE,MRI4948939,1,833.03,LEASE CAR CHARGES,16/02/17,"4,343.64",Procurement,Vehicle Management
141764,LEX AUTOLEASE,MRI4948939,2,"3,510.61",P/PAYMTS-CAR LEASG-RENTAL,16/02/17,,Procurement,Vehicle Management
141764,LEX AUTOLEASE,MRI4948939,3,-376.70,VAT CAR LEASING,16/02/17,,Finance Services,Vehicle Management
141764,LEX AUTOLEASE,MRI4948939,4,376.70,LEASE CAR CHARGES,16/02/17,,Procurement,Vehicle Management
141764,LEX AUTOLEASE,MRI4949153,1,726.36,LEASE CAR CHARGES,16/02/17,"4,571.04",Procurement,Vehicle Management
141764,LEX AUTOLEASE,MRI4949153,2,"3,844.68",P/PAYMTS-CAR LEASG-RENTAL,16/02/17,,Procurement,Vehicle Management
141764,LEX AUTOLEASE,MRI4949153,3,-399.44,VAT CAR LEASING,16/02/17,,Finance Services,Vehicle Management
141764,LEX AUTOLEASE,MRI4949153,4,399.44,LEASE CAR CHARGES,16/02/17,,Procurement,Vehicle Management
141764,LEX AUTOLEASE,MRI4949171,1,868.30,LEASE CAR CHARGES,16/02/17,"5,030.64",Procurement,Vehicle Management
141764,LEX AUTOLEASE,MRI4949171,2,"4,162.34",P/PAYMTS-CAR LEASG-RENTAL,16/02/17,,Procurement,Vehicle Management
141764,LEX AUTOLEASE,MRI4949171,3,-449.29,VAT CAR LEASING,16/02/17,,Finance Services,Vehicle Management
141764,LEX AUTOLEASE,MRI4949171,4,449.29,LEASE CAR CHARGES,16/02/17,,Procurement,Vehicle Management
090217G,G4S FIRE & SECURITY SYSTEMS UK,MTM14797,1,"4,177.73",DEVELOPMENT  EXPENSES-CONTRACT,16/02/17,"4,177.73",Technical and Service Support,Facilities & Management S
090217G,CANNON'S MSA LTD,NV1105295,1,"1,400.00",GENERAL CONSUMABLES,16/02/17,"1,400.00",Procurement,Vehicle Management
100217F,ESTEEM SYSTEMS LTD,OP/I094364,1,"4,250.00",MAINTENANCE & SUPPORT,16/02/17,"4,250.00",Information and Communication Technology,ICT
100217F,PILLINGER CONTROLS LTD========,PI76015,1,"1,443.00",REACTIVE SMALL WORKS AND PROJ,16/02/17,"1,443.00",Technical and Service Support,Environmental Services
090217G,ASSESSMENT AND DEVELOPMENT,SIN010942,1,"36,900.00",CONSULTANTS,16/02/17,"36,900.00",HR Management,Human Resources
070217G,HEALTH MANAGEMENT LIMITED=====,0000158521,1,"116,467.37",OHS CONTRACT,20/02/17,"116,467.37",HR Management,Healthcare
020217G,HEALTH MANAGEMENT LIMITED=====,0000158525,1,431.10,DRUG & ALCOHOL TESTS,20/02/17,431.10,HR Management,Healthcare
020217G,HEALTH MANAGEMENT LIMITED=====,0000158526,1,547.20,OHS CONTRACT,20/02/17,845.87,HR Management,Healthcare
020217G,HEALTH MANAGEMENT LIMITED=====,0000158526,2,298.67,DRUG & ALCOHOL TESTS,20/02/17,,HR Management,Healthcare
070217G,HEALTH MANAGEMENT LIMITED=====,000158522,1,200.00,THIRD PARTY REPORTS,20/02/17,"1,317.80",HR Management,Healthcare
070217G,HEALTH MANAGEMENT LIMITED=====,000158522,2,"1,117.80",THIRD PARTY REPORTS,20/02/17,,HR Management,Healthcare
141770,THAMES WATER UTILITIES LTD====,0139435144B,1,325.52,WATER & SEWERAGE RATES,20/02/17,325.52,Technical and Service Support,Utilities
030217G,CLARITY INFORMATION SOLUTIONS,01505,1,"1,000.00",MAINTENANCE & SUPPORT,20/02/17,"1,000.00",Community Safety Delivery,ICT
141770,THAMES WATER UTILITIES LTD====,0213662018B,1,781.19,WATER & SEWERAGE RATES,20/02/17,781.19,Technical and Service Support,Utilities
141770,THAMES WATER UTILITIES LTD====,0229569091N,1,258.93,WATER & SEWERAGE RATES,20/02/17,258.93,Technical and Service Support,Utilities
140217K,*SPRUE SAFETY PRODUCTS LTD,1101621,1,880.00,FIRE DETECTORS,20/02/17,"3,080.00",Fire Stations (South East),Health & Safety
140217K,*SPRUE SAFETY PRODUCTS LTD,1101621,2,"2,200.00",FIRE DETECTORS,20/02/17,,Fire Stations (South East),Health & Safety
150217K,*SPRUE SAFETY PRODUCTS LTD,1101622,1,800.00,FIRE DETECTORS,20/02/17,800.00,Fire Stations (South East),Health & Safety
150217K,SMITH CONSTRUCTION (HECKINGTON,11513,1,"5,981.32",REACTIVE SMALL WORKS AND PROJ,20/02/17,"5,981.32",Technical and Service Support,Sports & Playground Equip
150217K,*OCS GROUP UK LTD,131016,1,998.00,CATERING,20/02/17,998.00,Technical and Service Support,Catering
150217K,ATKINS LIMITED,16042419,1,"32,081.59",MAINTENANCE & SUPPORT,20/02/17,"32,081.59",Information and Communication Technology,ICT
060217G,PANTHERELLA INTERNATIONAL GROU,160710,1,719.82,UNIFORMS - POMS,20/02/17,719.82,Procurement,Clothing
150217K,BUREAU VERITAS HS&E LTD=======,17000344,1,"98,583.57",SCIENTIFIC SERVICES,20/02/17,"98,583.57",Procurement,Environmental Services
141768,HEARTFELT ROOFING LIMITED,1899,1,"1,192.00",PLANNED BUILDING DECORATIONS,20/02/17,"2,980.00",Technical and Service Support,"Works - Construction, R&M"
141768,HEARTFELT ROOFING LIMITED,1899,2,"1,788.00",PLANNED BUILDING DECORATIONS,20/02/17,,Technical and Service Support,"Works - Construction, R&M"
100217F,DISCLOSURE SCOTLAND===========,2026232,1,975.00,CRB CHECKS,20/02/17,975.00,HR Management,Human Resources
150217K,E3 MEDIA LTD,208720,1,"9,838.16",ACQUISITIONS,20/02/17,"9,838.16",Communications,Facilities & Management S
150217K,E3 MEDIA LTD,208721,1,"10,546.25",ACQUISITIONS,20/02/17,"10,546.25",Communications,Facilities & Management S
150217K,E3 MEDIA LTD,208724,1,"2,199.30",ACQUISITIONS,20/02/17,"2,199.30",Communications,Facilities & Management S
140217K,PREMIER MOVES LTD=============,222929,1,"1,165.50",REMOVALS,20/02/17,"1,165.50",Technical and Service Support,Facilities & Management S
150217K,AECOM INFRASTRUCTURE &,28292424,1,"12,008.88",PROF FEES-MISCELLANEOUS,20/02/17,"14,289.78",Technical and Service Support,Consultancy
150217K,AECOM INFRASTRUCTURE &,28292424,2,"2,280.90",PROF FEES-MISCELLANEOUS,20/02/17,,Technical and Service Support,Consultancy
140217K,AECOM INFRASTRUCTURE &,28295214,1,"17,527.36",PROF FEES-MISCELLANEOUS,20/02/17,"23,685.63",Technical and Service Support,Consultancy
140217K,AECOM INFRASTRUCTURE &,28295214,2,"6,158.27",PROF FEES-MISCELLANEOUS,20/02/17,,Technical and Service Support,Consultancy
150217K,AECOM INFRASTRUCTURE &,28295496,1,565.53,PLANNED BUILDING DECORATIONS,20/02/17,565.53,Technical and Service Support,Consultancy
150217K,BERKELEY CATERING LIMITED,333696,1,301.55,REFRESHMENTS,20/02/17,301.55,Fire Stations (South East),Catering
150217K,BERKELEY CATERING LIMITED,334100,1,252.10,REFRESHMENTS,20/02/17,252.10,Fire Stations (North East),Catering
150217K,B NOKES CONTRACTS LTD,3401,1,300.00,PROF FEES-MISCELLANEOUS,20/02/17,300.00,Technical and Service Support,"Works - Construction, R&M"
150217K,B NOKES CONTRACTS LTD,3404,1,"3,223.50",DEVELOPMENT  EXPENSES-CONTRACT,20/02/17,"3,223.50",Technical and Service Support,"Works - Construction, R&M"
150217K,B NOKES CONTRACTS LTD,3405,1,"2,906.65",PLANNED BUILDING DECORATIONS,20/02/17,"2,906.65",Technical and Service Support,"Works - Construction, R&M"
150217K,B NOKES CONTRACTS LTD,3406,1,"4,132.00",REACTIVE SMALL WORKS AND PROJ,20/02/17,"4,132.00",Technical and Service Support,"Works - Construction, R&M"
150217K,B NOKES CONTRACTS LTD,3407,1,"9,952.50",REACTIVE SMALL WORKS AND PROJ,20/02/17,"9,952.50",Technical and Service Support,"Works - Construction, R&M"
140217K,HUNTERS CONTRACTS LIMITED,357143,1,367.72,OFFICE FURNITURE,20/02/17,367.72,Fire Stations (South East),Furniture
150217K,HUNTERS CONTRACTS LIMITED,357159,1,719.00,OFFICE FURNITURE,20/02/17,"2,711.00",Operational Response,Furniture
150217K,HUNTERS CONTRACTS LIMITED,357159,2,"1,992.00",OFFICE FURNITURE,20/02/17,,Operational Response,Furniture
150217K,BRISTOL UNIFORMS LTD==========,368478,1,789.57,CLOTHING,20/02/17,789.57,Procurement,Clothing
150217K,BRISTOL UNIFORMS LTD==========,368479,1,"3,858.88",CLOTHING,20/02/17,"3,858.88",Procurement,Clothing
150217K,BRISTOL UNIFORMS LTD==========,368480/675,1,"100,016.91",CLOTHING,20/02/17,"100,016.91",Procurement,Clothing
150217K,BRISTOL UNIFORMS LTD==========,371828,1,789.57,CLOTHING,20/02/17,789.57,Procurement,Clothing
150217K,BRISTOL UNIFORMS LTD==========,371829,1,"3,858.88",CLOTHING,20/02/17,"3,858.88",Procurement,Clothing
150217K,BRISTOL UNIFORMS LTD==========,371830/677,1,"156,359.47",CLOTHING,20/02/17,"156,359.47",Procurement,Clothing
150217K,BRISTOL UNIFORMS LTD==========,376847,1,789.57,CLOTHING,20/02/17,789.57,Procurement,Clothing
150217K,BRISTOL UNIFORMS LTD==========,376848,1,"3,858.88",CLOTHING,20/02/17,"3,858.88",Procurement,Clothing
150217K,BRISTOL UNIFORMS LTD==========,376849,1,"156,859.47",CLOTHING,20/02/17,"156,859.47",Procurement,Clothing
141762,KANTAR MEDIA,397845,1,450.00,PRESS OFFICE,20/02/17,450.00,Communications,Education
080217G,PICK EVERARD,43692,1,"3,193.00",PROF FEES-MISCELLANEOUS,20/02/17,"3,193.00",Technical and Service Support,Consultancy
100217F,MITIE SECURITY (LONDON) LTD===,44/632463,1,556.32,PREMISES SECURITY,20/02/17,556.32,Technical and Service Support,Facilities & Management S
800094768,*OCS GROUP UK LTD,50002465495-06,1,495.00,REFRESHMENTS,20/02/17,495.00,Development and Training,Catering
800094772,*OCS GROUP UK LTD,50002465495-18,1,930.00,REFRESHMENTS,20/02/17,930.00,Operational Policy,Catering
800094754,*OCS GROUP UK LTD,50002465495-24,1,604.50,REFRESHMENTS,20/02/17,604.50,Fire Safety Regulation,Catering
800094791,*OCS GROUP UK LTD,50002465495-27,1,297.60,REFRESHMENTS,20/02/17,297.60,Operational Resilience,Catering
800094793,*OCS GROUP UK LTD,50002465495-43,1,418.50,REFRESHMENTS,20/02/17,418.50,Fire Stations (Management),Catering
800094705,BIFFA WASTE SERVICES LTD======,501M72943,1,"16,342.22",PLANNED REFUSE COLLECTION,20/02/17,"16,342.22",Technical and Service Support,Environmental Services
150217K,CARPETS & FLOOR COVERS DIRECT=,5275,1,"1,922.00",REACTIVE SMALL WORKS AND PROJ,20/02/17,"1,922.00",Technical and Service Support,Building Constr Materials
150217K,CARPETS & FLOOR COVERS DIRECT=,5276,1,"2,004.25",REACTIVE SMALL WORKS AND PROJ,20/02/17,"2,004.25",Technical and Service Support,Building Constr Materials
140217K,EUROLOOS LTD,54615,1,850.00,OPERATIONAL EQUIP-PURCHASE,20/02/17,850.00,Central Operations,Facilities & Management S
140217K,EUROLOOS LTD,54616,1,"4,485.00",OPERATIONAL EQUIP-PURCHASE,20/02/17,"4,485.00",Central Operations,Facilities & Management S
140217K,FOCUS & VISION TECHNOLOGY LTD,55932,1,503.10,MEDICAL EXPENSES CONTRACT,20/02/17,503.10,HR Management,Healthcare
140217K,FOCUS & VISION TECHNOLOGY LTD,56018,1,348.02,MEDICAL EXPENSES CONTRACT,20/02/17,348.02,HR Management,Healthcare
150217K,FOCUS & VISION TECHNOLOGY LTD,56039,1,548.40,MEDICAL EXPENSES CONTRACT,20/02/17,548.40,HR Management,Healthcare
100217F,VIGILANCE PROPERTIES,5960,1,"7,500.00",PREMISES SECURITY,20/02/17,"7,500.00",Technical and Service Support,Facilities & Management S
100217F,VIGILANCE PROPERTIES,5961,1,"5,000.00",PREMISES SECURITY,20/02/17,"5,000.00",Technical and Service Support,Facilities & Management S
090217G,MAYORS OFF FOR POLICING&CRIME,6800111950,1,"231,750.00",GLA GROUP SHARED SERVICES,20/02/17,"231,750.00",Finance Services,Human Resources
100217F,CURRIE & BROWN UK LIMITED,7011846,1,"1,060.84",PLANNED BUILDING DECORATIONS,20/02/17,"1,060.84",Technical and Service Support,"Works - Construction, R&M"
080217G,CURRIE & BROWN UK LIMITED,7011848,1,"2,346.00",PROF FEES-MISCELLANEOUS,20/02/17,"2,346.00",Technical and Service Support,"Works - Construction, R&M"
141767,ALPHABET (GB) LIMITED,80113874,1,548.95,LEASE CAR CHARGES,20/02/17,"3,643.01",Procurement,Vehicle Management
141767,ALPHABET (GB) LIMITED,80113874,2,"3,094.06",P/PAYMTS-CAR LEASG-RENTAL,20/02/17,,Procurement,Vehicle Management
141767,ALPHABET (GB) LIMITED,80113874,3,-310.89,VAT CAR LEASING,20/02/17,,Finance Services,Vehicle Management
141767,ALPHABET (GB) LIMITED,80113874,4,310.89,LEASE CAR CHARGES,20/02/17,,Procurement,Vehicle Management
090217G,ANGUS FIRE LIMITED,8037335,1,818.80,OPERATIONAL EQUIP-PURCHASE,20/02/17,947.80,Technical and Service Support,Fire & Rescue
090217G,ANGUS FIRE LIMITED,8037335,2,79.00,OPERATIONAL EQUIP-PURCHASE,20/02/17,,Technical and Service Support,Fire & Rescue
090217G,ANGUS FIRE LIMITED,8037335,3,50.00,OPERATIONAL EQUIP-PURCHASE,20/02/17,,Technical and Service Support,Fire & Rescue
070217G,IRG ADVISORS LLP,854481,1,"17,550.00",FRS STAFF AGENCY,20/02/17,"17,550.00",Legal & Democratic Services,Human Resources
150217K,SHARPE PRITCHARD==============,86524,1,345.00,DISPOSAL COSTS-ESTATES AGENTS,20/02/17,345.00,Technical and Service Support,Legal Services
141770,THAMES WATER UTILITIES LTD====,8903905446T,1,552.00,WATER & SEWERAGE RATES,20/02/17,552.00,Technical and Service Support,Utilities
140217K,TWO SERVICES LTD==============,92094,1,309.64,CATERING EQUIPMENT,20/02/17,309.64,Fire Stations (North West),Catering
150217K,BRADY CORPORATION LD T/A WELCO,9302543945,1,"1,944.00",OPERATIONAL EQUIP-PURCHASE,20/02/17,"1,944.00",Procurement,Building Constr Materials
140217K,BSI MANAGEMENT SYSTEMS,94689736/2000,1,"3,157.00",BOOKS & JOURNALS,20/02/17,"3,157.00",Information Management,Financial Services
141765,LONDON BOROUGH OF BEXLEY,CSIF049,1,"28,248.00",FIRE AUTHS GRANT PAYMENTS,20/02/17,"28,248.00",Community Safety Investment Fund,Statutory Bodies
141765,CITY OF LONDON,CSIF087,1,"7,425.00",FIRE AUTHS GRANT PAYMENTS,20/02/17,"7,425.00",Community Safety Investment Fund,Facilities & Management S
140217K,SCOTTISH FIRE & RESCUE SERVICE,INV0002068,1,"18,899.01",FIRE AUTHS-MUTUAL ASSISTANCE,20/02/17,"18,899.01",National Operational Guidance Project,Statutory Bodies
150217K,*OCS GROUP UK LTD,LFB2-10-16,1,429.78,CATERING,20/02/17,429.78,Technical and Service Support,Catering
902711,LONDON PENSIONS FUND AUTHORITY,PENSION FEB 17,2,"364,190.34",PENSION PAST SERVICE COSTS,20/02/17,"364,190.34",Central Finance,Financial Services
141765,ARVAL UK LTD,RI0003106126,1,294.99,LEASE CAR CHARGES,20/02/17,294.99,Procurement,Vehicle Management
141765,ARVAL UK LTD,RI0003106126,2,-23.62,VAT CAR LEASING,20/02/17,,Finance Services,Vehicle Management
141765,ARVAL UK LTD,RI0003106126,3,23.62,LEASE CAR CHARGES,20/02/17,,Procurement,Vehicle Management
141765,ARVAL UK LTD,RI0003106127,1,408.93,LEASE CAR CHARGES,20/02/17,408.93,Procurement,Vehicle Management
141765,ARVAL UK LTD,RI0003106127,2,-35.36,VAT CAR LEASING,20/02/17,,Finance Services,Vehicle Management
141765,ARVAL UK LTD,RI0003106127,3,35.36,LEASE CAR CHARGES,20/02/17,,Procurement,Vehicle Management
130217G,HUNTER LODGE==================,S-017286,1,"1,200.00",ADVERTISING,20/02/17,"1,200.00",National Operational Guidance Project,Facilities & Management S
060217G,HUNTER LODGE==================,SI-06410,1,"16,500.00",ADVERTISING,20/02/17,"16,500.00",Communications,Facilities & Management S
090217G,HUNTER LODGE==================,SI-06412,1,910.00,ADVERTISING,20/02/17,910.00,Communications,Facilities & Management S
080217G,HUNTER LODGE==================,SI-06424,1,"1,285.00",ADVERTISING,20/02/17,"1,285.00",Communications,Facilities & Management S
160217K,PTBITZ LIMITED T/A GAZEBOSHOP,0000005687,1,273.66,OPERATIONAL EQUIP-PURCHASE,23/02/17,601.40,Operational Resilience,Facilities & Management S
160217K,PTBITZ LIMITED T/A GAZEBOSHOP,0000005687,2,79.20,OPERATIONAL EQUIP-PURCHASE,23/02/17,,Operational Resilience,Facilities & Management S
160217K,PTBITZ LIMITED T/A GAZEBOSHOP,0000005687,3,181.86,OPERATIONAL EQUIP-PURCHASE,23/02/17,,Operational Resilience,Facilities & Management S
160217K,PTBITZ LIMITED T/A GAZEBOSHOP,0000005687,4,33.34,OPERATIONAL EQUIP-PURCHASE,23/02/17,,Operational Resilience,Facilities & Management S
160217K,PTBITZ LIMITED T/A GAZEBOSHOP,0000005687,5,33.34,OPERATIONAL EQUIP-PURCHASE,23/02/17,,Operational Resilience,Facilities & Management S
170217K,BRIBEN PRODUCTS LIMITED=======,0000109557,1,"2,442.80",REPAIR & MAINTENANCE,23/02/17,"3,700.49",Technical and Service Support,Fire & Rescue
170217K,BRIBEN PRODUCTS LIMITED=======,0000109557,2,134.52,REPAIR & MAINTENANCE,23/02/17,,Technical and Service Support,Fire & Rescue
170217K,BRIBEN PRODUCTS LIMITED=======,0000109557,3,185.41,REPAIR & MAINTENANCE,23/02/17,,Technical and Service Support,Fire & Rescue
170217K,BRIBEN PRODUCTS LIMITED=======,0000109557,4,127.76,REPAIR & MAINTENANCE,23/02/17,,Technical and Service Support,Fire & Rescue
